Publisher Label,Publisher URI,"Directorate code","Directorate","Service code","Service","Revenue or capital code","Revenue capital","Cost centre","Cost centre description","Bvsub Category","Bvsub description","Bvsum code","Bvsum description","Account code","Account description","Transaction No","Period","Transaction Date","Amount","Classification code","Classification description","Supplier ID","Supplier description","Company registration number","Company registration number Uri","VAT registration number"
"London Borough of Redbridge","http://opendatacommunities.org/doc/london-borough-council/redbridge","9BNONBVO","Outside the BVACOP Objective Structure","9CNONBVO","Outside the BVACOP Objective Structure","REV","Revenue","R5131","Repairs and Maintenance - MFS","02-PREMISES","Premises","02A","Repairs, alteration and maintenance of buildings","3027","Miscellaneous Maintenance","70025798","201201",06/04/2011 00:00:00,-15494.15,"61961","Property Maintenance & Repairs","REDACTED DATA","MORRISONS FACILITIES SERVICES LTD","120550","http://opencorporates.com/companies/gb/120550","297280913"
"London Borough of Redbridge","http://opendatacommunities.org/doc/london-borough-council/redbridge","9BNONBVO","Outside the BVACOP Objective Structure","9CNONBVO","Outside the BVACOP Objective Structure","REV","Revenue","R5131","Repairs and Maintenance - MFS","02-PREMISES","Premises","02A","Repairs, alteration and maintenance of buildings","3027","Miscellaneous Maintenance","70025950","201201",06/04/2011 00:00:00,-7041.7,"61961","Property Maintenance & Repairs","REDACTED DATA","MORRISONS FACILITIES SERVICES LTD","120550","http://opencorporates.com/companies/gb/120550","297280913"
"London Borough of Redbridge","http://opendatacommunities.org/doc/london-borough-council/redbridge","9BNONBVO","Outside the BVACOP Objective Structure","9CNONBVO","Outside the BVACOP Objective Structure","REV","Revenue","R5131","Repairs and Maintenance - MFS","02-PREMISES","Premises","02A","Repairs, alteration and maintenance of buildings","3027","Miscellaneous Maintenance","70025951","201201",06/04/2011 00:00:00,-7041.7,"61961","Property Maintenance & Repairs","REDACTED DATA","MORRISONS FACILITIES SERVICES LTD","120550","http://opencorporates.com/companies/gb/120550","297280913"
"London Borough of Redbridge","http://opendatacommunities.org/doc/london-borough-council/redbridge","1BOTHEROPI&E","Other Operating Income & Expenditure","1CTRADSURDEF","Trading Account Surpluses & Deficits","REV","Revenue","R9600","Town Hall","02-PREMISES","Premises","02B","Energy costs","4002","Gas","70026513","201201",14/04/2011 00:00:00,-6310.47,"39564","Gas Companies","REDACTED DATA","KENT COUNTY COUNCIL (GAS & ELECTRIC)","",,"204269191"
"London Borough of Redbridge","http://opendatacommunities.org/doc/london-borough-council/redbridge","1BOTHEROPI&E","Other Operating Income & Expenditure","1CTRADSURDEF","Trading Account Surpluses & Deficits","REV","Revenue","R9600","Town Hall","02-PREMISES","Premises","02B","Energy costs","4002","Gas","70026514","201201",14/04/2011 00:00:00,-5667.68,"39564","Gas Companies","REDACTED DATA","KENT COUNTY COUNCIL (GAS & ELECTRIC)","",,"204269191"
"London Borough of Redbridge","http://opendatacommunities.org/doc/london-borough-council/redbridge","1BOTHEROPI&E","Other Operating Income & Expenditure","1CTRADSURDEF","Trading Account Surpluses & Deficits","REV","Revenue","R9600","Town Hall","02-PREMISES","Premises","02B","Energy costs","4002","Gas","70026512","201201",14/04/2011 00:00:00,-4274.7,"39564","Gas Companies","REDACTED DATA","KENT COUNTY COUNCIL (GAS & ELECTRIC)","",,"204269191"
"London Borough of Redbridge","http://opendatacommunities.org/doc/london-borough-council/redbridge","1BOTHEROPI&E","Other Operating Income & Expenditure","1CTRADSURDEF","Trading Account Surpluses & Deficits","REV","Revenue","R9601","Lynton House","02-PREMISES","Premises","02B","Energy costs","4002","Gas","70026510","201201",14/04/2011 00:00:00,-4225.51,"39564","Gas Companies","REDACTED DATA","KENT COUNTY COUNCIL (GAS & ELECTRIC)","",,"204269191"
"London Borough of Redbridge","http://opendatacommunities.org/doc/london-borough-council/redbridge","1BOTHEROPI&E","Other Operating Income & Expenditure","1CTRADSURDEF","Trading Account Surpluses & Deficits","REV","Revenue","R9601","Lynton House","02-PREMISES","Premises","02B","Energy costs","4002","Gas","70026509","201201",14/04/2011 00:00:00,-3181.87,"39564","Gas Companies","REDACTED DATA","KENT COUNTY COUNCIL (GAS & ELECTRIC)","",,"204269191"
"London Borough of Redbridge","http://opendatacommunities.org/doc/london-borough-council/redbridge","6BADULTSOCIA","Adult Social Care","6CADPHYSDIS","Adults Under 65 with Phys Disab or Sensory Impair","REV","Revenue","R4206","PCT Physical Disability and Sensory Home  Care","05-THIRD","Third Party Payments","05A","Independent units within the council","6502","Agency Homecare (Payments To Independent Units)","90220492","201201",12/04/2011 00:00:00,-3228.72,"43419","Home Care Services","REDACTED DATA","FASTFLOW DE VERE CARE","",,""
"London Borough of Redbridge","http://opendatacommunities.org/doc/london-borough-council/redbridge","6BADULTSOCIA","Adult Social Care","6CADPHYSDIS","Adults Under 65 with Phys Disab or Sensory Impair","REV","Revenue","R4206","PCT Physical Disability and Sensory Home  Care","05-THIRD","Third Party Payments","05A","Independent units within the council","6502","Agency Homecare (Payments To Independent Units)","90220525","201201",18/04/2011 00:00:00,-3228.72,"43419","Home Care Services","REDACTED DATA","FASTFLOW DE VERE CARE","",,""
"London Borough of Redbridge","http://opendatacommunities.org/doc/london-borough-council/redbridge","6BADULTSOCIA","Adult Social Care","6CADPHYSDIS","Adults Under 65 with Phys Disab or Sensory Impair","REV","Revenue","R4206","PCT Physical Disability and Sensory Home  Care","05-THIRD","Third Party Payments","05A","Independent units within the council","6502","Agency Homecare (Payments To Independent Units)","90220520","201201",18/04/2011 00:00:00,-3167.88,"43419","Home Care Services","REDACTED DATA","FASTFLOW DE VERE CARE","",,""
"London Borough of Redbridge","http://opendatacommunities.org/doc/london-borough-council/redbridge","6BADULTSOCIA","Adult Social Care","6CADPHYSDIS","Adults Under 65 with Phys Disab or Sensory Impair","REV","Revenue","R4206","PCT Physical Disability and Sensory Home  Care","05-THIRD","Third Party Payments","05A","Independent units within the council","6502","Agency Homecare (Payments To Independent Units)","90220330","201201",23/03/2011 00:00:00,-3167.88,"43419","Home Care Services","REDACTED DATA","FASTFLOW DE VERE CARE","",,""
"London Borough of Redbridge","http://opendatacommunities.org/doc/london-borough-council/redbridge","6BADULTSOCIA","Adult Social Care","6CADPHYSDIS","Adults Under 65 with Phys Disab or Sensory Impair","REV","Revenue","R4214","PD Direct Payments","06-TRANSFER","Transfer Payments","06B","Social Services Clients","7053","Direct Payments","3178511","201201",11/04/2011 00:00:00,-3165.71,"56800","Payroll Services","REDACTED DATA","HUMAN MANAGEMENT ASSISTANCE-CLIENT ACCOUNT","4752026","http://opencorporates.com/companies/gb/4752026","815230071"
"London Borough of Redbridge","http://opendatacommunities.org/doc/london-borough-council/redbridge","6BADULTSOCIA","Adult Social Care","6COLDINCMENT","Older People (65 or over) incl. Older Mentally Ill","REV","Revenue","R4385","OP Nursing","05-THIRD","Third Party Payments","05H","Private contractors","6909","Nursing Homes","90219701","201201",30/03/2011 00:00:00,-3128.43,"53350","Nursing Homes","REDACTED DATA","BUPA CARE HOMES(SEABROOKE MANOR)","",,"239731641"
"London Borough of Redbridge","http://opendatacommunities.org/doc/london-borough-council/redbridge","6BADULTSOCIA","Adult Social Care","6CADPHYSDIS","Adults Under 65 with Phys Disab or Sensory Impair","REV","Revenue","R4206","PCT Physical Disability and Sensory Home  Care","05-THIRD","Third Party Payments","05A","Independent units within the council","6502","Agency Homecare (Payments To Independent Units)","90220328","201201",14/03/2011 00:00:00,-3071.55,"43419","Home Care Services","REDACTED DATA","FASTFLOW DE VERE CARE","",,""
"London Borough of Redbridge","http://opendatacommunities.org/doc/london-borough-council/redbridge","6BADULTSOCIA","Adult Social Care","6CADPHYSDIS","Adults Under 65 with Phys Disab or Sensory Impair","REV","Revenue","R4206","PCT Physical Disability and Sensory Home  Care","05-THIRD","Third Party Payments","05A","Independent units within the council","6502","Agency Homecare (Payments To Independent Units)","90220522","201201",18/04/2011 00:00:00,-3044.97,"43419","Home Care Services","REDACTED DATA","FASTFLOW DE VERE CARE","",,""
"London Borough of Redbridge","http://opendatacommunities.org/doc/london-borough-council/redbridge","6BADULTSOCIA","Adult Social Care","6CADPHYSDIS","Adults Under 65 with Phys Disab or Sensory Impair","REV","Revenue","R4206","PCT Physical Disability and Sensory Home  Care","05-THIRD","Third Party Payments","05A","Independent units within the council","6502","Agency Homecare (Payments To Independent Units)","90220394","201201",12/04/2011 00:00:00,-3044.97,"43419","Home Care Services","REDACTED DATA","FASTFLOW DE VERE CARE","",,""
"London Borough of Redbridge","http://opendatacommunities.org/doc/london-borough-council/redbridge","9BNONBVO","Outside the BVACOP Objective Structure","9CNONBVO","Outside the BVACOP Objective Structure","REV","Revenue","R5131","Repairs and Maintenance - MFS","02-PREMISES","Premises","02A","Repairs, alteration and maintenance of buildings","3027","Miscellaneous Maintenance","70025796","201201",06/04/2011 00:00:00,-2552,"61961","Property Maintenance & Repairs","REDACTED DATA","MORRISONS FACILITIES SERVICES LTD","120550","http://opencorporates.com/companies/gb/120550","297280913"
"London Borough of Redbridge","http://opendatacommunities.org/doc/london-borough-council/redbridge","1BOTHEROPI&E","Other Operating Income & Expenditure","1CTRADSURDEF","Trading Account Surpluses & Deficits","REV","Revenue","R9252","IT Services","04-SUPPLIES","Supplies And Services","04F","Communications and computing","5853","Computer Software","60143973","201201",28/03/2011 00:00:00,-2691,"20703","Computer Systems and Software","REDACTED DATA","AVOCENT SOFTWARE LTD","471070","http://opencorporates.com/companies/gb/471070","IE9702195K"
"London Borough of Redbridge","http://opendatacommunities.org/doc/london-borough-council/redbridge","6BADULTSOCIA","Adult Social Care","6CSUPPSERMGT","Support Service & Management Costs","REV","Revenue","R4010","TSIF and Practice Teaching","05-THIRD","Third Party Payments","05F","Voluntary associations","6800","Voluntary Organisations","70025804","201201",20/03/2011 00:00:00,-2560,"31230","Employment & Recruitment Agencies","REDACTED DATA","AQUANET SERVICES LTD","5297732","http://opencorporates.com/companies/gb/5297732","867966742"
"London Borough of Redbridge","http://opendatacommunities.org/doc/london-borough-council/redbridge","9BNONBVO","Outside the BVACOP Objective Structure","9CNONBVO","Outside the BVACOP Objective Structure","BAL","Balance Sheet","B0095","CLOSED -  PO Holding Account","99-NONBV","Capital, Balance Sheet and Control","50Q","Other Balances & Reserves","9995","AP / PO Holding Account","70025679","201201",07/01/2011 00:00:00,-2170.02,"31230","Employment & Recruitment Agencies","REDACTED DATA","BROOK STREET (UK) LTD","459637","http://opencorporates.com/companies/gb/459637","238595131"
"London Borough of Redbridge","http://opendatacommunities.org/doc/london-borough-council/redbridge","6BADULTSOCIA","Adult Social Care","6COLDINCMENT","Older People (65 or over) incl. Older Mentally Ill","REV","Revenue","R4378","OP - Care Purchasing","05-THIRD","Third Party Payments","05F","Voluntary associations","6802","Residential Homes","90219713","201201",30/03/2011 00:00:00,271.26,"53350","Nursing Homes","REDACTED DATA","BUPA CARE HOMES(SEABROOKE MANOR)","",,"239731641"
"London Borough of Redbridge","http://opendatacommunities.org/doc/london-borough-council/redbridge","6BADULTSOCIA","Adult Social Care","6COLDINCMENT","Older People (65 or over) incl. Older Mentally Ill","REV","Revenue","R4378","OP - Care Purchasing","05-THIRD","Third Party Payments","05F","Voluntary associations","6802","Residential Homes","90219713","201201",30/03/2011 00:00:00,-1201.27,"53350","Nursing Homes","REDACTED DATA","BUPA CARE HOMES(SEABROOKE MANOR)","",,"239731641"
"London Borough of Redbridge","http://opendatacommunities.org/doc/london-borough-council/redbridge","6BADULTSOCIA","Adult Social Care","6COLDINCMENT","Older People (65 or over) incl. Older Mentally Ill","REV","Revenue","R4378","OP - Care Purchasing","05-THIRD","Third Party Payments","05F","Voluntary associations","6802","Residential Homes","90219713","201201",30/03/2011 00:00:00,-1515.81,"53350","Nursing Homes","REDACTED DATA","BUPA CARE HOMES(SEABROOKE MANOR)","",,"239731641"
"London Borough of Redbridge","http://opendatacommunities.org/doc/london-borough-council/redbridge","6BADULTSOCIA","Adult Social Care","6COLDINCMENT","Older People (65 or over) incl. Older Mentally Ill","REV","Revenue","R4385","OP Nursing","05-THIRD","Third Party Payments","05H","Private contractors","6909","Nursing Homes","90217850","201201",30/03/2011 00:00:00,-2431.41,"53350","Nursing Homes","REDACTED DATA","SOUTHERN CROSS HEALTHCARE-FORMERLY LIFESTYLE PLC","5328138","http://opencorporates.com/companies/gb/5328138",""
"London Borough of Redbridge","http://opendatacommunities.org/doc/london-borough-council/redbridge","6BSOCIALSERV","Social Services","","","REV","Revenue","R2114","SEN and CD - Integrated Team 0-9 Social Care","06-TRANSFER","Transfer Payments","06B","Social Services Clients","7050","Agency Homecare","70026319","201201",09/03/2011 00:00:00,-2283.05,"43419","Home Care Services","REDACTED DATA","REDSPOT HOMECARE LTD","3966475","http://opencorporates.com/companies/gb/3966475",""
"London Borough of Redbridge","http://opendatacommunities.org/doc/london-borough-council/redbridge","1BOTHEROPI&E","Other Operating Income & Expenditure","1CTRADSURDEF","Trading Account Surpluses & Deficits","REV","Revenue","R9604","22-26 Clements Rd","02-PREMISES","Premises","02B","Energy costs","4002","Gas","70026515","201201",01/04/2011 00:00:00,-1678.5,"39564","Gas Companies","REDACTED DATA","KENT COUNTY COUNCIL (GAS & ELECTRIC)","",,"204269191"
"London Borough of Redbridge","http://opendatacommunities.org/doc/london-borough-council/redbridge","6BADULTSOCIA","Adult Social Care","6COLDINCMENT","Older People (65 or over) incl. Older Mentally Ill","REV","Revenue","R4378","OP - Care Purchasing","05-THIRD","Third Party Payments","05F","Voluntary associations","6802","Residential Homes","90217651","201201",30/03/2011 00:00:00,-1898.68,"53350","Nursing Homes","REDACTED DATA","JEWISH CARE (MERIT  HOUSE)","2447900","http://opencorporates.com/companies/gb/2447900","587033133"
"London Borough of Redbridge","http://opendatacommunities.org/doc/london-borough-council/redbridge","6BADULTSOCIA","Adult Social Care","6COLDINCMENT","Older People (65 or over) incl. Older Mentally Ill","REV","Revenue","R4378","OP - Care Purchasing","05-THIRD","Third Party Payments","05F","Voluntary associations","6802","Residential Homes","90222047","201201",30/03/2011 00:00:00,6019.61,"64710","Residential Care Homes","REDACTED DATA","SEA BREEZES RESIDENTIAL HOMES LTD","6088135","http://opencorporates.com/companies/gb/6088135",""
"London Borough of Redbridge","http://opendatacommunities.org/doc/london-borough-council/redbridge","6BADULTSOCIA","Adult Social Care","6COLDINCMENT","Older People (65 or over) incl. Older Mentally Ill","REV","Revenue","R4378","OP - Care Purchasing","05-THIRD","Third Party Payments","05F","Voluntary associations","6802","Residential Homes","90222047","201201",30/03/2011 00:00:00,-1832.7,"64710","Residential Care Homes","REDACTED DATA","SEA BREEZES RESIDENTIAL HOMES LTD","6088135","http://opencorporates.com/companies/gb/6088135",""
"London Borough of Redbridge","http://opendatacommunities.org/doc/london-borough-council/redbridge","6BADULTSOCIA","Adult Social Care","6COLDINCMENT","Older People (65 or over) incl. Older Mentally Ill","REV","Revenue","R4378","OP - Care Purchasing","09-INCOME","Income","09C","Customer & Client Receipts","8555","Accommodation Charges","90222047","201201",30/03/2011 00:00:00,-6019.61,"64710","Residential Care Homes","REDACTED DATA","SEA BREEZES RESIDENTIAL HOMES LTD","6088135","http://opencorporates.com/companies/gb/6088135",""
"London Borough of Redbridge","http://opendatacommunities.org/doc/london-borough-council/redbridge","6BADULTSOCIA","Adult Social Care","6CADMENHLTH","Adults Under 65 with Mental Health Needs","REV","Revenue","R4190","MH - Care Purch Bud","05-THIRD","Third Party Payments","05F","Voluntary associations","6802","Residential Homes","90219679","201201",30/03/2011 00:00:00,14657.14,"64710","Residential Care Homes","REDACTED DATA","ENDSLEIGH HOUSE","",,""
"London Borough of Redbridge","http://opendatacommunities.org/doc/london-borough-council/redbridge","6BADULTSOCIA","Adult Social Care","6CADMENHLTH","Adults Under 65 with Mental Health Needs","REV","Revenue","R4190","MH - Care Purch Bud","05-THIRD","Third Party Payments","05F","Voluntary associations","6802","Residential Homes","90219679","201201",30/03/2011 00:00:00,-16448.57,"64710","Residential Care Homes","REDACTED DATA","ENDSLEIGH HOUSE","",,""
"London Borough of Redbridge","http://opendatacommunities.org/doc/london-borough-council/redbridge","5BGFHOUSING","General Fund Housing","","","REV","Revenue","R5529","HAC Assessment","04-SUPPLIES","Supplies And Services","04K","Miscellaneous expenses","6282","Prevention & Procurement","70026049","201201",08/04/2011 00:00:00,-1580,"47846","Letting Agents","REDACTED DATA","OMEGA LETTINGS LTD","3662604","http://opencorporates.com/companies/gb/3662604","735892103"
"London Borough of Redbridge","http://opendatacommunities.org/doc/london-borough-council/redbridge","6BADULTSOCIA","Adult Social Care","6CADLEARNDIS","Adults Under 65 with Learning Disabilities","REV","Revenue","R4215","LD Direct Payments","06-TRANSFER","Transfer Payments","06B","Social Services Clients","7053","Direct Payments","90219644","201201",11/04/2011 00:00:00,2744.32,"56800","Payroll Services","REDACTED DATA","HUMAN MANAGEMENT ASSISTANCE-CLIENT ACCOUNT","4752026","http://opencorporates.com/companies/gb/4752026","815230071"
"London Borough of Redbridge","http://opendatacommunities.org/doc/london-borough-council/redbridge","6BADULTSOCIA","Adult Social Care","6CADLEARNDIS","Adults Under 65 with Learning Disabilities","REV","Revenue","R4215","LD Direct Payments","09-INCOME","Income","09C","Customer & Client Receipts","8553","Care Package Charges","90219644","201201",11/04/2011 00:00:00,-204.96,"56800","Payroll Services","REDACTED DATA","HUMAN MANAGEMENT ASSISTANCE-CLIENT ACCOUNT","4752026","http://opencorporates.com/companies/gb/4752026","815230071"
"London Borough of Redbridge","http://opendatacommunities.org/doc/london-borough-council/redbridge","6BADULTSOCIA","Adult Social Care","6CADLEARNDIS","Adults Under 65 with Learning Disabilities","REV","Revenue","R4215","LD Direct Payments","06-TRANSFER","Transfer Payments","06B","Social Services Clients","7053","Direct Payments","90219644","201201",11/04/2011 00:00:00,-4061.65,"56800","Payroll Services","REDACTED DATA","HUMAN MANAGEMENT ASSISTANCE-CLIENT ACCOUNT","4752026","http://opencorporates.com/companies/gb/4752026","815230071"
"London Borough of Redbridge","http://opendatacommunities.org/doc/london-borough-council/redbridge","6BADULTSOCIA","Adult Social Care","6COLDINCMENT","Older People (65 or over) incl. Older Mentally Ill","REV","Revenue","R4385","OP Nursing","05-THIRD","Third Party Payments","05H","Private contractors","6909","Nursing Homes","90219722","201201",30/03/2011 00:00:00,282.39,"53350","Nursing Homes","REDACTED DATA","BUPA CARE HOMES(SEABROOKE MANOR)","",,"239731641"
"London Borough of Redbridge","http://opendatacommunities.org/doc/london-borough-council/redbridge","6BADULTSOCIA","Adult Social Care","6COLDINCMENT","Older People (65 or over) incl. Older Mentally Ill","REV","Revenue","R4385","OP Nursing","05-THIRD","Third Party Payments","05H","Private contractors","6909","Nursing Homes","90219722","201201",30/03/2011 00:00:00,-1678.21,"53350","Nursing Homes","REDACTED DATA","BUPA CARE HOMES(SEABROOKE MANOR)","",,"239731641"
"London Borough of Redbridge","http://opendatacommunities.org/doc/london-borough-council/redbridge","6BADULTSOCIA","Adult Social Care","6COLDINCMENT","Older People (65 or over) incl. Older Mentally Ill","REV","Revenue","R4378","OP - Care Purchasing","05-THIRD","Third Party Payments","05F","Voluntary associations","6802","Residential Homes","90217328","201201",30/03/2011 00:00:00,1674.09,"53350","Nursing Homes","REDACTED DATA","BUPA CARE HOME (GABLE LODGE)","2006738","http://opencorporates.com/companies/gb/2006738","239731641"
"London Borough of Redbridge","http://opendatacommunities.org/doc/london-borough-council/redbridge","6BADULTSOCIA","Adult Social Care","6COLDINCMENT","Older People (65 or over) incl. Older Mentally Ill","REV","Revenue","R4378","OP - Care Purchasing","09-INCOME","Income","09C","Customer & Client Receipts","8555","Accommodation Charges","90217328","201201",30/03/2011 00:00:00,-544.58,"53350","Nursing Homes","REDACTED DATA","BUPA CARE HOME (GABLE LODGE)","2006738","http://opencorporates.com/companies/gb/2006738","239731641"
"London Borough of Redbridge","http://opendatacommunities.org/doc/london-borough-council/redbridge","6BADULTSOCIA","Adult Social Care","6COLDINCMENT","Older People (65 or over) incl. Older Mentally Ill","REV","Revenue","R4378","OP - Care Purchasing","05-THIRD","Third Party Payments","05F","Voluntary associations","6802","Residential Homes","90217328","201201",30/03/2011 00:00:00,-2496.86,"53350","Nursing Homes","REDACTED DATA","BUPA CARE HOME (GABLE LODGE)","2006738","http://opencorporates.com/companies/gb/2006738","239731641"
"London Borough of Redbridge","http://opendatacommunities.org/doc/london-borough-council/redbridge","6BADULTSOCIA","Adult Social Care","6COLDINCMENT","Older People (65 or over) incl. Older Mentally Ill","REV","Revenue","R4378","OP - Care Purchasing","05-THIRD","Third Party Payments","05F","Voluntary associations","6802","Residential Homes","90217341","201201",30/03/2011 00:00:00,246.12,"64710","Residential Care Homes","REDACTED DATA","FOUR SEASONS HEALTHCARE (PEARTREE HOUSE)","",,""
"London Borough of Redbridge","http://opendatacommunities.org/doc/london-borough-council/redbridge","6BADULTSOCIA","Adult Social Care","6COLDINCMENT","Older People (65 or over) incl. Older Mentally Ill","REV","Revenue","R4378","OP - Care Purchasing","09-INCOME","Income","09C","Customer & Client Receipts","8555","Accommodation Charges","90217341","201201",30/03/2011 00:00:00,-47.28,"64710","Residential Care Homes","REDACTED DATA","FOUR SEASONS HEALTHCARE (PEARTREE HOUSE)","",,""
"London Borough of Redbridge","http://opendatacommunities.org/doc/london-borough-council/redbridge","6BADULTSOCIA","Adult Social Care","6COLDINCMENT","Older People (65 or over) incl. Older Mentally Ill","REV","Revenue","R4378","OP - Care Purchasing","05-THIRD","Third Party Payments","05F","Voluntary associations","6802","Residential Homes","90217341","201201",30/03/2011 00:00:00,-1396.48,"64710","Residential Care Homes","REDACTED DATA","FOUR SEASONS HEALTHCARE (PEARTREE HOUSE)","",,""
"London Borough of Redbridge","http://opendatacommunities.org/doc/london-borough-council/redbridge","6BADULTSOCIA","Adult Social Care","6COLDINCMENT","Older People (65 or over) incl. Older Mentally Ill","REV","Revenue","R4385","OP Nursing","05-THIRD","Third Party Payments","05H","Private contractors","6909","Nursing Homes","90217864","201201",30/03/2011 00:00:00,-1151.21,"53350","Nursing Homes","REDACTED DATA","SOUTHERN CROSS HEALTHCARE-FORMERLY LIFESTYLE PLC","5328138","http://opencorporates.com/companies/gb/5328138",""
"London Borough of Redbridge","http://opendatacommunities.org/doc/london-borough-council/redbridge","6BADULTSOCIA","Adult Social Care","6CADLEARNDIS","Adults Under 65 with Learning Disabilities","REV","Revenue","R4383","LD - External Day Care","05-THIRD","Third Party Payments","05H","Private contractors","6904","Day Centres","90218054","201201",04/04/2011 00:00:00,-1099,"29360","Educational Services","REDACTED DATA","ST MARK�S SOCIAL EDUCATION SERVICES","342972","http://opencorporates.com/companies/gb/342972","761453629"
"London Borough of Redbridge","http://opendatacommunities.org/doc/london-borough-council/redbridge","6BADULTSOCIA","Adult Social Care","6CADLEARNDIS","Adults Under 65 with Learning Disabilities","REV","Revenue","R4394","LD - Homecare","05-THIRD","Third Party Payments","05A","Independent units within the council","6502","Agency Homecare (Payments To Independent Units)","90218822","201201",17/03/2011 00:00:00,-1084.46,"31230","Employment & Recruitment Agencies","REDACTED DATA","RANDSTAD CARE  LTD","2462482","http://opencorporates.com/companies/gb/2462482","523365558"
"London Borough of Redbridge","http://opendatacommunities.org/doc/london-borough-council/redbridge","6BADULTSOCIA","Adult Social Care","6COLDINCMENT","Older People (65 or over) incl. Older Mentally Ill","REV","Revenue","R4378","OP - Care Purchasing","05-THIRD","Third Party Payments","05F","Voluntary associations","6802","Residential Homes","90217832","201201",30/03/2011 00:00:00,305.89,"53350","Nursing Homes","REDACTED DATA","AVONPARK (RYEDALE) LTD","3724264","http://opencorporates.com/companies/gb/3724264",""
"London Borough of Redbridge","http://opendatacommunities.org/doc/london-borough-council/redbridge","6BADULTSOCIA","Adult Social Care","6COLDINCMENT","Older People (65 or over) incl. Older Mentally Ill","REV","Revenue","R4378","OP - Care Purchasing","05-THIRD","Third Party Payments","05F","Voluntary associations","6802","Residential Homes","90217832","201201",30/03/2011 00:00:00,-1354.14,"53350","Nursing Homes","REDACTED DATA","AVONPARK (RYEDALE) LTD","3724264","http://opencorporates.com/companies/gb/3724264",""
"London Borough of Redbridge","http://opendatacommunities.org/doc/london-borough-council/redbridge","6BADULTSOCIA","Adult Social Care","6CADLEARNDIS","Adults Under 65 with Learning Disabilities","REV","Revenue","R4394","LD - Homecare","05-THIRD","Third Party Payments","05A","Independent units within the council","6502","Agency Homecare (Payments To Independent Units)","90221008","201201",23/03/2011 00:00:00,-1031.55,"31230","Employment & Recruitment Agencies","REDACTED DATA","RANDSTAD CARE  LTD","2462482","http://opencorporates.com/companies/gb/2462482","523365558"
"London Borough of Redbridge","http://opendatacommunities.org/doc/london-borough-council/redbridge","6BADULTSOCIA","Adult Social Care","6CADLEARNDIS","Adults Under 65 with Learning Disabilities","REV","Revenue","R4394","LD - Homecare","05-THIRD","Third Party Payments","05A","Independent units within the council","6502","Agency Homecare (Payments To Independent Units)","90222910","201201",11/04/2011 00:00:00,-1014.71,"31230","Employment & Recruitment Agencies","REDACTED DATA","RANDSTAD CARE  LTD","2462482","http://opencorporates.com/companies/gb/2462482","523365558"
"London Borough of Redbridge","http://opendatacommunities.org/doc/london-borough-council/redbridge","6BADULTSOCIA","Adult Social Care","6CADLEARNDIS","Adults Under 65 with Learning Disabilities","REV","Revenue","R4394","LD - Homecare","05-THIRD","Third Party Payments","05A","Independent units within the council","6502","Agency Homecare (Payments To Independent Units)","90216350","201201",16/03/2011 00:00:00,-1007.99,"31230","Employment & Recruitment Agencies","REDACTED DATA","RANDSTAD CARE  LTD","2462482","http://opencorporates.com/companies/gb/2462482","523365558"
"London Borough of Redbridge","http://opendatacommunities.org/doc/london-borough-council/redbridge","6BADULTSOCIA","Adult Social Care","6CADLEARNDIS","Adults Under 65 with Learning Disabilities","REV","Revenue","R4394","LD - Homecare","05-THIRD","Third Party Payments","05A","Independent units within the council","6502","Agency Homecare (Payments To Independent Units)","90222864","201201",04/04/2011 00:00:00,-971.39,"31230","Employment & Recruitment Agencies","REDACTED DATA","RANDSTAD CARE  LTD","2462482","http://opencorporates.com/companies/gb/2462482","523365558"
"London Borough of Redbridge","http://opendatacommunities.org/doc/london-borough-council/redbridge","9BNONBVO","Outside the BVACOP Objective Structure","9CNONBVO","Outside the BVACOP Objective Structure","REV","Revenue","R5131","Repairs and Maintenance - MFS","02-PREMISES","Premises","02A","Repairs, alteration and maintenance of buildings","3027","Miscellaneous Maintenance","70025797","201201",06/04/2011 00:00:00,-794.76,"61961","Property Maintenance & Repairs","REDACTED DATA","MORRISONS FACILITIES SERVICES LTD","120550","http://opencorporates.com/companies/gb/120550","297280913"
"London Borough of Redbridge","http://opendatacommunities.org/doc/london-borough-council/redbridge","6BADULTSOCIA","Adult Social Care","6CADLEARNDIS","Adults Under 65 with Learning Disabilities","REV","Revenue","R4241","RPCT - Continuing Care - Spots","05-THIRD","Third Party Payments","05A","Independent units within the council","6502","Agency Homecare (Payments To Independent Units)","90215927","201201",23/03/2011 00:00:00,-886.83,"43419","Home Care Services","REDACTED DATA","FASTFLOW DE VERE CARE","",,""
"London Borough of Redbridge","http://opendatacommunities.org/doc/london-borough-council/redbridge","6BADULTSOCIA","Adult Social Care","6CADLEARNDIS","Adults Under 65 with Learning Disabilities","REV","Revenue","R4241","RPCT - Continuing Care - Spots","05-THIRD","Third Party Payments","05A","Independent units within the council","6502","Agency Homecare (Payments To Independent Units)","90215863","201201",21/03/2011 00:00:00,-857.27,"43419","Home Care Services","REDACTED DATA","FASTFLOW DE VERE CARE","",,""
"London Borough of Redbridge","http://opendatacommunities.org/doc/london-borough-council/redbridge","9BNONBVO","Outside the BVACOP Objective Structure","9CNONBVO","Outside the BVACOP Objective Structure","CAP","Capital","C4019","Early Years PVI - Quality and Access","99-NONBV","Capital, Balance Sheet and Control","50E","Capital - Contract Payments","9150","Main Contract","60145617","201201",14/03/2011 00:00:00,-719.84,"29340","Educational Equipment & Supplies","REDACTED DATA","HOPE EDUCATION","1135827","http://opencorporates.com/companies/gb/1135827","125688644"
"London Borough of Redbridge","http://opendatacommunities.org/doc/london-borough-council/redbridge","6BADULTSOCIA","Adult Social Care","6COLDINCMENT","Older People (65 or over) incl. Older Mentally Ill","REV","Revenue","R4378","OP - Care Purchasing","05-THIRD","Third Party Payments","05F","Voluntary associations","6802","Residential Homes","90217643","201201",30/03/2011 00:00:00,171.76,"53350","Nursing Homes","REDACTED DATA","JEWISH CARE (MERIT  HOUSE)","2447900","http://opencorporates.com/companies/gb/2447900","587033133"
"London Borough of Redbridge","http://opendatacommunities.org/doc/london-borough-council/redbridge","6BADULTSOCIA","Adult Social Care","6COLDINCMENT","Older People (65 or over) incl. Older Mentally Ill","REV","Revenue","R4378","OP - Care Purchasing","09-INCOME","Income","09C","Customer & Client Receipts","8555","Accommodation Charges","90217643","201201",30/03/2011 00:00:00,-45.56,"53350","Nursing Homes","REDACTED DATA","JEWISH CARE (MERIT  HOUSE)","2447900","http://opencorporates.com/companies/gb/2447900","587033133"
"London Borough of Redbridge","http://opendatacommunities.org/doc/london-borough-council/redbridge","6BADULTSOCIA","Adult Social Care","6COLDINCMENT","Older People (65 or over) incl. Older Mentally Ill","REV","Revenue","R4378","OP - Care Purchasing","05-THIRD","Third Party Payments","05F","Voluntary associations","6802","Residential Homes","90217643","201201",30/03/2011 00:00:00,-958.46,"53350","Nursing Homes","REDACTED DATA","JEWISH CARE (MERIT  HOUSE)","2447900","http://opencorporates.com/companies/gb/2447900","587033133"
"London Borough of Redbridge","http://opendatacommunities.org/doc/london-borough-council/redbridge","6BADULTSOCIA","Adult Social Care","6CADPHYSDIS","Adults Under 65 with Phys Disab or Sensory Impair","REV","Revenue","R4393","PD Home Care","05-THIRD","Third Party Payments","05A","Independent units within the council","6502","Agency Homecare (Payments To Independent Units)","90215945","201201",23/03/2011 00:00:00,-776.25,"43419","Home Care Services","REDACTED DATA","FASTFLOW DE VERE CARE","",,""
"London Borough of Redbridge","http://opendatacommunities.org/doc/london-borough-council/redbridge","6BADULTSOCIA","Adult Social Care","6CADLEARNDIS","Adults Under 65 with Learning Disabilities","REV","Revenue","R4241","RPCT - Continuing Care - Spots","05-THIRD","Third Party Payments","05A","Independent units within the council","6502","Agency Homecare (Payments To Independent Units)","90215881","201201",24/03/2011 00:00:00,-753.25,"43419","Home Care Services","REDACTED DATA","FASTFLOW DE VERE CARE","",,""
"London Borough of Redbridge","http://opendatacommunities.org/doc/london-borough-council/redbridge","6BADULTSOCIA","Adult Social Care","6CADLEARNDIS","Adults Under 65 with Learning Disabilities","REV","Revenue","R4241","RPCT - Continuing Care - Spots","05-THIRD","Third Party Payments","05A","Independent units within the council","6502","Agency Homecare (Payments To Independent Units)","90215967","201201",23/03/2011 00:00:00,-752.23,"43419","Home Care Services","REDACTED DATA","FASTFLOW DE VERE CARE","",,""
"London Borough of Redbridge","http://opendatacommunities.org/doc/london-borough-council/redbridge","9BNONBVO","Outside the BVACOP Objective Structure","9CNONBVO","Outside the BVACOP Objective Structure","BAL","Balance Sheet","B0095","CLOSED -  PO Holding Account","99-NONBV","Capital, Balance Sheet and Control","50Q","Other Balances & Reserves","9995","AP / PO Holding Account","70025990","201201",12/04/2011 00:00:00,-718.67,"1961","Advertising - Agencies","REDACTED DATA","TMP (UK) LTD","5648039","http://opencorporates.com/companies/gb/5648039","872904502"
"London Borough of Redbridge","http://opendatacommunities.org/doc/london-borough-council/redbridge","6BADULTSOCIA","Adult Social Care","6CSUPPSERMGT","Support Service & Management Costs","REV","Revenue","R4004","CC - Training General","01-EMPLOYEES","Employees","01B","Indirect employee expenses","2403","External Training","60144366","201201",31/03/2011 00:00:00,-700,"81491","Universities & Medical Schools","REDACTED DATA","UNIVERSITY OF EAST LONDON","",,"506471361"
"London Borough of Redbridge","http://opendatacommunities.org/doc/london-borough-council/redbridge","6BADULTSOCIA","Adult Social Care","6CADPHYSDIS","Adults Under 65 with Phys Disab or Sensory Impair","REV","Revenue","R4393","PD Home Care","05-THIRD","Third Party Payments","05A","Independent units within the council","6502","Agency Homecare (Payments To Independent Units)","90216857","201201",29/03/2011 00:00:00,-675.45,"43419","Home Care Services","REDACTED DATA","CAREWATCH CARE SERVVICES LTD","2949558","http://opencorporates.com/companies/gb/2949558","927457005"
"London Borough of Redbridge","http://opendatacommunities.org/doc/london-borough-council/redbridge","6BADULTSOCIA","Adult Social Care","6CADLEARNDIS","Adults Under 65 with Learning Disabilities","REV","Revenue","R4241","RPCT - Continuing Care - Spots","05-THIRD","Third Party Payments","05A","Independent units within the council","6502","Agency Homecare (Payments To Independent Units)","90215875","201201",24/03/2011 00:00:00,-605.47,"43419","Home Care Services","REDACTED DATA","FASTFLOW DE VERE CARE","",,""
"London Borough of Redbridge","http://opendatacommunities.org/doc/london-borough-council/redbridge","6BADULTSOCIA","Adult Social Care","6CADMENHLTH","Adults Under 65 with Mental Health Needs","REV","Revenue","R4213","MH Direct Payments","06-TRANSFER","Transfer Payments","06B","Social Services Clients","7053","Direct Payments","3178602","201201",11/04/2011 00:00:00,271.2,"56800","Payroll Services","REDACTED DATA","HUMAN MANAGEMENT ASSISTANCE-CLIENT ACCOUNT","4752026","http://opencorporates.com/companies/gb/4752026","815230071"
"London Borough of Redbridge","http://opendatacommunities.org/doc/london-borough-council/redbridge","6BADULTSOCIA","Adult Social Care","6CADMENHLTH","Adults Under 65 with Mental Health Needs","REV","Revenue","R4213","MH Direct Payments","09-INCOME","Income","09C","Customer & Client Receipts","8553","Care Package Charges","3178602","201201",11/04/2011 00:00:00,-813.6,"56800","Payroll Services","REDACTED DATA","HUMAN MANAGEMENT ASSISTANCE-CLIENT ACCOUNT","4752026","http://opencorporates.com/companies/gb/4752026","815230071"
"London Borough of Redbridge","http://opendatacommunities.org/doc/london-borough-council/redbridge","6BADULTSOCIA","Adult Social Care","6CADLEARNDIS","Adults Under 65 with Learning Disabilities","REV","Revenue","R4215","LD Direct Payments","09-INCOME","Income","09C","Customer & Client Receipts","8553","Care Package Charges","3178483","201201",11/04/2011 00:00:00,541.28,"56800","Payroll Services","REDACTED DATA","HUMAN MANAGEMENT ASSISTANCE-CLIENT ACCOUNT","4752026","http://opencorporates.com/companies/gb/4752026","815230071"
"London Borough of Redbridge","http://opendatacommunities.org/doc/london-borough-council/redbridge","6BADULTSOCIA","Adult Social Care","6CADLEARNDIS","Adults Under 65 with Learning Disabilities","REV","Revenue","R4215","LD Direct Payments","09-INCOME","Income","09C","Customer & Client Receipts","8553","Care Package Charges","3178483","201201",11/04/2011 00:00:00,6.52,"56800","Payroll Services","REDACTED DATA","HUMAN MANAGEMENT ASSISTANCE-CLIENT ACCOUNT","4752026","http://opencorporates.com/companies/gb/4752026","815230071"
"London Borough of Redbridge","http://opendatacommunities.org/doc/london-borough-council/redbridge","6BADULTSOCIA","Adult Social Care","6CADLEARNDIS","Adults Under 65 with Learning Disabilities","REV","Revenue","R4215","LD Direct Payments","06-TRANSFER","Transfer Payments","06B","Social Services Clients","7053","Direct Payments","3178483","201201",11/04/2011 00:00:00,-12.91,"56800","Payroll Services","REDACTED DATA","HUMAN MANAGEMENT ASSISTANCE-CLIENT ACCOUNT","4752026","http://opencorporates.com/companies/gb/4752026","815230071"
"London Borough of Redbridge","http://opendatacommunities.org/doc/london-borough-council/redbridge","6BADULTSOCIA","Adult Social Care","6CADLEARNDIS","Adults Under 65 with Learning Disabilities","REV","Revenue","R4215","LD Direct Payments","06-TRANSFER","Transfer Payments","06B","Social Services Clients","7053","Direct Payments","3178483","201201",11/04/2011 00:00:00,-1071.89,"56800","Payroll Services","REDACTED DATA","HUMAN MANAGEMENT ASSISTANCE-CLIENT ACCOUNT","4752026","http://opencorporates.com/companies/gb/4752026","815230071"
"London Borough of Redbridge","http://opendatacommunities.org/doc/london-borough-council/redbridge","6BADULTSOCIA","Adult Social Care","6COLDINCMENT","Older People (65 or over) incl. Older Mentally Ill","REV","Revenue","R4391","OP Home Care","05-THIRD","Third Party Payments","05A","Independent units within the council","6502","Agency Homecare (Payments To Independent Units)","90215965","201201",23/03/2011 00:00:00,-532.51,"43419","Home Care Services","REDACTED DATA","FASTFLOW DE VERE CARE","",,""
"London Borough of Redbridge","http://opendatacommunities.org/doc/london-borough-council/redbridge","9BNONBVO","Outside the BVACOP Objective Structure","9CNONBVO","Outside the BVACOP Objective Structure","REV","Revenue","R7551","Conveniences Admin","04-SUPPLIES","Supplies And Services","04C","Clothes, uniform and laundry","5651","Protective Clothing","60143200","201112",24/03/2011 00:00:00,-94.95,"86070","Workwear & Protective Equipment","REDACTED DATA","PCI (GB) LTD T/A PCI TRUSTYLE","6661924","http://opencorporates.com/companies/gb/6661924","739492294"
"London Borough of Redbridge","http://opendatacommunities.org/doc/london-borough-council/redbridge","9BNONBVO","Outside the BVACOP Objective Structure","9CNONBVO","Outside the BVACOP Objective Structure","REV","Revenue","R7551","Conveniences Admin","04-SUPPLIES","Supplies And Services","04C","Clothes, uniform and laundry","5651","Protective Clothing","60143200","201112",24/03/2011 00:00:00,-334.5,"86070","Workwear & Protective Equipment","REDACTED DATA","PCI (GB) LTD T/A PCI TRUSTYLE","6661924","http://opencorporates.com/companies/gb/6661924","739492294"
"London Borough of Redbridge","http://opendatacommunities.org/doc/london-borough-council/redbridge","6BADULTSOCIA","Adult Social Care","6COLDINCMENT","Older People (65 or over) incl. Older Mentally Ill","REV","Revenue","R4391","OP Home Care","05-THIRD","Third Party Payments","05A","Independent units within the council","6502","Agency Homecare (Payments To Independent Units)","90216874","201201",29/03/2011 00:00:00,-507.1,"43419","Home Care Services","REDACTED DATA","CAREWATCH CARE SERVVICES LTD","2949558","http://opencorporates.com/companies/gb/2949558","927457005"
"London Borough of Redbridge","http://opendatacommunities.org/doc/london-borough-council/redbridge","6BADULTSOCIA","Adult Social Care","6COLDINCMENT","Older People (65 or over) incl. Older Mentally Ill","REV","Revenue","R4391","OP Home Care","05-THIRD","Third Party Payments","05A","Independent units within the council","6502","Agency Homecare (Payments To Independent Units)","90221372","201201",12/04/2011 00:00:00,-505.83,"43419","Home Care Services","REDACTED DATA","CAREWATCH CARE SERVVICES LTD","2949558","http://opencorporates.com/companies/gb/2949558","927457005"
"London Borough of Redbridge","http://opendatacommunities.org/doc/london-borough-council/redbridge","6BADULTSOCIA","Adult Social Care","6COLDINCMENT","Older People (65 or over) incl. Older Mentally Ill","REV","Revenue","R4391","OP Home Care","05-THIRD","Third Party Payments","05A","Independent units within the council","6502","Agency Homecare (Payments To Independent Units)","90223214","201201",18/04/2011 00:00:00,-504.98,"43419","Home Care Services","REDACTED DATA","CAREWATCH CARE SERVVICES LTD","2949558","http://opencorporates.com/companies/gb/2949558","927457005"
"London Borough of Redbridge","http://opendatacommunities.org/doc/london-borough-council/redbridge","6BADULTSOCIA","Adult Social Care","6COLDINCMENT","Older People (65 or over) incl. Older Mentally Ill","REV","Revenue","R4391","OP Home Care","05-THIRD","Third Party Payments","05A","Independent units within the council","6502","Agency Homecare (Payments To Independent Units)","90219146","201201",06/04/2011 00:00:00,-502.42,"43419","Home Care Services","REDACTED DATA","CAREWATCH CARE SERVVICES LTD","2949558","http://opencorporates.com/companies/gb/2949558","927457005"
"London Borough of Redbridge","http://opendatacommunities.org/doc/london-borough-council/redbridge","1BOTHEROPI&E","Other Operating Income & Expenditure","1CTRADSURDEF","Trading Account Surpluses & Deficits","REV","Revenue","R9003","One Stop Shop","04-SUPPLIES","Supplies And Services","04D","Printing, stationery and general office expenses","5703","Reprographics","60145721","201201",21/02/2011 00:00:00,417.92,"57614","Photocopiers","REDACTED DATA","CANON UK LTD","1264300","http://opencorporates.com/companies/gb/1264300","523797128"
"London Borough of Redbridge","http://opendatacommunities.org/doc/london-borough-council/redbridge","6BADULTSOCIA","Adult Social Care","6CADLEARNDIS","Adults Under 65 with Learning Disabilities","REV","Revenue","R4296","Mulberry Lodge","04-SUPPLIES","Supplies And Services","04B","Catering","5601","Catering Provisions (Food & Drink)","60145744","201201",08/04/2011 00:00:00,502.28,"16250","Catering Food and Drink Suppliers","REDACTED DATA","THOMAS RIDLEY & SONS","",,""
"London Borough of Redbridge","http://opendatacommunities.org/doc/london-borough-council/redbridge","6BADULTSOCIA","Adult Social Care","6COLDINCMENT","Older People (65 or over) incl. Older Mentally Ill","REV","Revenue","R4391","OP Home Care","05-THIRD","Third Party Payments","05A","Independent units within the council","6502","Agency Homecare (Payments To Independent Units)","90219145","201201",06/04/2011 00:00:00,502.42,"43419","Home Care Services","REDACTED DATA","CAREWATCH CARE SERVVICES LTD","2949558","http://opencorporates.com/companies/gb/2949558","927457005"
"London Borough of Redbridge","http://opendatacommunities.org/doc/london-borough-council/redbridge","6BADULTSOCIA","Adult Social Care","6CADLEARNDIS","Adults Under 65 with Learning Disabilities","REV","Revenue","R4215","LD Direct Payments","06-TRANSFER","Transfer Payments","06B","Social Services Clients","7053","Direct Payments","3178536","201201",11/04/2011 00:00:00,632.8,"56800","Payroll Services","REDACTED DATA","HUMAN MANAGEMENT ASSISTANCE-CLIENT ACCOUNT","4752026","http://opencorporates.com/companies/gb/4752026","815230071"
"London Borough of Redbridge","http://opendatacommunities.org/doc/london-borough-council/redbridge","6BADULTSOCIA","Adult Social Care","6CADLEARNDIS","Adults Under 65 with Learning Disabilities","REV","Revenue","R4215","LD Direct Payments","09-INCOME","Income","09C","Customer & Client Receipts","8553","Care Package Charges","3178536","201201",11/04/2011 00:00:00,-130.24,"56800","Payroll Services","REDACTED DATA","HUMAN MANAGEMENT ASSISTANCE-CLIENT ACCOUNT","4752026","http://opencorporates.com/companies/gb/4752026","815230071"
"London Borough of Redbridge","http://opendatacommunities.org/doc/london-borough-council/redbridge","2BCULTUR&REL","Cultural & Related Services","2CLIBRARY","Library Service","REV","Revenue","R2518","Fullwell X Branch Lib","04-SUPPLIES","Supplies And Services","04A","Equipment, furniture and materials","5510","Materials","60145826","201201",11/04/2011 00:00:00,418.98,"47650","Leasing Services","REDACTED DATA","BNP PARIBAS LEASE GROUP (RENTALS) LTD","2133823","http://opencorporates.com/companies/gb/2133823","313483672"
"London Borough of Redbridge","http://opendatacommunities.org/doc/london-borough-council/redbridge","1BOTHEROPI&E","Other Operating Income & Expenditure","1CTRADSURDEF","Trading Account Surpluses & Deficits","REV","Revenue","R9578","Misc Properties","04-SUPPLIES","Supplies And Services","04K","Miscellaneous expenses","6258","Security Patrol Services","60144621","201201",31/03/2011 00:00:00,420,"69240","Security Services","REDACTED DATA","A & M SECURITY CO","",,"311691676"
"London Borough of Redbridge","http://opendatacommunities.org/doc/london-borough-council/redbridge","5BGFHOUSING","General Fund Housing","","","REV","Revenue","R5529","HAC Assessment","04-SUPPLIES","Supplies And Services","04K","Miscellaneous expenses","6267","2010 Coversion Costs","70026044","201201",31/03/2011 00:00:00,420,"47846","Letting Agents","REDACTED DATA","BTP LETTINGS LTD","7037542","http://opencorporates.com/companies/gb/7037542","858899139"
"London Borough of Redbridge","http://opendatacommunities.org/doc/london-borough-council/redbridge","5BGFHOUSING","General Fund Housing","5CHOUSADVICE","Housing Advice","REV","Revenue","R5530","HAC Temporary Accomodation","05-THIRD","Third Party Payments","05H","Private contractors","6912","Bed & Breakfast Charges","70026412","201201",31/03/2011 00:00:00,420,"44100","Hotels","REDACTED DATA","MCCREADIE HOTEL","",,""
"London Borough of Redbridge","http://opendatacommunities.org/doc/london-borough-council/redbridge","2BCULTUR&REL","Cultural & Related Services","2CLIBRARY","Library Service","REV","Revenue","R2524","Hainault Branch Lib","02-PREMISES","Premises","02B","Energy costs","4000","Electricity","60146371","201201",13/04/2011 00:00:00,420.33,"30586","Electricity Companies","REDACTED DATA","EDF ENERGY 1 LTD (PO BOX 3956 PLYMOUTH)","",,"523041202"
"London Borough of Redbridge","http://opendatacommunities.org/doc/london-borough-council/redbridge","2BCULTUR&REL","Cultural & Related Services","2CLIBRARY","Library Service","REV","Revenue","R2522","Wanstead Branch Lib","01-EMPLOYEES","Employees","01A","Direct employee expenses","4","Agency Staff - Pay","60145130","201201",03/04/2011 00:00:00,420.77,"31230","Employment & Recruitment Agencies","REDACTED DATA","PLAN PERSONNEL","",,""
"London Borough of Redbridge","http://opendatacommunities.org/doc/london-borough-council/redbridge","2BCULTUR&REL","Cultural & Related Services","2CLIBRARY","Library Service","REV","Revenue","R2522","Wanstead Branch Lib","01-EMPLOYEES","Employees","01A","Direct employee expenses","409","Agency Staff Pay","60146157","201201",17/04/2011 00:00:00,420.77,"31230","Employment & Recruitment Agencies","REDACTED DATA","PLAN PERSONNEL","",,""
"London Borough of Redbridge","http://opendatacommunities.org/doc/london-borough-council/redbridge","6BADULTSOCIA","Adult Social Care","6COLDINCMENT","Older People (65 or over) incl. Older Mentally Ill","REV","Revenue","R4391","OP Home Care","05-THIRD","Third Party Payments","05A","Independent units within the council","6502","Agency Homecare (Payments To Independent Units)","90223213","201201",18/04/2011 00:00:00,504.98,"43419","Home Care Services","REDACTED DATA","CAREWATCH CARE SERVVICES LTD","2949558","http://opencorporates.com/companies/gb/2949558","927457005"
"London Borough of Redbridge","http://opendatacommunities.org/doc/london-borough-council/redbridge","6BADULTSOCIA","Adult Social Care","6COLDINCMENT","Older People (65 or over) incl. Older Mentally Ill","REV","Revenue","R4391","OP Home Care","05-THIRD","Third Party Payments","05A","Independent units within the council","6502","Agency Homecare (Payments To Independent Units)","90221371","201201",12/04/2011 00:00:00,505.83,"43419","Home Care Services","REDACTED DATA","CAREWATCH CARE SERVVICES LTD","2949558","http://opencorporates.com/companies/gb/2949558","927457005"
"London Borough of Redbridge","http://opendatacommunities.org/doc/london-borough-council/redbridge","6BADULTSOCIA","Adult Social Care","6COLDINCMENT","Older People (65 or over) incl. Older Mentally Ill","REV","Revenue","R4211","Older People Direct Payments","06-TRANSFER","Transfer Payments","06B","Social Services Clients","7053","Direct Payments","3178441","201201",11/04/2011 00:00:00,632.8,"56800","Payroll Services","REDACTED DATA","HUMAN MANAGEMENT ASSISTANCE-CLIENT ACCOUNT","4752026","http://opencorporates.com/companies/gb/4752026","815230071"
"London Borough of Redbridge","http://opendatacommunities.org/doc/london-borough-council/redbridge","6BADULTSOCIA","Adult Social Care","6COLDINCMENT","Older People (65 or over) incl. Older Mentally Ill","REV","Revenue","R4211","Older People Direct Payments","09-INCOME","Income","09C","Customer & Client Receipts","8553","Care Package Charges","3178441","201201",11/04/2011 00:00:00,-126.6,"56800","Payroll Services","REDACTED DATA","HUMAN MANAGEMENT ASSISTANCE-CLIENT ACCOUNT","4752026","http://opencorporates.com/companies/gb/4752026","815230071"
"London Borough of Redbridge","http://opendatacommunities.org/doc/london-borough-council/redbridge","6BADULTSOCIA","Adult Social Care","6COLDINCMENT","Older People (65 or over) incl. Older Mentally Ill","REV","Revenue","R4391","OP Home Care","05-THIRD","Third Party Payments","05A","Independent units within the council","6502","Agency Homecare (Payments To Independent Units)","90216873","201201",29/03/2011 00:00:00,507.1,"43419","Home Care Services","REDACTED DATA","CAREWATCH CARE SERVVICES LTD","2949558","http://opencorporates.com/companies/gb/2949558","927457005"
"London Borough of Redbridge","http://opendatacommunities.org/doc/london-borough-council/redbridge","4BMANGT&SUPP","Management & Support Services","4CHIGHRDROUT","Highways/Roads (Routine)","REV","Revenue","R7049","Grounds Maint Contingency","05-THIRD","Third Party Payments","05H","Private contractors","6915","Contractor Payments","3179748","201201",11/04/2011 00:00:00,423.1,"18632","Civil Engineers","REDACTED DATA","KENSON CONTRACTORS BENINGTON LTD","1314691","http://opencorporates.com/companies/gb/1314691","301629589"
"London Borough of Redbridge","http://opendatacommunities.org/doc/london-borough-council/redbridge","4BMANGT&SUPP","Management & Support Services","4CHIGHRDROUT","Highways/Roads (Routine)","REV","Revenue","R7049","Grounds Maint Contingency","05-THIRD","Third Party Payments","05H","Private contractors","6915","Contractor Payments","3179752","201201",11/04/2011 00:00:00,423.1,"18632","Civil Engineers","REDACTED DATA","KENSON CONTRACTORS BENINGTON LTD","1314691","http://opencorporates.com/companies/gb/1314691","301629589"
"London Borough of Redbridge","http://opendatacommunities.org/doc/london-borough-council/redbridge","6BADULTSOCIA","Adult Social Care","6COTHADSERV","Other Adult Services","REV","Revenue","R4389","PCT Older Person Home Care","05-THIRD","Third Party Payments","05A","Independent units within the council","6502","Agency Homecare (Payments To Independent Units)","90221604","201201",19/04/2011 00:00:00,508.15,"43419","Home Care Services","REDACTED DATA","ENARA LTD (ENARA COMMUNITY CARE)","65455420","http://opencorporates.com/companies/gb/65455420",""
"London Borough of Redbridge","http://opendatacommunities.org/doc/london-borough-council/redbridge","6BSOCIALSERV","Social Services","","","REV","Revenue","R2117","SEN and CD Care and Support Packages Social Care","06-TRANSFER","Transfer Payments","06B","Social Services Clients","7050","Agency Homecare","3178260","201201",21/03/2011 00:00:00,508.41,"43419","Home Care Services","REDACTED DATA","FASTFLOW DE VERE CARE","",,""
"London Borough of Redbridge","http://opendatacommunities.org/doc/london-borough-council/redbridge","6BADULTSOCIA","Adult Social Care","6CADPHYSDIS","Adults Under 65 with Phys Disab or Sensory Impair","REV","Revenue","R4214","PD Direct Payments","06-TRANSFER","Transfer Payments","06B","Social Services Clients","7053","Direct Payments","3178588","201201",11/04/2011 00:00:00,508.52,"56800","Payroll Services","REDACTED DATA","HUMAN MANAGEMENT ASSISTANCE-CLIENT ACCOUNT","4752026","http://opencorporates.com/companies/gb/4752026","815230071"
"London Borough of Redbridge","http://opendatacommunities.org/doc/london-borough-council/redbridge","6BADULTSOCIA","Adult Social Care","6CADLEARNDIS","Adults Under 65 with Learning Disabilities","REV","Revenue","R4215","LD Direct Payments","06-TRANSFER","Transfer Payments","06B","Social Services Clients","7053","Direct Payments","3178803","201201",11/04/2011 00:00:00,678.08,"90005","Home Care Services DP","REDACTED DATA","REDACTED DATA","",,""
"London Borough of Redbridge","http://opendatacommunities.org/doc/london-borough-council/redbridge","6BADULTSOCIA","Adult Social Care","6CADLEARNDIS","Adults Under 65 with Learning Disabilities","REV","Revenue","R4215","LD Direct Payments","09-INCOME","Income","09C","Customer & Client Receipts","8553","Care Package Charges","3178803","201201",11/04/2011 00:00:00,-169.52,"90005","Home Care Services DP","REDACTED DATA","REDACTED DATA","",,""
"London Borough of Redbridge","http://opendatacommunities.org/doc/london-borough-council/redbridge","6BADULTSOCIA","Adult Social Care","6COLDINCMENT","Older People (65 or over) incl. Older Mentally Ill","REV","Revenue","R4391","OP Home Care","05-THIRD","Third Party Payments","05A","Independent units within the council","6502","Agency Homecare (Payments To Independent Units)","90223387","201201",26/04/2011 00:00:00,508.84,"43419","Home Care Services","REDACTED DATA","ENARA LTD (ENARA COMMUNITY CARE)","65455420","http://opencorporates.com/companies/gb/65455420",""
"London Borough of Redbridge","http://opendatacommunities.org/doc/london-borough-council/redbridge","6BADULTSOCIA","Adult Social Care","6COLDINCMENT","Older People (65 or over) incl. Older Mentally Ill","REV","Revenue","R4211","Older People Direct Payments","06-TRANSFER","Transfer Payments","06B","Social Services Clients","7053","Direct Payments","3178393","201201",11/04/2011 00:00:00,644.12,"90005","Home Care Services DP","REDACTED DATA","REDACTED DATA","",,""
"London Borough of Redbridge","http://opendatacommunities.org/doc/london-borough-council/redbridge","6BADULTSOCIA","Adult Social Care","6COLDINCMENT","Older People (65 or over) incl. Older Mentally Ill","REV","Revenue","R4211","Older People Direct Payments","09-INCOME","Income","09C","Customer & Client Receipts","8553","Care Package Charges","3178393","201201",11/04/2011 00:00:00,-135.08,"90005","Home Care Services DP","REDACTED DATA","REDACTED DATA","",,""
"London Borough of Redbridge","http://opendatacommunities.org/doc/london-borough-council/redbridge","6BADULTSOCIA","Adult Social Care","6COLDINCMENT","Older People (65 or over) incl. Older Mentally Ill","REV","Revenue","R4391","OP Home Care","05-THIRD","Third Party Payments","05A","Independent units within the council","6502","Agency Homecare (Payments To Independent Units)","90215321","201201",05/04/2011 00:00:00,509.74,"43419","Home Care Services","REDACTED DATA","ALLIED HEALTHCARE GROUP LTD","1689856","http://opencorporates.com/companies/gb/1689856","813058355"
"London Borough of Redbridge","http://opendatacommunities.org/doc/london-borough-council/redbridge","6BADULTSOCIA","Adult Social Care","6COTHADSERV","Other Adult Services","REV","Revenue","R4389","PCT Older Person Home Care","05-THIRD","Third Party Payments","05A","Independent units within the council","6502","Agency Homecare (Payments To Independent Units)","90221762","201201",19/04/2011 00:00:00,509.99,"43419","Home Care Services","REDACTED DATA","ENARA LTD (ENARA COMMUNITY CARE)","65455420","http://opencorporates.com/companies/gb/65455420",""
"London Borough of Redbridge","http://opendatacommunities.org/doc/london-borough-council/redbridge","6BSOCIALSERV","Social Services","","","REV","Revenue","R2176","Ray Lodge (N) - Integrated Team Social Care","01-EMPLOYEES","Employees","01A","Direct employee expenses","4","Agency Staff - Pay","60145391","201201",06/04/2011 00:00:00,425.6,"31230","Employment & Recruitment Agencies","REDACTED DATA","BROOK STREET (UK) LTD","459637","http://opencorporates.com/companies/gb/459637","238595131"
"London Borough of Redbridge","http://opendatacommunities.org/doc/london-borough-council/redbridge","3BLEACENTFND","LEA Centrally Held School Funds","3CASSURACCES","Assuring Access to Schools","REV","Revenue","R3832","Primary Free Sch Meals","04-SUPPLIES","Supplies And Services","04A","Equipment, furniture and materials","5504","Equipment Repairs & Maintenance","783651","201201",28/03/2011 00:00:00,425.72,"16111","Catering Equipment","REDACTED DATA","J SCOTT & SONS  LTD","",,"354241082"
"London Borough of Redbridge","http://opendatacommunities.org/doc/london-borough-council/redbridge","2BCULTUR&REL","Cultural & Related Services","2CLIBRARY","Library Service","REV","Revenue","R2522","Wanstead Branch Lib","01-EMPLOYEES","Employees","01A","Direct employee expenses","409","Agency Staff Pay","60145135","201201",03/04/2011 00:00:00,425.8,"31230","Employment & Recruitment Agencies","REDACTED DATA","PLAN PERSONNEL","",,""
"London Borough of Redbridge","http://opendatacommunities.org/doc/london-borough-council/redbridge","6BADULTSOCIA","Adult Social Care","6COTHADSERV","Other Adult Services","REV","Revenue","R4389","PCT Older Person Home Care","05-THIRD","Third Party Payments","05A","Independent units within the council","6502","Agency Homecare (Payments To Independent Units)","90223354","201201",26/04/2011 00:00:00,511.46,"43419","Home Care Services","REDACTED DATA","ENARA LTD (ENARA COMMUNITY CARE)","65455420","http://opencorporates.com/companies/gb/65455420",""
"London Borough of Redbridge","http://opendatacommunities.org/doc/london-borough-council/redbridge","2BCULTUR&REL","Cultural & Related Services","2COPENSPACES","Open Spaces","REV","Revenue","R6250","H Forest-Formal Area","04-SUPPLIES","Supplies And Services","04A","Equipment, furniture and materials","5509","Livestock Provisions","60145813","201201",07/04/2011 00:00:00,511.79,"57220","Pet Foods & Animal Feeds","REDACTED DATA","W H MARRIAGE & SONS LTD.","690479","http://opencorporates.com/companies/gb/690479","102662017"
"London Borough of Redbridge","http://opendatacommunities.org/doc/london-borough-council/redbridge","5BGFHOUSING","General Fund Housing","","","REV","Revenue","R5501","Housing Service Admin","04-SUPPLIES","Supplies And Services","04D","Printing, stationery and general office expenses","5703","Reprographics","60145802","201201",01/04/2011 00:00:00,427.58,"53390","Office Equipment Mnfrs & Distributors","REDACTED DATA","OCE (UK) LTD","2355241","http://opencorporates.com/companies/gb/2355241","246297733"
"London Borough of Redbridge","http://opendatacommunities.org/doc/london-borough-council/redbridge","4BMANGT&SUPP","Management & Support Services","4CHIGHRDROUT","Highways/Roads (Routine)","REV","Revenue","R7070","Reactive Maintenance","05-THIRD","Third Party Payments","05H","Private contractors","6915","Contractor Payments","3179506","201201",13/04/2011 00:00:00,428.04,"18632","Civil Engineers","REDACTED DATA","KENSON CONTRACTORS BENINGTON LTD","1314691","http://opencorporates.com/companies/gb/1314691","301629589"
"London Borough of Redbridge","http://opendatacommunities.org/doc/london-borough-council/redbridge","1BOTHEROPI&E","Other Operating Income & Expenditure","1CTRADSURDEF","Trading Account Surpluses & Deficits","REV","Revenue","R9802","Administrative Service","04-SUPPLIES","Supplies And Services","04K","Miscellaneous expenses","6280","Miscellaneous Expenditure","60143793","201112",28/03/2011 00:00:00,481.51,"1961","Advertising - Agencies","REDACTED DATA","TMP (UK) LTD","5648039","http://opencorporates.com/companies/gb/5648039","872904502"
"London Borough of Redbridge","http://opendatacommunities.org/doc/london-borough-council/redbridge","6BADULTSOCIA","Adult Social Care","6COLDINCMENT","Older People (65 or over) incl. Older Mentally Ill","REV","Revenue","R4163","Extra Care","04-SUPPLIES","Supplies And Services","04D","Printing, stationery and general office expenses","5705","Postage","60144889","201201",25/03/2011 00:00:00,365.02,"60230","Post Office Services","REDACTED DATA","NEOPOST FINANCE LTD","2658324","http://opencorporates.com/companies/gb/2658324","597265489"
"London Borough of Redbridge","http://opendatacommunities.org/doc/london-borough-council/redbridge","6BADULTSOCIA","Adult Social Care","6CADPHYSDIS","Adults Under 65 with Phys Disab or Sensory Impair","REV","Revenue","R4163","Extra Care","04-SUPPLIES","Supplies And Services","04D","Printing, stationery and general office expenses","5705","Postage","60144889","201201",25/03/2011 00:00:00,42.94,"60230","Post Office Services","REDACTED DATA","NEOPOST FINANCE LTD","2658324","http://opencorporates.com/companies/gb/2658324","597265489"
"London Borough of Redbridge","http://opendatacommunities.org/doc/london-borough-council/redbridge","6BADULTSOCIA","Adult Social Care","6CADMENHLTH","Adults Under 65 with Mental Health Needs","REV","Revenue","R4163","Extra Care","04-SUPPLIES","Supplies And Services","04D","Printing, stationery and general office expenses","5705","Postage","60144889","201201",25/03/2011 00:00:00,21.47,"60230","Post Office Services","REDACTED DATA","NEOPOST FINANCE LTD","2658324","http://opencorporates.com/companies/gb/2658324","597265489"
"London Borough of Redbridge","http://opendatacommunities.org/doc/london-borough-council/redbridge","1BOTHEROPI&E","Other Operating Income & Expenditure","1CTRADSURDEF","Trading Account Surpluses & Deficits","REV","Revenue","R9802","Administrative Service","01-EMPLOYEES","Employees","01B","Indirect employee expenses","2403","External Training","60144692","201201",24/02/2011 00:00:00,430,"79980","Training Services","REDACTED DATA","LGG LTD","5127694","http://opencorporates.com/companies/gb/5127694","468727693"
"London Borough of Redbridge","http://opendatacommunities.org/doc/london-borough-council/redbridge","9BNONBVO","Outside the BVACOP Objective Structure","9CNONBVO","Outside the BVACOP Objective Structure","REV","Revenue","R7702","Vehicle Workshop","04-SUPPLIES","Supplies And Services","04A","Equipment, furniture and materials","5510","Materials","626336","201112",22/03/2011 00:00:00,430,"78830","Tool Merchants","REDACTED DATA","SNAP ON TOOLS LTD","1091067","http://opencorporates.com/companies/gb/1091067","791907590"
"London Borough of Redbridge","http://opendatacommunities.org/doc/london-borough-council/redbridge","6BADULTSOCIA","Adult Social Care","6CADPHYSDIS","Adults Under 65 with Phys Disab or Sensory Impair","REV","Revenue","R4214","PD Direct Payments","06-TRANSFER","Transfer Payments","06B","Social Services Clients","7053","Direct Payments","3178395","201201",11/04/2011 00:00:00,723.2,"56800","Payroll Services","REDACTED DATA","HUMAN MANAGEMENT ASSISTANCE-CLIENT ACCOUNT","4752026","http://opencorporates.com/companies/gb/4752026","815230071"
"London Borough of Redbridge","http://opendatacommunities.org/doc/london-borough-council/redbridge","6BADULTSOCIA","Adult Social Care","6CADPHYSDIS","Adults Under 65 with Phys Disab or Sensory Impair","REV","Revenue","R4214","PD Direct Payments","09-INCOME","Income","09C","Customer & Client Receipts","8553","Care Package Charges","3178395","201201",11/04/2011 00:00:00,-207,"56800","Payroll Services","REDACTED DATA","HUMAN MANAGEMENT ASSISTANCE-CLIENT ACCOUNT","4752026","http://opencorporates.com/companies/gb/4752026","815230071"
"London Borough of Redbridge","http://opendatacommunities.org/doc/london-borough-council/redbridge","6BADULTSOCIA","Adult Social Care","6CADPHYSDIS","Adults Under 65 with Phys Disab or Sensory Impair","REV","Revenue","R4214","PD Direct Payments","06-TRANSFER","Transfer Payments","06B","Social Services Clients","7053","Direct Payments","3178549","201201",11/04/2011 00:00:00,553.72,"56800","Payroll Services","REDACTED DATA","HUMAN MANAGEMENT ASSISTANCE-CLIENT ACCOUNT","4752026","http://opencorporates.com/companies/gb/4752026","815230071"
"London Borough of Redbridge","http://opendatacommunities.org/doc/london-borough-council/redbridge","6BADULTSOCIA","Adult Social Care","6CADPHYSDIS","Adults Under 65 with Phys Disab or Sensory Impair","REV","Revenue","R4214","PD Direct Payments","09-INCOME","Income","09C","Customer & Client Receipts","8553","Care Package Charges","3178549","201201",11/04/2011 00:00:00,-37.32,"56800","Payroll Services","REDACTED DATA","HUMAN MANAGEMENT ASSISTANCE-CLIENT ACCOUNT","4752026","http://opencorporates.com/companies/gb/4752026","815230071"
"London Borough of Redbridge","http://opendatacommunities.org/doc/london-borough-council/redbridge","3BLEACENTFND","LEA Centrally Held School Funds","3CASSURACCES","Assuring Access to Schools","REV","Revenue","R3832","Primary Free Sch Meals","04-SUPPLIES","Supplies And Services","04A","Equipment, furniture and materials","5504","Equipment Repairs & Maintenance","783707","201201",25/03/2011 00:00:00,430.6,"16111","Catering Equipment","REDACTED DATA","J SCOTT & SONS  LTD","",,"354241082"
"London Borough of Redbridge","http://opendatacommunities.org/doc/london-borough-council/redbridge","3BNONSCHFUND","Non-School Funding","","","REV","Revenue","R2041","South Childrens Centre","01-EMPLOYEES","Employees","01A","Direct employee expenses","4","Agency Staff - Pay","60146071","201201",13/04/2011 00:00:00,431.25,"31230","Employment & Recruitment Agencies","REDACTED DATA","PROTOCOL EDUCATION LTD","2926583","http://opencorporates.com/companies/gb/2926583","764390315"
"London Borough of Redbridge","http://opendatacommunities.org/doc/london-borough-council/redbridge","1BOTHEROPI&E","Other Operating Income & Expenditure","1CTRADSURDEF","Trading Account Surpluses & Deficits","REV","Revenue","R9606","Perth Terrace","04-SUPPLIES","Supplies And Services","04C","Clothes, uniform and laundry","5652","Towel Services","60146220","201201",22/03/2011 00:00:00,431.64,"66520","Sanitary Services","REDACTED DATA","OCS GROUP UK LTD T/A CANNON","3056469","http://opencorporates.com/companies/gb/3056469","238034379"
"London Borough of Redbridge","http://opendatacommunities.org/doc/london-borough-council/redbridge","4BMANGT&SUPP","Management & Support Services","4CHIGHRDROUT","Highways/Roads (Routine)","REV","Revenue","R7068","Signs - Schedule 2","05-THIRD","Third Party Payments","05H","Private contractors","6915","Contractor Payments","3181443","201201",14/04/2011 00:00:00,431.91,"21555","Construction Contractors - General","REDACTED DATA","MAY GURNEY LIMITED","873179","http://opencorporates.com/companies/gb/873179","105540018"
"London Borough of Redbridge","http://opendatacommunities.org/doc/london-borough-council/redbridge","4BMANGT&SUPP","Management & Support Services","4CHIGHRDROUT","Highways/Roads (Routine)","REV","Revenue","R7068","Signs - Schedule 2","05-THIRD","Third Party Payments","05H","Private contractors","6915","Contractor Payments","3181442","201201",14/04/2011 00:00:00,431.91,"21555","Construction Contractors - General","REDACTED DATA","MAY GURNEY LIMITED","873179","http://opencorporates.com/companies/gb/873179","105540018"
"London Borough of Redbridge","http://opendatacommunities.org/doc/london-borough-council/redbridge","4BPUBLICTRAN","Public Transport","4CPARKING","Parking Services","REV","Revenue","R7031","CCTV Parking Enforcement","04-SUPPLIES","Supplies And Services","04D","Printing, stationery and general office expenses","5710","Stationery","60145794","201201",14/04/2011 00:00:00,432,"61540","Printers","REDACTED DATA","LIBERTY PRINTERS LTD - LIBERTY SERVICES","2920033","http://opencorporates.com/companies/gb/2920033","918128422"
"London Borough of Redbridge","http://opendatacommunities.org/doc/london-borough-council/redbridge","3BNONSCHFUND","Non-School Funding","","","REV","Revenue","R2031","Pedagogy Ed Team DSG","04-SUPPLIES","Supplies And Services","04A","Equipment, furniture and materials","5502","Equipment Purchase","60143095","201112",23/03/2011 00:00:00,432,"79420","Toys, Games & Sporting Goods - Mnfrs","REDACTED DATA","COMMUNITY PRODUCTS (UK) LTD","3498955","http://opencorporates.com/companies/gb/3498955","680107750"
"London Borough of Redbridge","http://opendatacommunities.org/doc/london-borough-council/redbridge","3BNONSCHFUND","Non-School Funding","","","REV","Revenue","R2031","Pedagogy Ed Team DSG","04-SUPPLIES","Supplies And Services","04A","Equipment, furniture and materials","5502","Equipment Purchase","60143096","201112",23/03/2011 00:00:00,432,"79420","Toys, Games & Sporting Goods - Mnfrs","REDACTED DATA","COMMUNITY PRODUCTS (UK) LTD","3498955","http://opencorporates.com/companies/gb/3498955","680107750"
"London Borough of Redbridge","http://opendatacommunities.org/doc/london-borough-council/redbridge","3BNONSCHFUND","Non-School Funding","","","REV","Revenue","R2031","Pedagogy Ed Team DSG","04-SUPPLIES","Supplies And Services","04A","Equipment, furniture and materials","5502","Equipment Purchase","60142988","201112",22/03/2011 00:00:00,432,"79420","Toys, Games & Sporting Goods - Mnfrs","REDACTED DATA","COMMUNITY PRODUCTS (UK) LTD","3498955","http://opencorporates.com/companies/gb/3498955","680107750"
"London Borough of Redbridge","http://opendatacommunities.org/doc/london-borough-council/redbridge","3BNONSCHFUND","Non-School Funding","","","REV","Revenue","R2031","Pedagogy Ed Team DSG","04-SUPPLIES","Supplies And Services","04A","Equipment, furniture and materials","5502","Equipment Purchase","60142989","201112",22/03/2011 00:00:00,432,"79420","Toys, Games & Sporting Goods - Mnfrs","REDACTED DATA","COMMUNITY PRODUCTS (UK) LTD","3498955","http://opencorporates.com/companies/gb/3498955","680107750"
"London Borough of Redbridge","http://opendatacommunities.org/doc/london-borough-council/redbridge","3BNONSCHFUND","Non-School Funding","","","REV","Revenue","R2031","Pedagogy Ed Team DSG","04-SUPPLIES","Supplies And Services","04A","Equipment, furniture and materials","5502","Equipment Purchase","60143139","201112",23/03/2011 00:00:00,432,"79420","Toys, Games & Sporting Goods - Mnfrs","REDACTED DATA","COMMUNITY PRODUCTS (UK) LTD","3498955","http://opencorporates.com/companies/gb/3498955","680107750"
"London Borough of Redbridge","http://opendatacommunities.org/doc/london-borough-council/redbridge","3BNONSCHFUND","Non-School Funding","","","REV","Revenue","R2031","Pedagogy Ed Team DSG","04-SUPPLIES","Supplies And Services","04A","Equipment, furniture and materials","5502","Equipment Purchase","60143090","201112",23/03/2011 00:00:00,432,"79420","Toys, Games & Sporting Goods - Mnfrs","REDACTED DATA","COMMUNITY PRODUCTS (UK) LTD","3498955","http://opencorporates.com/companies/gb/3498955","680107750"
"London Borough of Redbridge","http://opendatacommunities.org/doc/london-borough-council/redbridge","3BNONSCHFUND","Non-School Funding","","","REV","Revenue","R2031","Pedagogy Ed Team DSG","04-SUPPLIES","Supplies And Services","04A","Equipment, furniture and materials","5502","Equipment Purchase","60142987","201112",22/03/2011 00:00:00,432,"79420","Toys, Games & Sporting Goods - Mnfrs","REDACTED DATA","COMMUNITY PRODUCTS (UK) LTD","3498955","http://opencorporates.com/companies/gb/3498955","680107750"
"London Borough of Redbridge","http://opendatacommunities.org/doc/london-borough-council/redbridge","6BADULTSOCIA","Adult Social Care","6COTHADSERV","Other Adult Services","REV","Revenue","R4389","PCT Older Person Home Care","05-THIRD","Third Party Payments","05A","Independent units within the council","6502","Agency Homecare (Payments To Independent Units)","90216676","201201",30/03/2011 00:00:00,519.64,"53350","Nursing Homes","REDACTED DATA","ELEANOR NURSING & HOMECARE LTD","4393038","http://opencorporates.com/companies/gb/4393038",""
"London Borough of Redbridge","http://opendatacommunities.org/doc/london-borough-council/redbridge","6BADULTSOCIA","Adult Social Care","6COTHADSERV","Other Adult Services","REV","Revenue","R4389","PCT Older Person Home Care","05-THIRD","Third Party Payments","05A","Independent units within the council","6502","Agency Homecare (Payments To Independent Units)","90216644","201201",27/03/2011 00:00:00,519.64,"53350","Nursing Homes","REDACTED DATA","ELEANOR NURSING & HOMECARE LTD","4393038","http://opencorporates.com/companies/gb/4393038",""
"London Borough of Redbridge","http://opendatacommunities.org/doc/london-borough-council/redbridge","6BADULTSOCIA","Adult Social Care","6COTHADSERV","Other Adult Services","REV","Revenue","R4389","PCT Older Person Home Care","05-THIRD","Third Party Payments","05A","Independent units within the council","6502","Agency Homecare (Payments To Independent Units)","90216609","201201",27/03/2011 00:00:00,519.64,"53350","Nursing Homes","REDACTED DATA","ELEANOR NURSING & HOMECARE LTD","4393038","http://opencorporates.com/companies/gb/4393038",""
"London Borough of Redbridge","http://opendatacommunities.org/doc/london-borough-council/redbridge","6BADULTSOCIA","Adult Social Care","6CADPHYSDIS","Adults Under 65 with Phys Disab or Sensory Impair","REV","Revenue","R4214","PD Direct Payments","06-TRANSFER","Transfer Payments","06B","Social Services Clients","7053","Direct Payments","3178449","201201",11/04/2011 00:00:00,519.8,"56800","Payroll Services","REDACTED DATA","HUMAN MANAGEMENT ASSISTANCE-CLIENT ACCOUNT","4752026","http://opencorporates.com/companies/gb/4752026","815230071"
"London Borough of Redbridge","http://opendatacommunities.org/doc/london-borough-council/redbridge","6BADULTSOCIA","Adult Social Care","6COLDINCMENT","Older People (65 or over) incl. Older Mentally Ill","REV","Revenue","R4211","Older People Direct Payments","06-TRANSFER","Transfer Payments","06B","Social Services Clients","7053","Direct Payments","3178560","201201",11/04/2011 00:00:00,519.8,"56800","Payroll Services","REDACTED DATA","HUMAN MANAGEMENT ASSISTANCE-CLIENT ACCOUNT","4752026","http://opencorporates.com/companies/gb/4752026","815230071"
"London Borough of Redbridge","http://opendatacommunities.org/doc/london-borough-council/redbridge","6BADULTSOCIA","Adult Social Care","6COLDINCMENT","Older People (65 or over) incl. Older Mentally Ill","REV","Revenue","R4211","Older People Direct Payments","06-TRANSFER","Transfer Payments","06B","Social Services Clients","7053","Direct Payments","3178414","201201",11/04/2011 00:00:00,519.8,"90005","Home Care Services DP","REDACTED DATA","REDACTED DATA","",,""
"London Borough of Redbridge","http://opendatacommunities.org/doc/london-borough-council/redbridge","3BLEACENTFND","LEA Centrally Held School Funds","","","REV","Revenue","R2211","SEN Commissioning DSG","04-SUPPLIES","Supplies And Services","04K","Miscellaneous expenses","6220","Education Otherwise","60145105","201201",08/04/2011 00:00:00,520,"17020","Charities and Voluntary Organisations","REDACTED DATA","REBEP","2772914","http://opencorporates.com/companies/gb/2772914",""
"London Borough of Redbridge","http://opendatacommunities.org/doc/london-borough-council/redbridge","6BSOCIALSERV","Social Services","","","REV","Revenue","R2113","SEN and CD - Section 5 and 6 Care Packages","05-THIRD","Third Party Payments","05A","Independent units within the council","6502","Agency Homecare (Payments To Independent Units)","3178947","201201",27/03/2011 00:00:00,520,"17020","Charities and Voluntary Organisations","REDACTED DATA","REDBRIDGE CROSSROADS CAS","2647932","http://opencorporates.com/companies/gb/2647932",""
"London Borough of Redbridge","http://opendatacommunities.org/doc/london-borough-council/redbridge","6BSOCIALSERV","Social Services","6COTHC&FSERV","Other Children's & Families' Services","REV","Revenue","R2168","Albert Road - No recourse to Public Funds","06-TRANSFER","Transfer Payments","06B","Social Services Clients","7055","Habitual Residents","60144866","201201",06/04/2011 00:00:00,520,"32695","Estate Agents and Property Buyers","REDACTED DATA","VERITAS ESTATES MANAGEMENT LTD","7454794","http://opencorporates.com/companies/gb/7454794","103615358"
"London Borough of Redbridge","http://opendatacommunities.org/doc/london-borough-council/redbridge","3BLEACENTFND","LEA Centrally Held School Funds","3CSUPPORTSEN","Supporting Special Education Needs","REV","Revenue","R3022","Home Tuition","01-EMPLOYEES","Employees","01A","Direct employee expenses","4","Agency Staff - Pay","60146460","201201",17/03/2011 00:00:00,433.8,"31230","Employment & Recruitment Agencies","REDACTED DATA","OFFICE ANGELS","1985032","http://opencorporates.com/companies/gb/1985032","524020109"
"London Borough of Redbridge","http://opendatacommunities.org/doc/london-borough-council/redbridge","6BADULTSOCIA","Adult Social Care","6COLDINCMENT","Older People (65 or over) incl. Older Mentally Ill","REV","Revenue","R4197","Oakfield Lodge Dc","04-SUPPLIES","Supplies And Services","04B","Catering","5601","Catering Provisions (Food & Drink)","60145464","201201",08/04/2011 00:00:00,506.79,"16250","Catering Food and Drink Suppliers","REDACTED DATA","BRAKE BROS FOODSERVICE LTD","",,""
"London Borough of Redbridge","http://opendatacommunities.org/doc/london-borough-council/redbridge","6BADULTSOCIA","Adult Social Care","6COLDINCMENT","Older People (65 or over) incl. Older Mentally Ill","REV","Revenue","R4197","Oakfield Lodge Dc","04-SUPPLIES","Supplies And Services","04B","Catering","5601","Catering Provisions (Food & Drink)","60145464","201201",08/04/2011 00:00:00,11.52,"16250","Catering Food and Drink Suppliers","REDACTED DATA","BRAKE BROS FOODSERVICE LTD","",,""
"London Borough of Redbridge","http://opendatacommunities.org/doc/london-borough-council/redbridge","3BLEACENTFND","LEA Centrally Held School Funds","3CSCHSTRATMG","Schools Strategic Management","REV","Revenue","R3279","IT Unit - Trading Acc","04-SUPPLIES","Supplies And Services","04A","Equipment, furniture and materials","5502","Equipment Purchase","60145281","201201",11/04/2011 00:00:00,434,"20703","Computer Systems and Software","REDACTED DATA","PCS BUSINESS SYSTEMS","3082062","http://opencorporates.com/companies/gb/3082062","650773431"
"London Borough of Redbridge","http://opendatacommunities.org/doc/london-borough-council/redbridge","4BMANGT&SUPP","Management & Support Services","4CHIGHRDROUT","Highways/Roads (Routine)","REV","Revenue","R7070","Reactive Maintenance","05-THIRD","Third Party Payments","05H","Private contractors","6915","Contractor Payments","3179395","201201",13/04/2011 00:00:00,434.96,"18632","Civil Engineers","REDACTED DATA","KENSON CONTRACTORS BENINGTON LTD","1314691","http://opencorporates.com/companies/gb/1314691","301629589"
"London Borough of Redbridge","http://opendatacommunities.org/doc/london-borough-council/redbridge","3BNONSCHFUND","Non-School Funding","","","REV","Revenue","R2041","South Childrens Centre","01-EMPLOYEES","Employees","01A","Direct employee expenses","4","Agency Staff - Pay","60146072","201201",13/04/2011 00:00:00,435,"31230","Employment & Recruitment Agencies","REDACTED DATA","PROTOCOL EDUCATION LTD","2926583","http://opencorporates.com/companies/gb/2926583","764390315"
"London Borough of Redbridge","http://opendatacommunities.org/doc/london-borough-council/redbridge","9BNONBVO","Outside the BVACOP Objective Structure","9CNONBVO","Outside the BVACOP Objective Structure","CAP","Capital","C9036","R and R Capital Exp DSO Leases","99-NONBV","Capital, Balance Sheet and Control","50F","Capital - Equipment, Furniture & Fittings","9172","Vehicles","626566","201201",04/04/2011 00:00:00,360,"13330","Car Body Repairs","REDACTED DATA","BARKING PANELCRAFT","",,""
"London Borough of Redbridge","http://opendatacommunities.org/doc/london-borough-council/redbridge","9BNONBVO","Outside the BVACOP Objective Structure","9CNONBVO","Outside the BVACOP Objective Structure","CAP","Capital","C9036","R and R Capital Exp DSO Leases","99-NONBV","Capital, Balance Sheet and Control","50F","Capital - Equipment, Furniture & Fittings","9172","Vehicles","626566","201201",04/04/2011 00:00:00,75,"13330","Car Body Repairs","REDACTED DATA","BARKING PANELCRAFT","",,""
"London Borough of Redbridge","http://opendatacommunities.org/doc/london-borough-council/redbridge","6BSOCIALSERV","Social Services","","","REV","Revenue","R2117","SEN and CD Care and Support Packages Social Care","06-TRANSFER","Transfer Payments","06B","Social Services Clients","7053","Direct Payments","70025578","201201",30/03/2011 00:00:00,522.5,"71855","Social Services","REDACTED DATA","REDACTED DATA","",,""
"London Borough of Redbridge","http://opendatacommunities.org/doc/london-borough-council/redbridge","3BLEACENTFND","LEA Centrally Held School Funds","3CASSURACCES","Assuring Access to Schools","REV","Revenue","R3290","Mus Sch - Delegated","04-SUPPLIES","Supplies And Services","04D","Printing, stationery and general office expenses","5703","Reprographics","60145091","201201",18/03/2011 00:00:00,435.59,"57614","Photocopiers","REDACTED DATA","RICOH UK LTD","473236","http://opencorporates.com/companies/gb/473236","524161280"
"London Borough of Redbridge","http://opendatacommunities.org/doc/london-borough-council/redbridge","9BNONBVO","Outside the BVACOP Objective Structure","9CNONBVO","Outside the BVACOP Objective Structure","REV","Revenue","R5032","Staircase Lighting HRA","02-PREMISES","Premises","02A","Repairs, alteration and maintenance of buildings","3024","Lighting Staircases and Corridors","3177918","201201",16/03/2011 00:00:00,499.18,"30586","Electricity Companies","REDACTED DATA","EDF ENERGY 1 LTD (PO BOX 3956 PLYMOUTH)","",,"523041202"
"London Borough of Redbridge","http://opendatacommunities.org/doc/london-borough-council/redbridge","6BADULTSOCIA","Adult Social Care","6CADLEARNDIS","Adults Under 65 with Learning Disabilities","REV","Revenue","R4297","Out There Project","01-EMPLOYEES","Employees","01A","Direct employee expenses","4","Agency Staff - Pay","60145394","201201",03/04/2011 00:00:00,436.99,"31230","Employment & Recruitment Agencies","REDACTED DATA","AQUANET SERVICES LTD","5297732","http://opencorporates.com/companies/gb/5297732","867966742"
"London Borough of Redbridge","http://opendatacommunities.org/doc/london-borough-council/redbridge","2BCULTUR&REL","Cultural & Related Services","2CLIBRARY","Library Service","REV","Revenue","R2500","Libraries Executive","04-SUPPLIES","Supplies And Services","04K","Miscellaneous expenses","6251","Resource Fund","3177721","201112",25/03/2011 00:00:00,524.45,"9849","Booksellers","REDACTED DATA","PETERS LTD","2452340","http://opencorporates.com/companies/gb/2452340","559124236"
"London Borough of Redbridge","http://opendatacommunities.org/doc/london-borough-council/redbridge","6BADULTSOCIA","Adult Social Care","6CADLEARNDIS","Adults Under 65 with Learning Disabilities","REV","Revenue","R4394","LD - Homecare","05-THIRD","Third Party Payments","05A","Independent units within the council","6502","Agency Homecare (Payments To Independent Units)","90223585","201201",26/04/2011 00:00:00,525,"43419","Home Care Services","REDACTED DATA","ENARA LTD (ENARA COMMUNITY CARE)","65455420","http://opencorporates.com/companies/gb/65455420",""
"London Borough of Redbridge","http://opendatacommunities.org/doc/london-borough-council/redbridge","6BADULTSOCIA","Adult Social Care","6COLDINCMENT","Older People (65 or over) incl. Older Mentally Ill","REV","Revenue","R4391","OP Home Care","05-THIRD","Third Party Payments","05A","Independent units within the council","6502","Agency Homecare (Payments To Independent Units)","90216089","201201",04/04/2011 00:00:00,525,"43419","Home Care Services","REDACTED DATA","HOMECARE & DOMESTIC SERV. LTD.","3161761","http://opencorporates.com/companies/gb/3161761",""
"London Borough of Redbridge","http://opendatacommunities.org/doc/london-borough-council/redbridge","6BADULTSOCIA","Adult Social Care","6COLDINCMENT","Older People (65 or over) incl. Older Mentally Ill","REV","Revenue","R4391","OP Home Care","05-THIRD","Third Party Payments","05A","Independent units within the council","6502","Agency Homecare (Payments To Independent Units)","90222779","201201",21/04/2011 00:00:00,525,"43419","Home Care Services","REDACTED DATA","HOMECARE & DOMESTIC SERV. LTD.","3161761","http://opencorporates.com/companies/gb/3161761",""
"London Borough of Redbridge","http://opendatacommunities.org/doc/london-borough-council/redbridge","6BADULTSOCIA","Adult Social Care","6COLDINCMENT","Older People (65 or over) incl. Older Mentally Ill","REV","Revenue","R4391","OP Home Care","05-THIRD","Third Party Payments","05A","Independent units within the council","6502","Agency Homecare (Payments To Independent Units)","90222780","201201",21/04/2011 00:00:00,525,"43419","Home Care Services","REDACTED DATA","HOMECARE & DOMESTIC SERV. LTD.","3161761","http://opencorporates.com/companies/gb/3161761",""
"London Borough of Redbridge","http://opendatacommunities.org/doc/london-borough-council/redbridge","6BADULTSOCIA","Adult Social Care","6COLDINCMENT","Older People (65 or over) incl. Older Mentally Ill","REV","Revenue","R4391","OP Home Care","05-THIRD","Third Party Payments","05A","Independent units within the council","6502","Agency Homecare (Payments To Independent Units)","90216083","201201",30/03/2011 00:00:00,525,"43419","Home Care Services","REDACTED DATA","HOMECARE & DOMESTIC SERV. LTD.","3161761","http://opencorporates.com/companies/gb/3161761",""
"London Borough of Redbridge","http://opendatacommunities.org/doc/london-borough-council/redbridge","6BADULTSOCIA","Adult Social Care","6COLDINCMENT","Older People (65 or over) incl. Older Mentally Ill","REV","Revenue","R4391","OP Home Care","05-THIRD","Third Party Payments","05A","Independent units within the council","6502","Agency Homecare (Payments To Independent Units)","90218549","201201",11/04/2011 00:00:00,525,"43419","Home Care Services","REDACTED DATA","HOMECARE & DOMESTIC SERV. LTD.","3161761","http://opencorporates.com/companies/gb/3161761",""
"London Borough of Redbridge","http://opendatacommunities.org/doc/london-borough-council/redbridge","2BENVIRONMEN","Environmental Services","2CCEMCREMMOR","Cemetery, Cremation & Mortuary Services","REV","Revenue","R6768","Bereavement Serv Client","05-THIRD","Third Party Payments","05C","Other local authorities","6650","Other Local Authorities","60142327","201112",16/03/2011 00:00:00,525,"42200","Health Authorities","REDACTED DATA","BARKING HAVERING & REDBRIDGE NHS TRUST","",,"654924414"
"London Borough of Redbridge","http://opendatacommunities.org/doc/london-borough-council/redbridge","4BMANGT&SUPP","Management & Support Services","4CHIGHRDROUT","Highways/Roads (Routine)","REV","Revenue","R7070","Reactive Maintenance","05-THIRD","Third Party Payments","05H","Private contractors","6915","Contractor Payments","3179125","201201",13/04/2011 00:00:00,437.68,"18632","Civil Engineers","REDACTED DATA","KENSON CONTRACTORS BENINGTON LTD","1314691","http://opencorporates.com/companies/gb/1314691","301629589"
"London Borough of Redbridge","http://opendatacommunities.org/doc/london-borough-council/redbridge","4BPUBLICTRAN","Public Transport","4CPARKING","Parking Services","REV","Revenue","R7012","Ley St MSCP","01-EMPLOYEES","Employees","01A","Direct employee expenses","4","Agency Staff - Pay","60146402","201201",02/03/2011 00:00:00,437.76,"31230","Employment & Recruitment Agencies","REDACTED DATA","PREMIERE EMPLOYMENT LTD","",,""
"London Borough of Redbridge","http://opendatacommunities.org/doc/london-borough-council/redbridge","6BSOCIALSERV","Social Services","","","REV","Revenue","R2158","Albert Road - Integrated Team Social Care","05-THIRD","Third Party Payments","05H","Private contractors","6920","Investigations","60144103","201112",31/03/2011 00:00:00,525.9,"47830","Legal Services","REDACTED DATA","TERESA O'CARROLL","4236947782(UTR)","http://opencorporates.com/companies/gb/4236947782(UTR)",""
"London Borough of Redbridge","http://opendatacommunities.org/doc/london-borough-council/redbridge","9BNONBVO","Outside the BVACOP Objective Structure","9CNONBVO","Outside the BVACOP Objective Structure","REV","Revenue","R7751","Catering Service","04-SUPPLIES","Supplies And Services","04B","Catering","5601","Catering Provisions (Food & Drink)","60145968","201201",18/04/2011 00:00:00,242.05,"16250","Catering Food and Drink Suppliers","REDACTED DATA","BRAKE BROS FOODSERVICE LTD","",,""
"London Borough of Redbridge","http://opendatacommunities.org/doc/london-borough-council/redbridge","9BNONBVO","Outside the BVACOP Objective Structure","9CNONBVO","Outside the BVACOP Objective Structure","REV","Revenue","R7751","Catering Service","04-SUPPLIES","Supplies And Services","04B","Catering","5601","Catering Provisions (Food & Drink)","60145968","201201",18/04/2011 00:00:00,236.66,"16250","Catering Food and Drink Suppliers","REDACTED DATA","BRAKE BROS FOODSERVICE LTD","",,""
"London Borough of Redbridge","http://opendatacommunities.org/doc/london-borough-council/redbridge","2BENVIRONMEN","Environmental Services","2CSERVMGTSUP","Service Management & Support Services","REV","Revenue","R6001","Cleansing S.Area Admin","04-SUPPLIES","Supplies And Services","04F","Communications and computing","5858","Phones","60144401","201201",04/07/2010 00:00:00,157.17,"51500","Mobile Phones - Personal Numbers","REDACTED DATA","EVERYTHING EVERYWHERE LTD (CAMBERLEY)","2382161","http://opencorporates.com/companies/gb/2382161","771592016"
"London Borough of Redbridge","http://opendatacommunities.org/doc/london-borough-council/redbridge","9BNONBVO","Outside the BVACOP Objective Structure","9CNONBVO","Outside the BVACOP Objective Structure","REV","Revenue","R7602","Routine Sweeping DSO","04-SUPPLIES","Supplies And Services","04F","Communications and computing","5858","Phones","60144401","201201",04/07/2010 00:00:00,117.2,"51500","Mobile Phones - Personal Numbers","REDACTED DATA","EVERYTHING EVERYWHERE LTD (CAMBERLEY)","2382161","http://opencorporates.com/companies/gb/2382161","771592016"
"London Borough of Redbridge","http://opendatacommunities.org/doc/london-borough-council/redbridge","9BNONBVO","Outside the BVACOP Objective Structure","9CNONBVO","Outside the BVACOP Objective Structure","REV","Revenue","R7601","Street Sweeping Admn","04-SUPPLIES","Supplies And Services","04F","Communications and computing","5858","Phones","60144401","201201",04/07/2010 00:00:00,82.19,"51500","Mobile Phones - Personal Numbers","REDACTED DATA","EVERYTHING EVERYWHERE LTD (CAMBERLEY)","2382161","http://opencorporates.com/companies/gb/2382161","771592016"
"London Borough of Redbridge","http://opendatacommunities.org/doc/london-borough-council/redbridge","9BNONBVO","Outside the BVACOP Objective Structure","9CNONBVO","Outside the BVACOP Objective Structure","REV","Revenue","R7652","Contract 3","04-SUPPLIES","Supplies And Services","04F","Communications and computing","5858","Phones","60144401","201201",04/07/2010 00:00:00,54.33,"51500","Mobile Phones - Personal Numbers","REDACTED DATA","EVERYTHING EVERYWHERE LTD (CAMBERLEY)","2382161","http://opencorporates.com/companies/gb/2382161","771592016"
"London Borough of Redbridge","http://opendatacommunities.org/doc/london-borough-council/redbridge","1BOTHEROPI&E","Other Operating Income & Expenditure","1CTRADSURDEF","Trading Account Surpluses & Deficits","REV","Revenue","R9053","Contract Consultancy Unit","04-SUPPLIES","Supplies And Services","04F","Communications and computing","5858","Phones","60144401","201201",04/07/2010 00:00:00,36.92,"51500","Mobile Phones - Personal Numbers","REDACTED DATA","EVERYTHING EVERYWHERE LTD (CAMBERLEY)","2382161","http://opencorporates.com/companies/gb/2382161","771592016"
"London Borough of Redbridge","http://opendatacommunities.org/doc/london-borough-council/redbridge","2BCULTUR&REL","Cultural & Related Services","2COPENSPACES","Open Spaces","REV","Revenue","R6250","H Forest-Formal Area","01-EMPLOYEES","Employees","01A","Direct employee expenses","409","Agency Staff Pay","60145727","201201",12/04/2011 00:00:00,438.48,"31230","Employment & Recruitment Agencies","REDACTED DATA","PREMIER WORK SUPPORT LTD","5139457","http://opencorporates.com/companies/gb/5139457","345787906"
"London Borough of Redbridge","http://opendatacommunities.org/doc/london-borough-council/redbridge","3BNONSCHFUND","Non-School Funding","","","REV","Revenue","R2036","TLC Hainault DSG","01-EMPLOYEES","Employees","01A","Direct employee expenses","4","Agency Staff - Pay","60145201","201201",12/01/2011 00:00:00,448,"31230","Employment & Recruitment Agencies","REDACTED DATA","PROTOCOL EDUCATION LTD","2926583","http://opencorporates.com/companies/gb/2926583","764390315"
"London Borough of Redbridge","http://opendatacommunities.org/doc/london-borough-council/redbridge","9BNONBVO","Outside the BVACOP Objective Structure","9CNONBVO","Outside the BVACOP Objective Structure","REV","Revenue","R5031","Central Heating HRA","02-PREMISES","Premises","02B","Energy costs","4001","Electricity - "Economy 7" Tariff","3177871","201201",07/02/2011 00:00:00,503.66,"30586","Electricity Companies","REDACTED DATA","EDF ENERGY 1 LTD (PO BOX 3956 PLYMOUTH)","",,"523041202"
"London Borough of Redbridge","http://opendatacommunities.org/doc/london-borough-council/redbridge","9BNONBVO","Outside the BVACOP Objective Structure","9CNONBVO","Outside the BVACOP Objective Structure","REV","Revenue","R5031","Central Heating HRA","02-PREMISES","Premises","02B","Energy costs","4001","Electricity - "Economy 7" Tariff","3177871","201201",07/02/2011 00:00:00,-2.1,"30586","Electricity Companies","REDACTED DATA","EDF ENERGY 1 LTD (PO BOX 3956 PLYMOUTH)","",,"523041202"
"London Borough of Redbridge","http://opendatacommunities.org/doc/london-borough-council/redbridge","4BMANGT&SUPP","Management & Support Services","4CTRANSPP&S","Transport Planning, Policy & Strategy","REV","Revenue","R7095","Traffic Regulation Orders","04-SUPPLIES","Supplies And Services","04K","Miscellaneous expenses","6280","Miscellaneous Expenditure","60143784","201112",28/03/2011 00:00:00,443.91,"1961","Advertising - Agencies","REDACTED DATA","TMP (UK) LTD","5648039","http://opencorporates.com/companies/gb/5648039","872904502"
"London Borough of Redbridge","http://opendatacommunities.org/doc/london-borough-council/redbridge","4BMANGT&SUPP","Management & Support Services","4CTRANSPP&S","Transport Planning, Policy & Strategy","REV","Revenue","R7095","Traffic Regulation Orders","04-SUPPLIES","Supplies And Services","04K","Miscellaneous expenses","6280","Miscellaneous Expenditure","60143775","201112",28/03/2011 00:00:00,443.91,"1961","Advertising - Agencies","REDACTED DATA","TMP (UK) LTD","5648039","http://opencorporates.com/companies/gb/5648039","872904502"
"London Borough of Redbridge","http://opendatacommunities.org/doc/london-borough-council/redbridge","4BMANGT&SUPP","Management & Support Services","4CTRANSPP&S","Transport Planning, Policy & Strategy","REV","Revenue","R7095","Traffic Regulation Orders","04-SUPPLIES","Supplies And Services","04K","Miscellaneous expenses","6280","Miscellaneous Expenditure","60143769","201112",28/03/2011 00:00:00,443.91,"1961","Advertising - Agencies","REDACTED DATA","TMP (UK) LTD","5648039","http://opencorporates.com/companies/gb/5648039","872904502"
"London Borough of Redbridge","http://opendatacommunities.org/doc/london-borough-council/redbridge","2BENVIRONMEN","Environmental Services","2CSTCLEANS","Street Cleansing (not chargeable to Highways)","REV","Revenue","R6061","Impounded Vehicles","05-THIRD","Third Party Payments","05H","Private contractors","6915","Contractor Payments","60146021","201201",19/04/2011 00:00:00,440,"13450","Car Breakers and Dismantlers","REDACTED DATA","REDCORN LTD","2768567","http://opencorporates.com/companies/gb/2768567","628052548"
"London Borough of Redbridge","http://opendatacommunities.org/doc/london-borough-council/redbridge","6BADULTSOCIA","Adult Social Care","6COLDINCMENT","Older People (65 or over) incl. Older Mentally Ill","REV","Revenue","R4211","Older People Direct Payments","06-TRANSFER","Transfer Payments","06B","Social Services Clients","7053","Direct Payments","3178466","201201",11/04/2011 00:00:00,542.4,"43419","Home Care Services","REDACTED DATA","CARMEL M J FENECH","",,""
"London Borough of Redbridge","http://opendatacommunities.org/doc/london-borough-council/redbridge","6BADULTSOCIA","Adult Social Care","6COLDINCMENT","Older People (65 or over) incl. Older Mentally Ill","REV","Revenue","R4211","Older People Direct Payments","09-INCOME","Income","09C","Customer & Client Receipts","8553","Care Package Charges","3178466","201201",11/04/2011 00:00:00,-12.72,"43419","Home Care Services","REDACTED DATA","CARMEL M J FENECH","",,""
"London Borough of Redbridge","http://opendatacommunities.org/doc/london-borough-council/redbridge","2BCULTUR&REL","Cultural & Related Services","2COPENSPACES","Open Spaces","REV","Revenue","R6250","H Forest-Formal Area","01-EMPLOYEES","Employees","01A","Direct employee expenses","409","Agency Staff Pay","60144633","201201",29/03/2011 00:00:00,441.53,"31230","Employment & Recruitment Agencies","REDACTED DATA","PREMIER WORK SUPPORT LTD","5139457","http://opencorporates.com/companies/gb/5139457","345787906"
"London Borough of Redbridge","http://opendatacommunities.org/doc/london-borough-council/redbridge","6BADULTSOCIA","Adult Social Care","6CADLEARNDIS","Adults Under 65 with Learning Disabilities","REV","Revenue","R4240","Argyle Project","02-PREMISES","Premises","02A","Repairs, alteration and maintenance of buildings","3040","Tenant Maintenance","783871","201201",30/03/2011 00:00:00,442,"30350","Electrical Testing & Inspecting","REDACTED DATA","RGE SERVICES LTD","3305853","http://opencorporates.com/companies/gb/3305853","919118812"
"London Borough of Redbridge","http://opendatacommunities.org/doc/london-borough-council/redbridge","3BNONSCHFUND","Non-School Funding","","","REV","Revenue","R3943","Childcare development Team","04-SUPPLIES","Supplies And Services","04K","Miscellaneous expenses","6227","Furniture Removal & Storage","60146536","201201",28/04/2011 00:00:00,530.84,"74100","Storage Services","REDACTED DATA","BIG YELLOW SELF STORAGE CO LTD","",,"915892884"
"London Borough of Redbridge","http://opendatacommunities.org/doc/london-borough-council/redbridge","2BCULTUR&REL","Cultural & Related Services","2CLIBRARY","Library Service","REV","Revenue","R2522","Wanstead Branch Lib","01-EMPLOYEES","Employees","01A","Direct employee expenses","409","Agency Staff Pay","60145134","201201",03/04/2011 00:00:00,442.48,"31230","Employment & Recruitment Agencies","REDACTED DATA","PLAN PERSONNEL","",,""
"London Borough of Redbridge","http://opendatacommunities.org/doc/london-borough-council/redbridge","6BADULTSOCIA","Adult Social Care","6CADPHYSDIS","Adults Under 65 with Phys Disab or Sensory Impair","REV","Revenue","R4214","PD Direct Payments","06-TRANSFER","Transfer Payments","06B","Social Services Clients","7053","Direct Payments","3178418","201201",11/04/2011 00:00:00,531.12,"56800","Payroll Services","REDACTED DATA","HUMAN MANAGEMENT ASSISTANCE-CLIENT ACCOUNT","4752026","http://opencorporates.com/companies/gb/4752026","815230071"
"London Borough of Redbridge","http://opendatacommunities.org/doc/london-borough-council/redbridge","6BADULTSOCIA","Adult Social Care","6CADPHYSDIS","Adults Under 65 with Phys Disab or Sensory Impair","REV","Revenue","R4214","PD Direct Payments","06-TRANSFER","Transfer Payments","06B","Social Services Clients","7053","Direct Payments","3178737","201201",11/04/2011 00:00:00,531.12,"56800","Payroll Services","REDACTED DATA","HUMAN MANAGEMENT ASSISTANCE-CLIENT ACCOUNT","4752026","http://opencorporates.com/companies/gb/4752026","815230071"
"London Borough of Redbridge","http://opendatacommunities.org/doc/london-borough-council/redbridge","6BADULTSOCIA","Adult Social Care","6CADPHYSDIS","Adults Under 65 with Phys Disab or Sensory Impair","REV","Revenue","R4214","PD Direct Payments","06-TRANSFER","Transfer Payments","06B","Social Services Clients","7053","Direct Payments","3178529","201201",11/04/2011 00:00:00,531.12,"90005","Home Care Services DP","REDACTED DATA","REDACTED DATA","",,""
"London Borough of Redbridge","http://opendatacommunities.org/doc/london-borough-council/redbridge","6BADULTSOCIA","Adult Social Care","6CADMENHLTH","Adults Under 65 with Mental Health Needs","REV","Revenue","R4213","MH Direct Payments","06-TRANSFER","Transfer Payments","06B","Social Services Clients","7053","Direct Payments","3178573","201201",11/04/2011 00:00:00,636.36,"56800","Payroll Services","REDACTED DATA","HUMAN MANAGEMENT ASSISTANCE-CLIENT ACCOUNT","4752026","http://opencorporates.com/companies/gb/4752026","815230071"
"London Borough of Redbridge","http://opendatacommunities.org/doc/london-borough-council/redbridge","6BADULTSOCIA","Adult Social Care","6CADMENHLTH","Adults Under 65 with Mental Health Needs","REV","Revenue","R4213","MH Direct Payments","09-INCOME","Income","09C","Customer & Client Receipts","8553","Care Package Charges","3178573","201201",11/04/2011 00:00:00,-105.16,"56800","Payroll Services","REDACTED DATA","HUMAN MANAGEMENT ASSISTANCE-CLIENT ACCOUNT","4752026","http://opencorporates.com/companies/gb/4752026","815230071"
"London Borough of Redbridge","http://opendatacommunities.org/doc/london-borough-council/redbridge","6BADULTSOCIA","Adult Social Care","6CADLEARNDIS","Adults Under 65 with Learning Disabilities","REV","Revenue","R4293","Woodbine Club House","01-EMPLOYEES","Employees","01A","Direct employee expenses","4","Agency Staff - Pay","60145686","201201",10/04/2011 00:00:00,442.75,"31230","Employment & Recruitment Agencies","REDACTED DATA","AQUANET SERVICES LTD","5297732","http://opencorporates.com/companies/gb/5297732","867966742"
"London Borough of Redbridge","http://opendatacommunities.org/doc/london-borough-council/redbridge","6BADULTSOCIA","Adult Social Care","6CADPHYSDIS","Adults Under 65 with Phys Disab or Sensory Impair","REV","Revenue","R4214","PD Direct Payments","06-TRANSFER","Transfer Payments","06B","Social Services Clients","7053","Direct Payments","3178579","201201",11/04/2011 00:00:00,542.4,"56800","Payroll Services","REDACTED DATA","HUMAN MANAGEMENT ASSISTANCE-CLIENT ACCOUNT","4752026","http://opencorporates.com/companies/gb/4752026","815230071"
"London Borough of Redbridge","http://opendatacommunities.org/doc/london-borough-council/redbridge","6BADULTSOCIA","Adult Social Care","6CADPHYSDIS","Adults Under 65 with Phys Disab or Sensory Impair","REV","Revenue","R4214","PD Direct Payments","09-INCOME","Income","09C","Customer & Client Receipts","8553","Care Package Charges","3178579","201201",11/04/2011 00:00:00,-10.2,"56800","Payroll Services","REDACTED DATA","HUMAN MANAGEMENT ASSISTANCE-CLIENT ACCOUNT","4752026","http://opencorporates.com/companies/gb/4752026","815230071"
"London Borough of Redbridge","http://opendatacommunities.org/doc/london-borough-council/redbridge","6BADULTSOCIA","Adult Social Care","6COLDINCMENT","Older People (65 or over) incl. Older Mentally Ill","REV","Revenue","R4391","OP Home Care","05-THIRD","Third Party Payments","05A","Independent units within the council","6502","Agency Homecare (Payments To Independent Units)","90215964","201201",23/03/2011 00:00:00,532.51,"43419","Home Care Services","REDACTED DATA","FASTFLOW DE VERE CARE","",,""
"London Borough of Redbridge","http://opendatacommunities.org/doc/london-borough-council/redbridge","1BOTHEROPI&E","Other Operating Income & Expenditure","1CTRADSURDEF","Trading Account Surpluses & Deficits","REV","Revenue","R9830","Print Team","04-SUPPLIES","Supplies And Services","04A","Equipment, furniture and materials","5510","Materials","60146255","201201",20/04/2011 00:00:00,444,"55980","Paper & Board Supplies","REDACTED DATA","DENIAN OFFICE LTD","1378558","http://opencorporates.com/companies/gb/1378558","299590489"
"London Borough of Redbridge","http://opendatacommunities.org/doc/london-borough-council/redbridge","4BPUBLICTRAN","Public Transport","4CPARKING","Parking Services","REV","Revenue","R7036","On Street Parking Works","05-THIRD","Third Party Payments","05H","Private contractors","6915","Contractor Payments","3179810","201201",13/04/2011 00:00:00,444,"66370","Sand, Gravel & Other Aggregates","REDACTED DATA","LAFARGE AGGREGATES LTD","297905","http://opencorporates.com/companies/gb/297905","210479684"
"London Borough of Redbridge","http://opendatacommunities.org/doc/london-borough-council/redbridge","6BADULTSOCIA","Adult Social Care","6CADLEARNDIS","Adults Under 65 with Learning Disabilities","REV","Revenue","R4293","Woodbine Club House","01-EMPLOYEES","Employees","01A","Direct employee expenses","4","Agency Staff - Pay","60145695","201201",10/04/2011 00:00:00,444.39,"31230","Employment & Recruitment Agencies","REDACTED DATA","PLAN PERSONNEL","",,""
"London Borough of Redbridge","http://opendatacommunities.org/doc/london-borough-council/redbridge","2BCULTUR&REL","Cultural & Related Services","2COPENSPACES","Open Spaces","REV","Revenue","R6250","H Forest-Formal Area","04-SUPPLIES","Supplies And Services","04D","Printing, stationery and general office expenses","5703","Reprographics","60144522","201201",01/03/2011 00:00:00,445,"47650","Leasing Services","REDACTED DATA","SIEMENS FINANCIAL SERVICES LTD","646166","http://opencorporates.com/companies/gb/646166","222438292"
"London Borough of Redbridge","http://opendatacommunities.org/doc/london-borough-council/redbridge","1BOTHEROPI&E","Other Operating Income & Expenditure","1CTRADSURDEF","Trading Account Surpluses & Deficits","REV","Revenue","R9586","Ilford Chambers","04-SUPPLIES","Supplies And Services","04H","Grants and subscriptions","5954","Professional Fees","60142765","201112",18/03/2011 00:00:00,445,"32695","Estate Agents and Property Buyers","REDACTED DATA","SPENCER CRAIG PARTNERSHIP","5500269","http://opencorporates.com/companies/gb/5500269",""
"London Borough of Redbridge","http://opendatacommunities.org/doc/london-borough-council/redbridge","3BNONSCHFUND","Non-School Funding","","","REV","Revenue","R2043","North Childrens Centre","02-PREMISES","Premises","02H","Cleaning and domestic supplies","4620","Cleaning Contract Payments","60144335","201201",31/03/2011 00:00:00,445.3,"15269","Cleaning Services - Commercial","REDACTED DATA","KETRAY CONTRACT CLEANING LTD","3431457","http://opencorporates.com/companies/gb/3431457","681517328"
"London Borough of Redbridge","http://opendatacommunities.org/doc/london-borough-council/redbridge","9BNONBVO","Outside the BVACOP Objective Structure","9CNONBVO","Outside the BVACOP Objective Structure","REV","Revenue","R5132","Repairs and Maintenance - Other","02-PREMISES","Premises","02A","Repairs, alteration and maintenance of buildings","3038","Service Repairs","70025920","201201",28/02/2011 00:00:00,445.32,"47960","Lifts - Servicing & Repairs","REDACTED DATA","APOLLO LIFTS LTD","1449230","http://opencorporates.com/companies/gb/1449230","245558443"
"London Borough of Redbridge","http://opendatacommunities.org/doc/london-borough-council/redbridge","2BCULTUR&REL","Cultural & Related Services","2CLIBRARY","Library Service","REV","Revenue","R2510","Central Lending Libry","01-EMPLOYEES","Employees","01A","Direct employee expenses","409","Agency Staff Pay","60145903","201201",06/03/2011 00:00:00,445.35,"31230","Employment & Recruitment Agencies","REDACTED DATA","PLAN PERSONNEL","",,""
"London Borough of Redbridge","http://opendatacommunities.org/doc/london-borough-council/redbridge","2BCULTUR&REL","Cultural & Related Services","2CCULTUR&HER","Culture & Heritage","REV","Revenue","R6360","Valentines Park Specialist GM Works","02-PREMISES","Premises","02I","Grounds maintenance costs","4750","Grounds Maintenance","60145475","201201",31/03/2011 00:00:00,445.5,"43760","Horticultural Equipment & Supplies","REDACTED DATA","AMENITY HORTICULTURAL SERVICES LIMITED","2803955","http://opencorporates.com/companies/gb/2803955","621583942"
"London Borough of Redbridge","http://opendatacommunities.org/doc/london-borough-council/redbridge","2BCULTUR&REL","Cultural & Related Services","2CCULTUR&HER","Culture & Heritage","REV","Revenue","R6360","Valentines Park Specialist GM Works","02-PREMISES","Premises","02I","Grounds maintenance costs","4750","Grounds Maintenance","60145474","201201",31/03/2011 00:00:00,445.5,"43760","Horticultural Equipment & Supplies","REDACTED DATA","AMENITY HORTICULTURAL SERVICES LIMITED","2803955","http://opencorporates.com/companies/gb/2803955","621583942"
"London Borough of Redbridge","http://opendatacommunities.org/doc/london-borough-council/redbridge","9BNONBVO","Outside the BVACOP Objective Structure","9CNONBVO","Outside the BVACOP Objective Structure","REV","Revenue","R7701","Veh Admin O'Head A/C","04-SUPPLIES","Supplies And Services","04A","Equipment, furniture and materials","5502","Equipment Purchase","60145048","201201",02/04/2011 00:00:00,445.51,"89564","Electrical Goods - Mnfrs and Wholesalers","REDACTED DATA","DSG RETAIL LTD(PC WORLD BUSINESS)","504877","http://opencorporates.com/companies/gb/504877","1399209"
"London Borough of Redbridge","http://opendatacommunities.org/doc/london-borough-council/redbridge","6BADULTSOCIA","Adult Social Care","6COTHADSERV","Other Adult Services","REV","Revenue","R4389","PCT Older Person Home Care","05-THIRD","Third Party Payments","05A","Independent units within the council","6502","Agency Homecare (Payments To Independent Units)","90216293","201201",30/03/2011 00:00:00,534.72,"53280","Nursing Agencies","REDACTED DATA","IMMACULATE HEALTHCARE SERVICES LIMITED","",,""
"London Borough of Redbridge","http://opendatacommunities.org/doc/london-borough-council/redbridge","6BADULTSOCIA","Adult Social Care","6COTHADSERV","Other Adult Services","REV","Revenue","R4389","PCT Older Person Home Care","05-THIRD","Third Party Payments","05A","Independent units within the council","6502","Agency Homecare (Payments To Independent Units)","90218705","201201",05/04/2011 00:00:00,534.72,"53280","Nursing Agencies","REDACTED DATA","IMMACULATE HEALTHCARE SERVICES LIMITED","",,""
"London Borough of Redbridge","http://opendatacommunities.org/doc/london-borough-council/redbridge","1BOTHEROPI&E","Other Operating Income & Expenditure","1CTRADSURDEF","Trading Account Surpluses & Deficits","REV","Revenue","R9601","Lynton House","02-PREMISES","Premises","02A","Repairs, alteration and maintenance of buildings","3037","Service Contracts","783919","201201",01/02/2011 00:00:00,446,"79650","Traffic Management Systems","REDACTED DATA","APT CONTROLS LTD","2754698","http://opencorporates.com/companies/gb/2754698","722769908"
"London Borough of Redbridge","http://opendatacommunities.org/doc/london-borough-council/redbridge","4BMANGT&SUPP","Management & Support Services","4CHIGHRDROUT","Highways/Roads (Routine)","REV","Revenue","R7070","Reactive Maintenance","05-THIRD","Third Party Payments","05H","Private contractors","6915","Contractor Payments","3179681","201201",13/04/2011 00:00:00,446.19,"18632","Civil Engineers","REDACTED DATA","KENSON CONTRACTORS BENINGTON LTD","1314691","http://opencorporates.com/companies/gb/1314691","301629589"
"London Borough of Redbridge","http://opendatacommunities.org/doc/london-borough-council/redbridge","4BMANGT&SUPP","Management & Support Services","4CHIGHRDROUT","Highways/Roads (Routine)","REV","Revenue","R7070","Reactive Maintenance","05-THIRD","Third Party Payments","05H","Private contractors","6915","Contractor Payments","3179574","201201",13/04/2011 00:00:00,446.19,"18632","Civil Engineers","REDACTED DATA","KENSON CONTRACTORS BENINGTON LTD","1314691","http://opencorporates.com/companies/gb/1314691","301629589"
"London Borough of Redbridge","http://opendatacommunities.org/doc/london-borough-council/redbridge","3BNONSCHFUND","Non-School Funding","","","REV","Revenue","R2035","FIND DSG","04-SUPPLIES","Supplies And Services","04A","Equipment, furniture and materials","5510","Materials","60143576","201112",23/03/2011 00:00:00,446.24,"29340","Educational Equipment & Supplies","REDACTED DATA","TTS GROUP LIMITED(TECHNOLOGY TEACHING SYSTEMS)","4373761","http://opencorporates.com/companies/gb/4373761","789963047"
"London Borough of Redbridge","http://opendatacommunities.org/doc/london-borough-council/redbridge","6BADULTSOCIA","Adult Social Care","6CADPHYSDIS","Adults Under 65 with Phys Disab or Sensory Impair","REV","Revenue","R4138","Integrated Community Equipment Services (ICES)","04-SUPPLIES","Supplies And Services","04K","Miscellaneous expenses","6239","Occupational Therapy Equip","60144908","201201",31/03/2011 00:00:00,446.49,"51520","Mobility Equipment","REDACTED DATA","MILLBROOK HEALTHCARE LTD","833987","http://opencorporates.com/companies/gb/833987","675991080"
"London Borough of Redbridge","http://opendatacommunities.org/doc/london-borough-council/redbridge","6BADULTSOCIA","Adult Social Care","6CCHILLOOKED","Children Looked After","REV","Revenue","R2119","CLAFH - Supportive Accommodation","05-THIRD","Third Party Payments","05H","Private contractors","6910","Care Packages","60145004","201201",08/04/2011 00:00:00,535.8,"1266","Accommodation Agencies - Residential","REDACTED DATA","EAST LIVING","",,""
"London Borough of Redbridge","http://opendatacommunities.org/doc/london-borough-council/redbridge","3BOPTIONHLDG","Optional Holding Accounts","3CYOUTH","Youth Service","REV","Revenue","R3268","Youth Opportunity Fund","04-SUPPLIES","Supplies And Services","04A","Equipment, furniture and materials","5502","Equipment Purchase","60144494","201201",31/03/2011 00:00:00,447.53,"15970","Catalogue Showrooms","REDACTED DATA","ARGOS BUSINESS SOLUTIONS","1081551","http://opencorporates.com/companies/gb/1081551","145899025"
"London Borough of Redbridge","http://opendatacommunities.org/doc/london-borough-council/redbridge","6BSOCIALSERV","Social Services","","","REV","Revenue","R2113","SEN and CD - Section 5 and 6 Care Packages","05-THIRD","Third Party Payments","05A","Independent units within the council","6502","Agency Homecare (Payments To Independent Units)","3178321","201201",21/03/2011 00:00:00,537.2,"43419","Home Care Services","REDACTED DATA","FASTFLOW DE VERE CARE","",,""
"London Borough of Redbridge","http://opendatacommunities.org/doc/london-borough-council/redbridge","2BENVIRONMEN","Environmental Services","2CENVTLHEALT","Environmental Health","REV","Revenue","R6759","ASB","04-SUPPLIES","Supplies And Services","04A","Equipment, furniture and materials","5502","Equipment Purchase","60146486","201201",26/04/2011 00:00:00,448,"56214","Breakdown and Recovery","REDACTED DATA","D AND G CARS","",,""
"London Borough of Redbridge","http://opendatacommunities.org/doc/london-borough-council/redbridge","6BSOCIALSERV","Social Services","","","REV","Revenue","R2113","SEN and CD - Section 5 and 6 Care Packages","05-THIRD","Third Party Payments","05A","Independent units within the council","6502","Agency Homecare (Payments To Independent Units)","70025873","201201",25/03/2011 00:00:00,537.87,"43419","Home Care Services","REDACTED DATA","REDSPOT HOMECARE LTD","3966475","http://opencorporates.com/companies/gb/3966475",""
"London Borough of Redbridge","http://opendatacommunities.org/doc/london-borough-council/redbridge","6BSOCIALSERV","Social Services","","","REV","Revenue","R2113","SEN and CD - Section 5 and 6 Care Packages","05-THIRD","Third Party Payments","05A","Independent units within the council","6502","Agency Homecare (Payments To Independent Units)","70026516","201201",21/04/2011 00:00:00,537.87,"43419","Home Care Services","REDACTED DATA","REDSPOT HOMECARE LTD","3966475","http://opencorporates.com/companies/gb/3966475",""
"London Borough of Redbridge","http://opendatacommunities.org/doc/london-borough-council/redbridge","6BSOCIALSERV","Social Services","","","REV","Revenue","R2113","SEN and CD - Section 5 and 6 Care Packages","05-THIRD","Third Party Payments","05A","Independent units within the council","6502","Agency Homecare (Payments To Independent Units)","70026365","201201",15/04/2011 00:00:00,537.87,"43419","Home Care Services","REDACTED DATA","REDSPOT HOMECARE LTD","3966475","http://opencorporates.com/companies/gb/3966475",""
"London Borough of Redbridge","http://opendatacommunities.org/doc/london-borough-council/redbridge","6BSOCIALSERV","Social Services","","","REV","Revenue","R2113","SEN and CD - Section 5 and 6 Care Packages","05-THIRD","Third Party Payments","05A","Independent units within the council","6502","Agency Homecare (Payments To Independent Units)","70026364","201201",08/04/2011 00:00:00,537.87,"43419","Home Care Services","REDACTED DATA","REDSPOT HOMECARE LTD","3966475","http://opencorporates.com/companies/gb/3966475",""
"London Borough of Redbridge","http://opendatacommunities.org/doc/london-borough-council/redbridge","6BSOCIALSERV","Social Services","","","REV","Revenue","R2117","SEN and CD Care and Support Packages Social Care","05-THIRD","Third Party Payments","05A","Independent units within the council","6502","Agency Homecare (Payments To Independent Units)","70026288","201201",29/03/2011 00:00:00,537.87,"43419","Home Care Services","REDACTED DATA","REDSPOT HOMECARE LTD","3966475","http://opencorporates.com/companies/gb/3966475",""
"London Borough of Redbridge","http://opendatacommunities.org/doc/london-borough-council/redbridge","2BCULTUR&REL","Cultural & Related Services","2CLIBRARY","Library Service","REV","Revenue","R2522","Wanstead Branch Lib","01-EMPLOYEES","Employees","01A","Direct employee expenses","409","Agency Staff Pay","60145136","201201",03/04/2011 00:00:00,449.11,"31230","Employment & Recruitment Agencies","REDACTED DATA","PLAN PERSONNEL","",,""
"London Borough of Redbridge","http://opendatacommunities.org/doc/london-borough-council/redbridge","1BOTHEROPI&E","Other Operating Income & Expenditure","1CTRADSURDEF","Trading Account Surpluses & Deficits","REV","Revenue","R9576","Broadway Chambers Service Charge Account","04-SUPPLIES","Supplies And Services","04C","Clothes, uniform and laundry","5652","Towel Services","60146230","201201",22/03/2011 00:00:00,449.28,"66520","Sanitary Services","REDACTED DATA","OCS GROUP UK LTD T/A CANNON","3056469","http://opencorporates.com/companies/gb/3056469","238034379"
"London Borough of Redbridge","http://opendatacommunities.org/doc/london-borough-council/redbridge","6BADULTSOCIA","Adult Social Care","6CCHILLOOKED","Children Looked After","REV","Revenue","R2118","CLAFH - 2-4 Bathurst Road","01-EMPLOYEES","Employees","01A","Direct employee expenses","4","Agency Staff - Pay","60146435","201201",19/04/2011 00:00:00,449.6,"31230","Employment & Recruitment Agencies","REDACTED DATA","CAPITA SHG RESOURCING","",,"618184140"
"London Borough of Redbridge","http://opendatacommunities.org/doc/london-borough-council/redbridge","4BMANGT&SUPP","Management & Support Services","4CHIGHRDROUT","Highways/Roads (Routine)","REV","Revenue","R7070","Reactive Maintenance","05-THIRD","Third Party Payments","05H","Private contractors","6915","Contractor Payments","3179392","201201",13/04/2011 00:00:00,449.76,"18632","Civil Engineers","REDACTED DATA","KENSON CONTRACTORS BENINGTON LTD","1314691","http://opencorporates.com/companies/gb/1314691","301629589"
"London Borough of Redbridge","http://opendatacommunities.org/doc/london-borough-council/redbridge","2BENVIRONMEN","Environmental Services","2CSTCLEANS","Street Cleansing (not chargeable to Highways)","REV","Revenue","R6062","Graffiti and Flyposter Removal","05-THIRD","Third Party Payments","05H","Private contractors","6915","Contractor Payments","60146030","201201",19/04/2011 00:00:00,540,"42041","Handyman Services","REDACTED DATA","M C HUGHES","",,""
"London Borough of Redbridge","http://opendatacommunities.org/doc/london-borough-council/redbridge","2BENVIRONMEN","Environmental Services","2CSTCLEANS","Street Cleansing (not chargeable to Highways)","REV","Revenue","R6060","Street Scene Enforcement","04-SUPPLIES","Supplies And Services","04K","Miscellaneous expenses","6263","Supportive Activities","60145215","201201",25/03/2011 00:00:00,450,"0","Not Classified","REDACTED DATA","COMPANY SEARCHES","160043","http://opencorporates.com/companies/gb/160043","505189158"
"London Borough of Redbridge","http://opendatacommunities.org/doc/london-borough-council/redbridge","3BLEACENTFND","LEA Centrally Held School Funds","3CNONDELGRNT","Non-Delegated School Grants","REV","Revenue","R3920","14 - 19 Development Projects (LSC)","04-SUPPLIES","Supplies And Services","04A","Equipment, furniture and materials","5502","Equipment Purchase","60146038","201201",19/04/2011 00:00:00,450,"12100","Business and Management Consultants","REDACTED DATA","BURRSCOMBE LTD","5049642","http://opencorporates.com/companies/gb/5049642","837612125"
"London Borough of Redbridge","http://opendatacommunities.org/doc/london-borough-council/redbridge","3BLEACENTFND","LEA Centrally Held School Funds","3CSUPPORTSEN","Supporting Special Education Needs","REV","Revenue","R3028","Training Social Care","01-EMPLOYEES","Employees","01B","Indirect employee expenses","2403","External Training","60146318","201201",20/04/2011 00:00:00,450,"79980","Training Services","REDACTED DATA","STTAC LTD","4776544","http://opencorporates.com/companies/gb/4776544","840333850"
"London Borough of Redbridge","http://opendatacommunities.org/doc/london-borough-council/redbridge","3BNONSCHFUND","Non-School Funding","","","REV","Revenue","R3940","Thackery/All Saints CC","01-EMPLOYEES","Employees","01A","Direct employee expenses","4","Agency Staff - Pay","60146437","201201",27/04/2011 00:00:00,450,"31230","Employment & Recruitment Agencies","REDACTED DATA","PROTOCOL EDUCATION LTD","2926583","http://opencorporates.com/companies/gb/2926583","764390315"
"London Borough of Redbridge","http://opendatacommunities.org/doc/london-borough-council/redbridge","6BADULTSOCIA","Adult Social Care","6CADPHYSDIS","Adults Under 65 with Phys Disab or Sensory Impair","REV","Revenue","R4214","PD Direct Payments","06-TRANSFER","Transfer Payments","06B","Social Services Clients","7053","Direct Payments","3178646","201201",11/04/2011 00:00:00,542.4,"90005","Home Care Services DP","REDACTED DATA","REDACTED DATA","",,""
"London Borough of Redbridge","http://opendatacommunities.org/doc/london-borough-council/redbridge","6BADULTSOCIA","Adult Social Care","6CADPHYSDIS","Adults Under 65 with Phys Disab or Sensory Impair","REV","Revenue","R4214","PD Direct Payments","09-INCOME","Income","09C","Customer & Client Receipts","8553","Care Package Charges","3178646","201201",11/04/2011 00:00:00,-2.16,"90005","Home Care Services DP","REDACTED DATA","REDACTED DATA","",,""
"London Borough of Redbridge","http://opendatacommunities.org/doc/london-borough-council/redbridge","4BPUBLICTRAN","Public Transport","4CPARKING","Parking Services","REV","Revenue","R7012","Ley St MSCP","01-EMPLOYEES","Employees","01A","Direct employee expenses","4","Agency Staff - Pay","60146403","201201",09/03/2011 00:00:00,450.22,"31230","Employment & Recruitment Agencies","REDACTED DATA","PREMIERE EMPLOYMENT LTD","",,""
"London Borough of Redbridge","http://opendatacommunities.org/doc/london-borough-council/redbridge","4BMANGT&SUPP","Management & Support Services","4CHIGHRDROUT","Highways/Roads (Routine)","REV","Revenue","R7070","Reactive Maintenance","05-THIRD","Third Party Payments","05H","Private contractors","6915","Contractor Payments","3179650","201201",13/04/2011 00:00:00,450.95,"18632","Civil Engineers","REDACTED DATA","KENSON CONTRACTORS BENINGTON LTD","1314691","http://opencorporates.com/companies/gb/1314691","301629589"
"London Borough of Redbridge","http://opendatacommunities.org/doc/london-borough-council/redbridge","2BCULTUR&REL","Cultural & Related Services","2CLIBRARY","Library Service","REV","Revenue","R2518","Fullwell X Branch Lib","01-EMPLOYEES","Employees","01A","Direct employee expenses","409","Agency Staff Pay","60145162","201201",03/04/2011 00:00:00,451.07,"31230","Employment & Recruitment Agencies","REDACTED DATA","PLAN PERSONNEL","",,""
"London Borough of Redbridge","http://opendatacommunities.org/doc/london-borough-council/redbridge","6BADULTSOCIA","Adult Social Care","6CADMENHLTH","Adults Under 65 with Mental Health Needs","REV","Revenue","R4272","19 Mansfield Road","02-PREMISES","Premises","02A","Repairs, alteration and maintenance of buildings","3034","Portable Application Electrical Testing (H&S)","783862","201201",15/03/2011 00:00:00,451.7,"30350","Electrical Testing & Inspecting","REDACTED DATA","RGE SERVICES LTD","3305853","http://opencorporates.com/companies/gb/3305853","919118812"
"London Borough of Redbridge","http://opendatacommunities.org/doc/london-borough-council/redbridge","6BADULTSOCIA","Adult Social Care","6CADPHYSDIS","Adults Under 65 with Phys Disab or Sensory Impair","REV","Revenue","R4393","PD Home Care","05-THIRD","Third Party Payments","05A","Independent units within the council","6502","Agency Homecare (Payments To Independent Units)","90215756","201201",04/04/2011 00:00:00,542.22,"31230","Employment & Recruitment Agencies","REDACTED DATA","PLAN PERSONNEL","",,""
"London Borough of Redbridge","http://opendatacommunities.org/doc/london-borough-council/redbridge","6BADULTSOCIA","Adult Social Care","6CADPHYSDIS","Adults Under 65 with Phys Disab or Sensory Impair","REV","Revenue","R4393","PD Home Care","05-THIRD","Third Party Payments","05A","Independent units within the council","6502","Agency Homecare (Payments To Independent Units)","90215597","201201",28/03/2011 00:00:00,542.22,"31230","Employment & Recruitment Agencies","REDACTED DATA","PLAN PERSONNEL","",,""
"London Borough of Redbridge","http://opendatacommunities.org/doc/london-borough-council/redbridge","6BADULTSOCIA","Adult Social Care","6CADPHYSDIS","Adults Under 65 with Phys Disab or Sensory Impair","REV","Revenue","R4393","PD Home Care","05-THIRD","Third Party Payments","05A","Independent units within the council","6502","Agency Homecare (Payments To Independent Units)","90220216","201201",18/04/2011 00:00:00,542.22,"31230","Employment & Recruitment Agencies","REDACTED DATA","PLAN PERSONNEL","",,""
"London Borough of Redbridge","http://opendatacommunities.org/doc/london-borough-council/redbridge","6BADULTSOCIA","Adult Social Care","6CADPHYSDIS","Adults Under 65 with Phys Disab or Sensory Impair","REV","Revenue","R4393","PD Home Care","05-THIRD","Third Party Payments","05A","Independent units within the council","6502","Agency Homecare (Payments To Independent Units)","90222511","201201",26/04/2011 00:00:00,542.22,"31230","Employment & Recruitment Agencies","REDACTED DATA","PLAN PERSONNEL","",,""
"London Borough of Redbridge","http://opendatacommunities.org/doc/london-borough-council/redbridge","6BADULTSOCIA","Adult Social Care","6CADPHYSDIS","Adults Under 65 with Phys Disab or Sensory Impair","REV","Revenue","R4393","PD Home Care","05-THIRD","Third Party Payments","05A","Independent units within the council","6502","Agency Homecare (Payments To Independent Units)","90218399","201201",11/04/2011 00:00:00,542.22,"31230","Employment & Recruitment Agencies","REDACTED DATA","PLAN PERSONNEL","",,""
"London Borough of Redbridge","http://opendatacommunities.org/doc/london-borough-council/redbridge","6BADULTSOCIA","Adult Social Care","6CADLEARNDIS","Adults Under 65 with Learning Disabilities","REV","Revenue","R4215","LD Direct Payments","06-TRANSFER","Transfer Payments","06B","Social Services Clients","7053","Direct Payments","3178408","201201",11/04/2011 00:00:00,542.4,"90005","Home Care Services DP","REDACTED DATA","REDACTED DATA","",,""
"London Borough of Redbridge","http://opendatacommunities.org/doc/london-borough-council/redbridge","6BADULTSOCIA","Adult Social Care","6CADLEARNDIS","Adults Under 65 with Learning Disabilities","REV","Revenue","R4215","LD Direct Payments","06-TRANSFER","Transfer Payments","06B","Social Services Clients","7053","Direct Payments","3178408","201201",11/04/2011 00:00:00,-0.04,"90005","Home Care Services DP","REDACTED DATA","REDACTED DATA","",,""
"London Borough of Redbridge","http://opendatacommunities.org/doc/london-borough-council/redbridge","6BADULTSOCIA","Adult Social Care","6CADLEARNDIS","Adults Under 65 with Learning Disabilities","REV","Revenue","R4215","LD Direct Payments","06-TRANSFER","Transfer Payments","06B","Social Services Clients","7053","Direct Payments","3178736","201201",11/04/2011 00:00:00,542.4,"90005","Home Care Services DP","REDACTED DATA","REDACTED DATA","",,""
"London Borough of Redbridge","http://opendatacommunities.org/doc/london-borough-council/redbridge","6BADULTSOCIA","Adult Social Care","6CADLEARNDIS","Adults Under 65 with Learning Disabilities","REV","Revenue","R4215","LD Direct Payments","06-TRANSFER","Transfer Payments","06B","Social Services Clients","7053","Direct Payments","3178571","201201",11/04/2011 00:00:00,542.4,"90005","Home Care Services DP","REDACTED DATA","REDACTED DATA","",,""
"London Borough of Redbridge","http://opendatacommunities.org/doc/london-borough-council/redbridge","6BADULTSOCIA","Adult Social Care","6CADLEARNDIS","Adults Under 65 with Learning Disabilities","REV","Revenue","R4215","LD Direct Payments","06-TRANSFER","Transfer Payments","06B","Social Services Clients","7053","Direct Payments","3178533","201201",11/04/2011 00:00:00,542.4,"90005","Home Care Services DP","REDACTED DATA","REDACTED DATA","",,""
"London Borough of Redbridge","http://opendatacommunities.org/doc/london-borough-council/redbridge","6BSOCIALSERV","Social Services","","","REV","Revenue","R2113","SEN and CD - Section 5 and 6 Care Packages","05-THIRD","Third Party Payments","05A","Independent units within the council","6502","Agency Homecare (Payments To Independent Units)","3178949","201201",27/03/2011 00:00:00,542.52,"17020","Charities and Voluntary Organisations","REDACTED DATA","REDBRIDGE CROSSROADS CAS","2647932","http://opencorporates.com/companies/gb/2647932",""
"London Borough of Redbridge","http://opendatacommunities.org/doc/london-borough-council/redbridge","3BNONSCHFUND","Non-School Funding","","","REV","Revenue","R2036","TLC Hainault DSG","01-EMPLOYEES","Employees","01A","Direct employee expenses","4","Agency Staff - Pay","60145200","201201",12/01/2011 00:00:00,462,"31230","Employment & Recruitment Agencies","REDACTED DATA","PROTOCOL EDUCATION LTD","2926583","http://opencorporates.com/companies/gb/2926583","764390315"
"London Borough of Redbridge","http://opendatacommunities.org/doc/london-borough-council/redbridge","6BADULTSOCIA","Adult Social Care","6CADLEARNDIS","Adults Under 65 with Learning Disabilities","REV","Revenue","R4394","LD - Homecare","05-THIRD","Third Party Payments","05A","Independent units within the council","6502","Agency Homecare (Payments To Independent Units)","90220510","201201",12/04/2011 00:00:00,542.94,"43419","Home Care Services","REDACTED DATA","FASTFLOW DE VERE CARE","",,""
"London Borough of Redbridge","http://opendatacommunities.org/doc/london-borough-council/redbridge","6BADULTSOCIA","Adult Social Care","6COLDINCMENT","Older People (65 or over) incl. Older Mentally Ill","REV","Revenue","R4391","OP Home Care","05-THIRD","Third Party Payments","05A","Independent units within the council","6502","Agency Homecare (Payments To Independent Units)","90222836","201201",27/04/2011 00:00:00,543.22,"53280","Nursing Agencies","REDACTED DATA","IMMACULATE HEALTHCARE SERVICES LIMITED","",,""
"London Borough of Redbridge","http://opendatacommunities.org/doc/london-borough-council/redbridge","6BADULTSOCIA","Adult Social Care","6COLDINCMENT","Older People (65 or over) incl. Older Mentally Ill","REV","Revenue","R4391","OP Home Care","05-THIRD","Third Party Payments","05A","Independent units within the council","6502","Agency Homecare (Payments To Independent Units)","90222833","201201",27/04/2011 00:00:00,543.24,"53280","Nursing Agencies","REDACTED DATA","IMMACULATE HEALTHCARE SERVICES LIMITED","",,""
"London Borough of Redbridge","http://opendatacommunities.org/doc/london-borough-council/redbridge","6BADULTSOCIA","Adult Social Care","6COTHADSERV","Other Adult Services","REV","Revenue","R4389","PCT Older Person Home Care","05-THIRD","Third Party Payments","05A","Independent units within the council","6502","Agency Homecare (Payments To Independent Units)","90222831","201201",27/04/2011 00:00:00,543.24,"53280","Nursing Agencies","REDACTED DATA","IMMACULATE HEALTHCARE SERVICES LIMITED","",,""
"London Borough of Redbridge","http://opendatacommunities.org/doc/london-borough-council/redbridge","5BGFHOUSING","General Fund Housing","5CHOUSADVICE","Housing Advice","REV","Revenue","R5530","HAC Temporary Accomodation","05-THIRD","Third Party Payments","05H","Private contractors","6912","Bed & Breakfast Charges","70025618","201201",16/02/2011 00:00:00,544,"47846","Letting Agents","REDACTED DATA","SMART HOTELS LTD","3408484","http://opencorporates.com/companies/gb/3408484","722747138"
"London Borough of Redbridge","http://opendatacommunities.org/doc/london-borough-council/redbridge","6BADULTSOCIA","Adult Social Care","6CADLEARNDIS","Adults Under 65 with Learning Disabilities","REV","Revenue","R4218","Individualised Budgets","06-TRANSFER","Transfer Payments","06B","Social Services Clients","7053","Direct Payments","3178436","201201",11/04/2011 00:00:00,544,"43419","Home Care Services","REDACTED DATA","NATALIE NASTRUCCI","",,""
"London Borough of Redbridge","http://opendatacommunities.org/doc/london-borough-council/redbridge","9BNONBVO","Outside the BVACOP Objective Structure","9CNONBVO","Outside the BVACOP Objective Structure","REV","Revenue","R7751","Catering Service","04-SUPPLIES","Supplies And Services","04B","Catering","5601","Catering Provisions (Food & Drink)","60146005","201201",18/04/2011 00:00:00,357.62,"16250","Catering Food and Drink Suppliers","REDACTED DATA","BRAKE BROS FOODSERVICE LTD","",,""
"London Borough of Redbridge","http://opendatacommunities.org/doc/london-borough-council/redbridge","9BNONBVO","Outside the BVACOP Objective Structure","9CNONBVO","Outside the BVACOP Objective Structure","REV","Revenue","R7751","Catering Service","04-SUPPLIES","Supplies And Services","04B","Catering","5601","Catering Provisions (Food & Drink)","60146005","201201",18/04/2011 00:00:00,116.23,"16250","Catering Food and Drink Suppliers","REDACTED DATA","BRAKE BROS FOODSERVICE LTD","",,""
"London Borough of Redbridge","http://opendatacommunities.org/doc/london-borough-council/redbridge","5BGFHOUSING","General Fund Housing","5CHOUSADVICE","Housing Advice","REV","Revenue","R5530","HAC Temporary Accomodation","05-THIRD","Third Party Payments","05H","Private contractors","6912","Bed & Breakfast Charges","70026411","201201",31/03/2011 00:00:00,455,"44100","Hotels","REDACTED DATA","MCCREADIE HOTEL","",,""
"London Borough of Redbridge","http://opendatacommunities.org/doc/london-borough-council/redbridge","1BCENTRALPUB","Central Services to the Public","1CLOCALTAXCO","Local Tax Collection","REV","Revenue","R5760","Council Tax Collection","04-SUPPLIES","Supplies And Services","04K","Miscellaneous expenses","6204","Bankruptcy","60146479","201201",19/04/2011 00:00:00,480.5,"72460","Solicitors","REDACTED DATA","WILKIN CHAPMAN SOLICITORS","",,"127942455"
"London Borough of Redbridge","http://opendatacommunities.org/doc/london-borough-council/redbridge","6BADULTSOCIA","Adult Social Care","6CADLEARNDIS","Adults Under 65 with Learning Disabilities","REV","Revenue","R4293","Woodbine Club House","01-EMPLOYEES","Employees","01A","Direct employee expenses","4","Agency Staff - Pay","60144474","201201",27/03/2011 00:00:00,456.32,"31230","Employment & Recruitment Agencies","REDACTED DATA","PLAN PERSONNEL","",,""
"London Borough of Redbridge","http://opendatacommunities.org/doc/london-borough-council/redbridge","3BNONSCHFUND","Non-School Funding","","","REV","Revenue","R2047","Sure Start Centre DSG","01-EMPLOYEES","Employees","01A","Direct employee expenses","4","Agency Staff - Pay","60145895","201201",06/04/2011 00:00:00,457.5,"31230","Employment & Recruitment Agencies","REDACTED DATA","PROTOCOL EDUCATION LTD","2926583","http://opencorporates.com/companies/gb/2926583","764390315"
"London Borough of Redbridge","http://opendatacommunities.org/doc/london-borough-council/redbridge","6BADULTSOCIA","Adult Social Care","6CADLEARNDIS","Adults Under 65 with Learning Disabilities","REV","Revenue","R4293","Woodbine Club House","04-SUPPLIES","Supplies And Services","04B","Catering","5601","Catering Provisions (Food & Drink)","60145749","201201",08/04/2011 00:00:00,379.23,"16250","Catering Food and Drink Suppliers","REDACTED DATA","THOMAS RIDLEY & SONS","",,""
"London Borough of Redbridge","http://opendatacommunities.org/doc/london-borough-council/redbridge","6BADULTSOCIA","Adult Social Care","6CADLEARNDIS","Adults Under 65 with Learning Disabilities","REV","Revenue","R4293","Woodbine Club House","04-SUPPLIES","Supplies And Services","04B","Catering","5601","Catering Provisions (Food & Drink)","60145749","201201",08/04/2011 00:00:00,141.59,"16250","Catering Food and Drink Suppliers","REDACTED DATA","THOMAS RIDLEY & SONS","",,""
"London Borough of Redbridge","http://opendatacommunities.org/doc/london-borough-council/redbridge","2BENVIRONMEN","Environmental Services","2CSERVMGTSUP","Service Management & Support Services","REV","Revenue","R6001","Cleansing S.Area Admin","04-SUPPLIES","Supplies And Services","04A","Equipment, furniture and materials","5506","Furniture & Fittings - Purchase","60143268","201201",25/03/2011 00:00:00,458,"53450","Office Furniture & Equipment","REDACTED DATA","UNIQUE OFFICE SOLUTIONS LTD","3079207","http://opencorporates.com/companies/gb/3079207","662659701"
"London Borough of Redbridge","http://opendatacommunities.org/doc/london-borough-council/redbridge","2BCULTUR&REL","Cultural & Related Services","2CREC&SPORT","Recreation & Sport","REV","Revenue","R6375","Active4Life","04-SUPPLIES","Supplies And Services","04E","Services","5767","Instructors","60144513","201201",01/04/2011 00:00:00,550,"72790","Sports Coaching & Instruction","REDACTED DATA","JAMES BIGGANE","4298238434","http://opencorporates.com/companies/gb/4298238434",""
"London Borough of Redbridge","http://opendatacommunities.org/doc/london-borough-council/redbridge","3BNONSCHFUND","Non-School Funding","","","REV","Revenue","R2055","Under 8 Service DSG","05-THIRD","Third Party Payments","05H","Private contractors","6908","Private Nurseries & Childminders","60144693","201201",31/03/2011 00:00:00,550,"17020","Charities and Voluntary Organisations","REDACTED DATA","BARNARDOS (TANNERS LANE)","1227919","http://opencorporates.com/companies/gb/1227919","507477337"
"London Borough of Redbridge","http://opendatacommunities.org/doc/london-borough-council/redbridge","6BADULTSOCIA","Adult Social Care","6CADLEARNDIS","Adults Under 65 with Learning Disabilities","REV","Revenue","R4383","LD - External Day Care","05-THIRD","Third Party Payments","05H","Private contractors","6904","Day Centres","90222056","201201",14/04/2011 00:00:00,608.53,"17020","Charities and Voluntary Organisations","REDACTED DATA","ELHAP","",,""
"London Borough of Redbridge","http://opendatacommunities.org/doc/london-borough-council/redbridge","6BADULTSOCIA","Adult Social Care","6CADLEARNDIS","Adults Under 65 with Learning Disabilities","REV","Revenue","R4383","LD - External Day Care","05-THIRD","Third Party Payments","05H","Private contractors","6904","Day Centres","90222059","201201",14/04/2011 00:00:00,608.53,"17020","Charities and Voluntary Organisations","REDACTED DATA","ELHAP","",,""
"London Borough of Redbridge","http://opendatacommunities.org/doc/london-borough-council/redbridge","6BADULTSOCIA","Adult Social Care","6CADLEARNDIS","Adults Under 65 with Learning Disabilities","REV","Revenue","R4383","LD - External Day Care","05-THIRD","Third Party Payments","05H","Private contractors","6904","Day Centres","90222056","201201",14/04/2011 00:00:00,-58.37,"17020","Charities and Voluntary Organisations","REDACTED DATA","ELHAP","",,""
"London Borough of Redbridge","http://opendatacommunities.org/doc/london-borough-council/redbridge","6BADULTSOCIA","Adult Social Care","6CADLEARNDIS","Adults Under 65 with Learning Disabilities","REV","Revenue","R4383","LD - External Day Care","05-THIRD","Third Party Payments","05H","Private contractors","6904","Day Centres","90222059","201201",14/04/2011 00:00:00,-58.37,"17020","Charities and Voluntary Organisations","REDACTED DATA","ELHAP","",,""
"London Borough of Redbridge","http://opendatacommunities.org/doc/london-borough-council/redbridge","4BMANGT&SUPP","Management & Support Services","4CHIGHRDROUT","Highways/Roads (Routine)","REV","Revenue","R7070","Reactive Maintenance","05-THIRD","Third Party Payments","05H","Private contractors","6915","Contractor Payments","3181124","201201",14/04/2011 00:00:00,458.65,"18632","Civil Engineers","REDACTED DATA","KENSON CONTRACTORS BENINGTON LTD","1314691","http://opencorporates.com/companies/gb/1314691","301629589"
"London Borough of Redbridge","http://opendatacommunities.org/doc/london-borough-council/redbridge","9BNONBVO","Outside the BVACOP Objective Structure","9CNONBVO","Outside the BVACOP Objective Structure","REV","Revenue","R7702","Vehicle Workshop","04-SUPPLIES","Supplies And Services","04A","Equipment, furniture and materials","5510","Materials","626672","201201",13/04/2011 00:00:00,373.75,"13330","Car Body Repairs","REDACTED DATA","BARKING PANELCRAFT","",,""
"London Borough of Redbridge","http://opendatacommunities.org/doc/london-borough-council/redbridge","9BNONBVO","Outside the BVACOP Objective Structure","9CNONBVO","Outside the BVACOP Objective Structure","REV","Revenue","R7702","Vehicle Workshop","04-SUPPLIES","Supplies And Services","04A","Equipment, furniture and materials","5510","Materials","626672","201201",13/04/2011 00:00:00,85,"13330","Car Body Repairs","REDACTED DATA","BARKING PANELCRAFT","",,""
"London Borough of Redbridge","http://opendatacommunities.org/doc/london-borough-council/redbridge","6BADULTSOCIA","Adult Social Care","6CADLEARNDIS","Adults Under 65 with Learning Disabilities","REV","Revenue","R4215","LD Direct Payments","06-TRANSFER","Transfer Payments","06B","Social Services Clients","7053","Direct Payments","3178606","201201",11/04/2011 00:00:00,600,"56800","Payroll Services","REDACTED DATA","HUMAN MANAGEMENT ASSISTANCE-CLIENT ACCOUNT","4752026","http://opencorporates.com/companies/gb/4752026","815230071"
"London Borough of Redbridge","http://opendatacommunities.org/doc/london-borough-council/redbridge","6BADULTSOCIA","Adult Social Care","6CADLEARNDIS","Adults Under 65 with Learning Disabilities","REV","Revenue","R4215","LD Direct Payments","09-INCOME","Income","09C","Customer & Client Receipts","8553","Care Package Charges","3178606","201201",11/04/2011 00:00:00,-49.28,"56800","Payroll Services","REDACTED DATA","HUMAN MANAGEMENT ASSISTANCE-CLIENT ACCOUNT","4752026","http://opencorporates.com/companies/gb/4752026","815230071"
"London Borough of Redbridge","http://opendatacommunities.org/doc/london-borough-council/redbridge","6BADULTSOCIA","Adult Social Care","6CADLEARNDIS","Adults Under 65 with Learning Disabilities","REV","Revenue","R4383","LD - External Day Care","05-THIRD","Third Party Payments","05H","Private contractors","6904","Day Centres","90217716","201201",30/03/2011 00:00:00,459.24,"17020","Charities and Voluntary Organisations","REDACTED DATA","NORWOOD RAVENWOOD SERVICES LTD","",,""
"London Borough of Redbridge","http://opendatacommunities.org/doc/london-borough-council/redbridge","6BADULTSOCIA","Adult Social Care","6COLDINCMENT","Older People (65 or over) incl. Older Mentally Ill","REV","Revenue","R4211","Older People Direct Payments","06-TRANSFER","Transfer Payments","06B","Social Services Clients","7053","Direct Payments","3178385","201201",11/04/2011 00:00:00,553.72,"56800","Payroll Services","REDACTED DATA","HUMAN MANAGEMENT ASSISTANCE-CLIENT ACCOUNT","4752026","http://opencorporates.com/companies/gb/4752026","815230071"
"London Borough of Redbridge","http://opendatacommunities.org/doc/london-borough-council/redbridge","6BADULTSOCIA","Adult Social Care","6COLDINCMENT","Older People (65 or over) incl. Older Mentally Ill","REV","Revenue","R4211","Older People Direct Payments","06-TRANSFER","Transfer Payments","06B","Social Services Clients","7053","Direct Payments","3178724","201201",11/04/2011 00:00:00,553.72,"56800","Payroll Services","REDACTED DATA","HUMAN MANAGEMENT ASSISTANCE-CLIENT ACCOUNT","4752026","http://opencorporates.com/companies/gb/4752026","815230071"
"London Borough of Redbridge","http://opendatacommunities.org/doc/london-borough-council/redbridge","6BADULTSOCIA","Adult Social Care","6COLDINCMENT","Older People (65 or over) incl. Older Mentally Ill","REV","Revenue","R4211","Older People Direct Payments","06-TRANSFER","Transfer Payments","06B","Social Services Clients","7053","Direct Payments","3178773","201201",11/04/2011 00:00:00,553.72,"56800","Payroll Services","REDACTED DATA","HUMAN MANAGEMENT ASSISTANCE-CLIENT ACCOUNT","4752026","http://opencorporates.com/companies/gb/4752026","815230071"
"London Borough of Redbridge","http://opendatacommunities.org/doc/london-borough-council/redbridge","6BADULTSOCIA","Adult Social Care","6COLDINCMENT","Older People (65 or over) incl. Older Mentally Ill","REV","Revenue","R4211","Older People Direct Payments","06-TRANSFER","Transfer Payments","06B","Social Services Clients","7053","Direct Payments","3178469","201201",11/04/2011 00:00:00,553.72,"90005","Home Care Services DP","REDACTED DATA","REDACTED DATA","",,""
"London Borough of Redbridge","http://opendatacommunities.org/doc/london-borough-council/redbridge","9BNONBVO","Outside the BVACOP Objective Structure","9CNONBVO","Outside the BVACOP Objective Structure","CAP","Capital","C2212","Smarter Travel School Travel TFL","99-NONBV","Capital, Balance Sheet and Control","50E","Capital - Contract Payments","9150","Main Contract","60143642","201201",23/03/2011 00:00:00,554.03,"67981","Schools - Local Authority","REDACTED DATA","FAIRLOP PRIMARY SCHOOL A/C","",,""
"London Borough of Redbridge","http://opendatacommunities.org/doc/london-borough-council/redbridge","3BLEACENTFND","LEA Centrally Held School Funds","3CNONDELGRNT","Non-Delegated School Grants","REV","Revenue","R3919","School Workforce (TDA)","04-SUPPLIES","Supplies And Services","04H","Grants and subscriptions","5950","Grants","60144750","201201",30/03/2011 00:00:00,462.5,"44100","Hotels","REDACTED DATA","MENZIES HOTELS LTD","4036694","http://opencorporates.com/companies/gb/4036694","852973001"
"London Borough of Redbridge","http://opendatacommunities.org/doc/london-borough-council/redbridge","6BADULTSOCIA","Adult Social Care","6COLDINCMENT","Older People (65 or over) incl. Older Mentally Ill","REV","Revenue","R4364","CCAC - Building","02-PREMISES","Premises","02B","Energy costs","4002","Gas","60145869","201201",11/04/2011 00:00:00,462.52,"39564","Gas Companies","REDACTED DATA","KENT COUNTY COUNCIL (GAS & ELECTRIC)","",,"204269191"
"London Borough of Redbridge","http://opendatacommunities.org/doc/london-borough-council/redbridge","6BADULTSOCIA","Adult Social Care","6CADMENHLTH","Adults Under 65 with Mental Health Needs","REV","Revenue","R4213","MH Direct Payments","06-TRANSFER","Transfer Payments","06B","Social Services Clients","7053","Direct Payments","3178381","201201",11/04/2011 00:00:00,565,"56800","Payroll Services","REDACTED DATA","HUMAN MANAGEMENT ASSISTANCE-CLIENT ACCOUNT","4752026","http://opencorporates.com/companies/gb/4752026","815230071"
"London Borough of Redbridge","http://opendatacommunities.org/doc/london-borough-council/redbridge","6BADULTSOCIA","Adult Social Care","6CADMENHLTH","Adults Under 65 with Mental Health Needs","REV","Revenue","R4213","MH Direct Payments","09-INCOME","Income","09C","Customer & Client Receipts","8553","Care Package Charges","3178381","201201",11/04/2011 00:00:00,-9.76,"56800","Payroll Services","REDACTED DATA","HUMAN MANAGEMENT ASSISTANCE-CLIENT ACCOUNT","4752026","http://opencorporates.com/companies/gb/4752026","815230071"
"London Borough of Redbridge","http://opendatacommunities.org/doc/london-borough-council/redbridge","6BADULTSOCIA","Adult Social Care","6CCHILLOOKED","Children Looked After","REV","Revenue","R2118","CLAFH - 2-4 Bathurst Road","01-EMPLOYEES","Employees","01A","Direct employee expenses","4","Agency Staff - Pay","60145150","201201",08/04/2011 00:00:00,473.42,"31230","Employment & Recruitment Agencies","REDACTED DATA","CAPITA SHG RESOURCING","",,"618184140"
"London Borough of Redbridge","http://opendatacommunities.org/doc/london-borough-council/redbridge","6BADULTSOCIA","Adult Social Care","6CADPHYSDIS","Adults Under 65 with Phys Disab or Sensory Impair","REV","Revenue","R4214","PD Direct Payments","06-TRANSFER","Transfer Payments","06B","Social Services Clients","7053","Direct Payments","3178396","201201",11/04/2011 00:00:00,542.4,"56800","Payroll Services","REDACTED DATA","HUMAN MANAGEMENT ASSISTANCE-CLIENT ACCOUNT","4752026","http://opencorporates.com/companies/gb/4752026","815230071"
"London Borough of Redbridge","http://opendatacommunities.org/doc/london-borough-council/redbridge","6BADULTSOCIA","Adult Social Care","6CADPHYSDIS","Adults Under 65 with Phys Disab or Sensory Impair","REV","Revenue","R4214","PD Direct Payments","09-INCOME","Income","09C","Customer & Client Receipts","8553","Care Package Charges","3178396","201201",11/04/2011 00:00:00,13.95,"56800","Payroll Services","REDACTED DATA","HUMAN MANAGEMENT ASSISTANCE-CLIENT ACCOUNT","4752026","http://opencorporates.com/companies/gb/4752026","815230071"
"London Borough of Redbridge","http://opendatacommunities.org/doc/london-borough-council/redbridge","6BADULTSOCIA","Adult Social Care","6COLDINCMENT","Older People (65 or over) incl. Older Mentally Ill","REV","Revenue","R4378","OP - Care Purchasing","05-THIRD","Third Party Payments","05F","Voluntary associations","6802","Residential Homes","90217966","201201",30/03/2011 00:00:00,1660.16,"64710","Residential Care Homes","REDACTED DATA","KATHRYN HOMES LTD (THE WHITECROFT)","6016281","http://opencorporates.com/companies/gb/6016281",""
"London Borough of Redbridge","http://opendatacommunities.org/doc/london-borough-council/redbridge","6BADULTSOCIA","Adult Social Care","6COLDINCMENT","Older People (65 or over) incl. Older Mentally Ill","REV","Revenue","R4378","OP - Care Purchasing","09-INCOME","Income","09C","Customer & Client Receipts","8555","Accommodation Charges","90217966","201201",30/03/2011 00:00:00,-1103.72,"64710","Residential Care Homes","REDACTED DATA","KATHRYN HOMES LTD (THE WHITECROFT)","6016281","http://opencorporates.com/companies/gb/6016281",""
"London Borough of Redbridge","http://opendatacommunities.org/doc/london-borough-council/redbridge","2BCULTUR&REL","Cultural & Related Services","2CLIBRARY","Library Service","REV","Revenue","R2510","Central Lending Libry","01-EMPLOYEES","Employees","01A","Direct employee expenses","409","Agency Staff Pay","60145063","201201",06/04/2011 00:00:00,464.75,"31230","Employment & Recruitment Agencies","REDACTED DATA","BROOK STREET (UK) LTD","459637","http://opencorporates.com/companies/gb/459637","238595131"
"London Borough of Redbridge","http://opendatacommunities.org/doc/london-borough-council/redbridge","2BCULTUR&REL","Cultural & Related Services","2CLIBRARY","Library Service","REV","Revenue","R2518","Fullwell X Branch Lib","01-EMPLOYEES","Employees","01A","Direct employee expenses","409","Agency Staff Pay","60145875","201201",06/03/2011 00:00:00,464.89,"31230","Employment & Recruitment Agencies","REDACTED DATA","PLAN PERSONNEL","",,""
"London Borough of Redbridge","http://opendatacommunities.org/doc/london-borough-council/redbridge","1BOTHEROPI&E","Other Operating Income & Expenditure","1CTRADSURDEF","Trading Account Surpluses & Deficits","REV","Revenue","R9831","Design Team","04-SUPPLIES","Supplies And Services","04A","Equipment, furniture and materials","5510","Materials","60144894","201201",29/03/2011 00:00:00,465,"25070","Designers - Graphic","REDACTED DATA","SERVICE GRAPHICS LTD","4332146","http://opencorporates.com/companies/gb/4332146","788031411"
"London Borough of Redbridge","http://opendatacommunities.org/doc/london-borough-council/redbridge","4BMANGT&SUPP","Management & Support Services","4CHIGHRDROUT","Highways/Roads (Routine)","REV","Revenue","R7049","Grounds Maint Contingency","05-THIRD","Third Party Payments","05H","Private contractors","6915","Contractor Payments","3179761","201201",11/04/2011 00:00:00,465.41,"18632","Civil Engineers","REDACTED DATA","KENSON CONTRACTORS BENINGTON LTD","1314691","http://opencorporates.com/companies/gb/1314691","301629589"
"London Borough of Redbridge","http://opendatacommunities.org/doc/london-borough-council/redbridge","6BSOCIALSERV","Social Services","","","REV","Revenue","R2176","Ray Lodge (N) - Integrated Team Social Care","01-EMPLOYEES","Employees","01A","Direct employee expenses","4","Agency Staff - Pay","60145378","201201",30/03/2011 00:00:00,465.5,"31230","Employment & Recruitment Agencies","REDACTED DATA","BROOK STREET (UK) LTD","459637","http://opencorporates.com/companies/gb/459637","238595131"
"London Borough of Redbridge","http://opendatacommunities.org/doc/london-borough-council/redbridge","6BSOCIALSERV","Social Services","","","REV","Revenue","R2176","Ray Lodge (N) - Integrated Team Social Care","01-EMPLOYEES","Employees","01A","Direct employee expenses","4","Agency Staff - Pay","60143792","201112",23/03/2011 00:00:00,465.5,"31230","Employment & Recruitment Agencies","REDACTED DATA","BROOK STREET (UK) LTD","459637","http://opencorporates.com/companies/gb/459637","238595131"
"London Borough of Redbridge","http://opendatacommunities.org/doc/london-borough-council/redbridge","6BADULTSOCIA","Adult Social Care","6CADLEARNDIS","Adults Under 65 with Learning Disabilities","REV","Revenue","R4383","LD - External Day Care","05-THIRD","Third Party Payments","05H","Private contractors","6904","Day Centres","90217363","201201",05/04/2011 00:00:00,839.4,"17020","Charities and Voluntary Organisations","REDACTED DATA","REDBRIDGE COMMUNITY HOUSING LIMITED (RCHL)","",,""
"London Borough of Redbridge","http://opendatacommunities.org/doc/london-borough-council/redbridge","6BADULTSOCIA","Adult Social Care","6CADLEARNDIS","Adults Under 65 with Learning Disabilities","REV","Revenue","R4383","LD - External Day Care","05-THIRD","Third Party Payments","05H","Private contractors","6904","Day Centres","90217366","201201",05/04/2011 00:00:00,559.6,"17020","Charities and Voluntary Organisations","REDACTED DATA","REDBRIDGE COMMUNITY HOUSING LIMITED (RCHL)","",,""
"London Borough of Redbridge","http://opendatacommunities.org/doc/london-borough-council/redbridge","6BADULTSOCIA","Adult Social Care","6CADLEARNDIS","Adults Under 65 with Learning Disabilities","REV","Revenue","R4383","LD - External Day Care","05-THIRD","Third Party Payments","05H","Private contractors","6904","Day Centres","90217371","201201",05/04/2011 00:00:00,559.6,"17020","Charities and Voluntary Organisations","REDACTED DATA","REDBRIDGE COMMUNITY HOUSING LIMITED (RCHL)","",,""
"London Borough of Redbridge","http://opendatacommunities.org/doc/london-borough-council/redbridge","6BADULTSOCIA","Adult Social Care","6CADLEARNDIS","Adults Under 65 with Learning Disabilities","REV","Revenue","R4383","LD - External Day Care","05-THIRD","Third Party Payments","05H","Private contractors","6904","Day Centres","90217358","201201",05/04/2011 00:00:00,559.6,"17020","Charities and Voluntary Organisations","REDACTED DATA","REDBRIDGE COMMUNITY HOUSING LIMITED (RCHL)","",,""
"London Borough of Redbridge","http://opendatacommunities.org/doc/london-borough-council/redbridge","6BADULTSOCIA","Adult Social Care","6CADLEARNDIS","Adults Under 65 with Learning Disabilities","REV","Revenue","R4383","LD - External Day Care","05-THIRD","Third Party Payments","05H","Private contractors","6904","Day Centres","90217360","201201",05/04/2011 00:00:00,559.6,"17020","Charities and Voluntary Organisations","REDACTED DATA","REDBRIDGE COMMUNITY HOUSING LIMITED (RCHL)","",,""
"London Borough of Redbridge","http://opendatacommunities.org/doc/london-borough-council/redbridge","6BADULTSOCIA","Adult Social Care","6CADLEARNDIS","Adults Under 65 with Learning Disabilities","REV","Revenue","R4383","LD - External Day Care","05-THIRD","Third Party Payments","05H","Private contractors","6904","Day Centres","90217363","201201",05/04/2011 00:00:00,-279.8,"17020","Charities and Voluntary Organisations","REDACTED DATA","REDBRIDGE COMMUNITY HOUSING LIMITED (RCHL)","",,""
"London Borough of Redbridge","http://opendatacommunities.org/doc/london-borough-council/redbridge","6BSOCIALSERV","Social Services","","","REV","Revenue","R2114","SEN and CD - Integrated Team 0-9 Social Care","06-TRANSFER","Transfer Payments","06B","Social Services Clients","7050","Agency Homecare","3180041","201201",29/03/2011 00:00:00,560,"31230","Employment & Recruitment Agencies","REDACTED DATA","SHARED CARE SERVICES LTD","4704680","http://opencorporates.com/companies/gb/4704680",""
"London Borough of Redbridge","http://opendatacommunities.org/doc/london-borough-council/redbridge","6BSOCIALSERV","Social Services","","","REV","Revenue","R2117","SEN and CD Care and Support Packages Social Care","06-TRANSFER","Transfer Payments","06B","Social Services Clients","7050","Agency Homecare","3181570","201201",23/04/2011 00:00:00,560,"31230","Employment & Recruitment Agencies","REDACTED DATA","SHARED CARE SERVICES LTD","4704680","http://opencorporates.com/companies/gb/4704680",""
"London Borough of Redbridge","http://opendatacommunities.org/doc/london-borough-council/redbridge","6BADULTSOCIA","Adult Social Care","6CADLEARNDIS","Adults Under 65 with Learning Disabilities","REV","Revenue","R4218","Individualised Budgets","06-TRANSFER","Transfer Payments","06B","Social Services Clients","7053","Direct Payments","90218036","201201",31/03/2011 00:00:00,528,"17020","Charities and Voluntary Organisations","REDACTED DATA","UNITING FRIENDS LTD","6495763","http://opencorporates.com/companies/gb/6495763",""
"London Borough of Redbridge","http://opendatacommunities.org/doc/london-borough-council/redbridge","6BADULTSOCIA","Adult Social Care","6CADLEARNDIS","Adults Under 65 with Learning Disabilities","REV","Revenue","R4383","LD - External Day Care","05-THIRD","Third Party Payments","05H","Private contractors","6904","Day Centres","90218034","201201",31/03/2011 00:00:00,528,"17020","Charities and Voluntary Organisations","REDACTED DATA","UNITING FRIENDS LTD","6495763","http://opencorporates.com/companies/gb/6495763",""
"London Borough of Redbridge","http://opendatacommunities.org/doc/london-borough-council/redbridge","6BADULTSOCIA","Adult Social Care","6CADLEARNDIS","Adults Under 65 with Learning Disabilities","REV","Revenue","R4218","Individualised Budgets","06-TRANSFER","Transfer Payments","06B","Social Services Clients","7053","Direct Payments","90218036","201201",31/03/2011 00:00:00,32,"17020","Charities and Voluntary Organisations","REDACTED DATA","UNITING FRIENDS LTD","6495763","http://opencorporates.com/companies/gb/6495763",""
"London Borough of Redbridge","http://opendatacommunities.org/doc/london-borough-council/redbridge","6BADULTSOCIA","Adult Social Care","6CADLEARNDIS","Adults Under 65 with Learning Disabilities","REV","Revenue","R4383","LD - External Day Care","05-THIRD","Third Party Payments","05H","Private contractors","6904","Day Centres","90218034","201201",31/03/2011 00:00:00,32,"17020","Charities and Voluntary Organisations","REDACTED DATA","UNITING FRIENDS LTD","6495763","http://opencorporates.com/companies/gb/6495763",""
"London Borough of Redbridge","http://opendatacommunities.org/doc/london-borough-council/redbridge","6BSOCIALSERV","Social Services","","","REV","Revenue","R2117","SEN and CD Care and Support Packages Social Care","06-TRANSFER","Transfer Payments","06B","Social Services Clients","7050","Agency Homecare","70026559","201201",27/03/2011 00:00:00,560.09,"17020","Charities and Voluntary Organisations","REDACTED DATA","REDBRIDGE CROSSROADS CAS","2647932","http://opencorporates.com/companies/gb/2647932",""
"London Borough of Redbridge","http://opendatacommunities.org/doc/london-borough-council/redbridge","3BNONSCHFUND","Non-School Funding","","","REV","Revenue","R2064","The Learning Centre Redbridge College","01-EMPLOYEES","Employees","01A","Direct employee expenses","4","Agency Staff - Pay","60144945","201201",25/03/2011 00:00:00,468,"31230","Employment & Recruitment Agencies","REDACTED DATA","RANDSTAD EDUCATION LTD","3403530","http://opencorporates.com/companies/gb/3403530","492435726"
"London Borough of Redbridge","http://opendatacommunities.org/doc/london-borough-council/redbridge","2BENVIRONMEN","Environmental Services","2CSERVMGTSUP","Service Management & Support Services","REV","Revenue","R6001","Cleansing S.Area Admin","04-SUPPLIES","Supplies And Services","04F","Communications and computing","5858","Phones","60144407","201201",04/08/2010 00:00:00,131.88,"51500","Mobile Phones - Personal Numbers","REDACTED DATA","EVERYTHING EVERYWHERE LTD (CAMBERLEY)","2382161","http://opencorporates.com/companies/gb/2382161","771592016"
"London Borough of Redbridge","http://opendatacommunities.org/doc/london-borough-council/redbridge","9BNONBVO","Outside the BVACOP Objective Structure","9CNONBVO","Outside the BVACOP Objective Structure","REV","Revenue","R7602","Routine Sweeping DSO","04-SUPPLIES","Supplies And Services","04F","Communications and computing","5858","Phones","60144407","201201",04/08/2010 00:00:00,116.52,"51500","Mobile Phones - Personal Numbers","REDACTED DATA","EVERYTHING EVERYWHERE LTD (CAMBERLEY)","2382161","http://opencorporates.com/companies/gb/2382161","771592016"
"London Borough of Redbridge","http://opendatacommunities.org/doc/london-borough-council/redbridge","9BNONBVO","Outside the BVACOP Objective Structure","9CNONBVO","Outside the BVACOP Objective Structure","REV","Revenue","R7652","Contract 3","04-SUPPLIES","Supplies And Services","04F","Communications and computing","5858","Phones","60144407","201201",04/08/2010 00:00:00,99,"51500","Mobile Phones - Personal Numbers","REDACTED DATA","EVERYTHING EVERYWHERE LTD (CAMBERLEY)","2382161","http://opencorporates.com/companies/gb/2382161","771592016"
"London Borough of Redbridge","http://opendatacommunities.org/doc/london-borough-council/redbridge","9BNONBVO","Outside the BVACOP Objective Structure","9CNONBVO","Outside the BVACOP Objective Structure","REV","Revenue","R7601","Street Sweeping Admn","04-SUPPLIES","Supplies And Services","04F","Communications and computing","5858","Phones","60144407","201201",04/08/2010 00:00:00,85.58,"51500","Mobile Phones - Personal Numbers","REDACTED DATA","EVERYTHING EVERYWHERE LTD (CAMBERLEY)","2382161","http://opencorporates.com/companies/gb/2382161","771592016"
"London Borough of Redbridge","http://opendatacommunities.org/doc/london-borough-council/redbridge","1BOTHEROPI&E","Other Operating Income & Expenditure","1CTRADSURDEF","Trading Account Surpluses & Deficits","REV","Revenue","R9053","Contract Consultancy Unit","04-SUPPLIES","Supplies And Services","04F","Communications and computing","5858","Phones","60144407","201201",04/08/2010 00:00:00,45.53,"51500","Mobile Phones - Personal Numbers","REDACTED DATA","EVERYTHING EVERYWHERE LTD (CAMBERLEY)","2382161","http://opencorporates.com/companies/gb/2382161","771592016"
"London Borough of Redbridge","http://opendatacommunities.org/doc/london-borough-council/redbridge","1BOTHEROPI&E","Other Operating Income & Expenditure","1CTRADSURDEF","Trading Account Surpluses & Deficits","REV","Revenue","R7207","Building Services","04-SUPPLIES","Supplies And Services","04F","Communications and computing","5852","Computer Equipment - Repairs & Maintenance","60145421","201201",03/04/2011 00:00:00,468.17,"20623","Computer Consumables & Stationery","REDACTED DATA","KIBWORTH COMPUTER CONSULTANCY LTD","",,""
"London Borough of Redbridge","http://opendatacommunities.org/doc/london-borough-council/redbridge","6BADULTSOCIA","Adult Social Care","6CADLEARNDIS","Adults Under 65 with Learning Disabilities","REV","Revenue","R4293","Woodbine Club House","01-EMPLOYEES","Employees","01A","Direct employee expenses","4","Agency Staff - Pay","60145143","201201",03/04/2011 00:00:00,468.25,"31230","Employment & Recruitment Agencies","REDACTED DATA","PLAN PERSONNEL","",,""
"London Borough of Redbridge","http://opendatacommunities.org/doc/london-borough-council/redbridge","2BCULTUR&REL","Cultural & Related Services","2COPENSPACES","Open Spaces","REV","Revenue","R6250","H Forest-Formal Area","01-EMPLOYEES","Employees","01A","Direct employee expenses","409","Agency Staff Pay","60145726","201201",12/04/2011 00:00:00,468.93,"31230","Employment & Recruitment Agencies","REDACTED DATA","PREMIER WORK SUPPORT LTD","5139457","http://opencorporates.com/companies/gb/5139457","345787906"
"London Borough of Redbridge","http://opendatacommunities.org/doc/london-borough-council/redbridge","6BADULTSOCIA","Adult Social Care","6COLDINCMENT","Older People (65 or over) incl. Older Mentally Ill","REV","Revenue","R4211","Older People Direct Payments","06-TRANSFER","Transfer Payments","06B","Social Services Clients","7053","Direct Payments","3178624","201201",11/04/2011 00:00:00,562.76,"56800","Payroll Services","REDACTED DATA","HUMAN MANAGEMENT ASSISTANCE-CLIENT ACCOUNT","4752026","http://opencorporates.com/companies/gb/4752026","815230071"
"London Borough of Redbridge","http://opendatacommunities.org/doc/london-borough-council/redbridge","6BADULTSOCIA","Adult Social Care","6COTHADSERV","Other Adult Services","REV","Revenue","R4395","Alcohol Block Contracts","05-THIRD","Third Party Payments","05F","Voluntary associations","6800","Voluntary Organisations","90222082","201201",15/04/2011 00:00:00,926.6,"17020","Charities and Voluntary Organisations","REDACTED DATA","DRUGSLINE-CHADBAD LTD","",,""
"London Borough of Redbridge","http://opendatacommunities.org/doc/london-borough-council/redbridge","6BADULTSOCIA","Adult Social Care","6COTHADSERV","Other Adult Services","REV","Revenue","R4395","Alcohol Block Contracts","05-THIRD","Third Party Payments","05F","Voluntary associations","6800","Voluntary Organisations","90222082","201201",15/04/2011 00:00:00,181.69,"17020","Charities and Voluntary Organisations","REDACTED DATA","DRUGSLINE-CHADBAD LTD","",,""
"London Borough of Redbridge","http://opendatacommunities.org/doc/london-borough-council/redbridge","6BADULTSOCIA","Adult Social Care","6COTHADSERV","Other Adult Services","REV","Revenue","R4395","Alcohol Block Contracts","05-THIRD","Third Party Payments","05F","Voluntary associations","6800","Voluntary Organisations","90222082","201201",15/04/2011 00:00:00,-545.06,"17020","Charities and Voluntary Organisations","REDACTED DATA","DRUGSLINE-CHADBAD LTD","",,""
"London Borough of Redbridge","http://opendatacommunities.org/doc/london-borough-council/redbridge","6BADULTSOCIA","Adult Social Care","6COLDINCMENT","Older People (65 or over) incl. Older Mentally Ill","REV","Revenue","R4391","OP Home Care","05-THIRD","Third Party Payments","05A","Independent units within the council","6502","Agency Homecare (Payments To Independent Units)","90221490","201201",18/04/2011 00:00:00,563.24,"43419","Home Care Services","REDACTED DATA","CAREWATCH CARE SERVVICES LTD","2949558","http://opencorporates.com/companies/gb/2949558","927457005"
"London Borough of Redbridge","http://opendatacommunities.org/doc/london-borough-council/redbridge","3BNONSCHFUND","Non-School Funding","","","REV","Revenue","R3948","Ray Lodge CC Nursery","01-EMPLOYEES","Employees","01A","Direct employee expenses","4","Agency Staff - Pay","60145902","201201",08/04/2011 00:00:00,469.65,"31230","Employment & Recruitment Agencies","REDACTED DATA","RANDSTAD EDUCATION LTD","3403530","http://opencorporates.com/companies/gb/3403530","492435726"
"London Borough of Redbridge","http://opendatacommunities.org/doc/london-borough-council/redbridge","7BCDC","Corporate & Democratic Core","7CCORPMGT","Corporate Management","REV","Revenue","R9804","Members Exp/Allowances","04-SUPPLIES","Supplies And Services","04F","Communications and computing","5858","Phones","70026375","201201",04/04/2011 00:00:00,469.81,"51500","Mobile Phones - Personal Numbers","REDACTED DATA","EVERYTHING EVERYWHERE LTD (CAMBERLEY)","2382161","http://opencorporates.com/companies/gb/2382161","771592016"
"London Borough of Redbridge","http://opendatacommunities.org/doc/london-borough-council/redbridge","1BOTHEROPI&E","Other Operating Income & Expenditure","1CTRADSURDEF","Trading Account Surpluses & Deficits","REV","Revenue","R9001","Customer Contact Centre","04-SUPPLIES","Supplies And Services","04A","Equipment, furniture and materials","5502","Equipment Purchase","60143547","201112",18/03/2011 00:00:00,470,"53450","Office Furniture & Equipment","REDACTED DATA","ONLINE ERGONOMICS LIMITED","5642546","http://opencorporates.com/companies/gb/5642546","807348719"
"London Borough of Redbridge","http://opendatacommunities.org/doc/london-borough-council/redbridge","6BSOCIALSERV","Social Services","","","REV","Revenue","R2117","SEN and CD Care and Support Packages Social Care","06-TRANSFER","Transfer Payments","06B","Social Services Clients","7050","Agency Homecare","3178243","201201",28/03/2011 00:00:00,564.5,"31230","Employment & Recruitment Agencies","REDACTED DATA","HOPE SUPER JOBS LTD","",,"872555205"
"London Borough of Redbridge","http://opendatacommunities.org/doc/london-borough-council/redbridge","3BLEACENTFND","LEA Centrally Held School Funds","3CASSURACCES","Assuring Access to Schools","REV","Revenue","R3290","Mus Sch - Delegated","04-SUPPLIES","Supplies And Services","04D","Printing, stationery and general office expenses","5703","Reprographics","70026144","201201",30/03/2011 00:00:00,470.73,"57614","Photocopiers","REDACTED DATA","CANON UK LTD","1264300","http://opencorporates.com/companies/gb/1264300","523797128"
"London Borough of Redbridge","http://opendatacommunities.org/doc/london-borough-council/redbridge","6BADULTSOCIA","Adult Social Care","6CADMENHLTH","Adults Under 65 with Mental Health Needs","REV","Revenue","R4213","MH Direct Payments","06-TRANSFER","Transfer Payments","06B","Social Services Clients","7053","Direct Payments","3178558","201201",11/04/2011 00:00:00,565,"56800","Payroll Services","REDACTED DATA","HUMAN MANAGEMENT ASSISTANCE-CLIENT ACCOUNT","4752026","http://opencorporates.com/companies/gb/4752026","815230071"
"London Borough of Redbridge","http://opendatacommunities.org/doc/london-borough-council/redbridge","6BADULTSOCIA","Adult Social Care","6CADPHYSDIS","Adults Under 65 with Phys Disab or Sensory Impair","REV","Revenue","R4206","PCT Physical Disability and Sensory Home  Care","05-THIRD","Third Party Payments","05A","Independent units within the council","6502","Agency Homecare (Payments To Independent Units)","90220311","201201",14/04/2011 00:00:00,565,"31230","Employment & Recruitment Agencies","REDACTED DATA","CARE ASSOCIATES (RECRUITMENT) LTD.","",,""
"London Borough of Redbridge","http://opendatacommunities.org/doc/london-borough-council/redbridge","6BADULTSOCIA","Adult Social Care","6CADPHYSDIS","Adults Under 65 with Phys Disab or Sensory Impair","REV","Revenue","R4206","PCT Physical Disability and Sensory Home  Care","05-THIRD","Third Party Payments","05A","Independent units within the council","6502","Agency Homecare (Payments To Independent Units)","90220312","201201",14/04/2011 00:00:00,565,"31230","Employment & Recruitment Agencies","REDACTED DATA","CARE ASSOCIATES (RECRUITMENT) LTD.","",,""
"London Borough of Redbridge","http://opendatacommunities.org/doc/london-borough-council/redbridge","6BADULTSOCIA","Adult Social Care","6CADPHYSDIS","Adults Under 65 with Phys Disab or Sensory Impair","REV","Revenue","R4214","PD Direct Payments","06-TRANSFER","Transfer Payments","06B","Social Services Clients","7053","Direct Payments","3178578","201201",11/04/2011 00:00:00,565,"56800","Payroll Services","REDACTED DATA","HUMAN MANAGEMENT ASSISTANCE-CLIENT ACCOUNT","4752026","http://opencorporates.com/companies/gb/4752026","815230071"
"London Borough of Redbridge","http://opendatacommunities.org/doc/london-borough-council/redbridge","6BADULTSOCIA","Adult Social Care","6CADPHYSDIS","Adults Under 65 with Phys Disab or Sensory Impair","REV","Revenue","R4214","PD Direct Payments","06-TRANSFER","Transfer Payments","06B","Social Services Clients","7053","Direct Payments","3178723","201201",11/04/2011 00:00:00,565,"56800","Payroll Services","REDACTED DATA","HUMAN MANAGEMENT ASSISTANCE-CLIENT ACCOUNT","4752026","http://opencorporates.com/companies/gb/4752026","815230071"
"London Borough of Redbridge","http://opendatacommunities.org/doc/london-borough-council/redbridge","6BADULTSOCIA","Adult Social Care","6CADPHYSDIS","Adults Under 65 with Phys Disab or Sensory Impair","REV","Revenue","R4214","PD Direct Payments","06-TRANSFER","Transfer Payments","06B","Social Services Clients","7053","Direct Payments","3178665","201201",11/04/2011 00:00:00,565,"56800","Payroll Services","REDACTED DATA","HUMAN MANAGEMENT ASSISTANCE-CLIENT ACCOUNT","4752026","http://opencorporates.com/companies/gb/4752026","815230071"
"London Borough of Redbridge","http://opendatacommunities.org/doc/london-borough-council/redbridge","6BADULTSOCIA","Adult Social Care","6CADPHYSDIS","Adults Under 65 with Phys Disab or Sensory Impair","REV","Revenue","R4214","PD Direct Payments","06-TRANSFER","Transfer Payments","06B","Social Services Clients","7053","Direct Payments","3178639","201201",11/04/2011 00:00:00,565,"90005","Home Care Services DP","REDACTED DATA","REDACTED DATA","",,""
"London Borough of Redbridge","http://opendatacommunities.org/doc/london-borough-council/redbridge","6BADULTSOCIA","Adult Social Care","6CADPHYSDIS","Adults Under 65 with Phys Disab or Sensory Impair","REV","Revenue","R4214","PD Direct Payments","06-TRANSFER","Transfer Payments","06B","Social Services Clients","7053","Direct Payments","3178423","201201",11/04/2011 00:00:00,565,"90005","Home Care Services DP","REDACTED DATA","REDACTED DATA","",,""
"London Borough of Redbridge","http://opendatacommunities.org/doc/london-borough-council/redbridge","6BADULTSOCIA","Adult Social Care","6COLDINCMENT","Older People (65 or over) incl. Older Mentally Ill","REV","Revenue","R4211","Older People Direct Payments","06-TRANSFER","Transfer Payments","06B","Social Services Clients","7053","Direct Payments","3178506","201201",11/04/2011 00:00:00,757.12,"56800","Payroll Services","REDACTED DATA","HUMAN MANAGEMENT ASSISTANCE-CLIENT ACCOUNT","4752026","http://opencorporates.com/companies/gb/4752026","815230071"
"London Borough of Redbridge","http://opendatacommunities.org/doc/london-borough-council/redbridge","6BADULTSOCIA","Adult Social Care","6COLDINCMENT","Older People (65 or over) incl. Older Mentally Ill","REV","Revenue","R4211","Older People Direct Payments","09-INCOME","Income","09C","Customer & Client Receipts","8553","Care Package Charges","3178506","201201",11/04/2011 00:00:00,-191.96,"56800","Payroll Services","REDACTED DATA","HUMAN MANAGEMENT ASSISTANCE-CLIENT ACCOUNT","4752026","http://opencorporates.com/companies/gb/4752026","815230071"
"London Borough of Redbridge","http://opendatacommunities.org/doc/london-borough-council/redbridge","3BOPTIONHLDG","Optional Holding Accounts","3CYOUTH","Youth Service","REV","Revenue","R3427","Fairlop Sailing Centre","04-SUPPLIES","Supplies And Services","04D","Printing, stationery and general office expenses","5708","Advertising Publicity and Promotions","60144311","201201",25/03/2011 00:00:00,471.27,"80440","Trophies, Medals & Rosettes","REDACTED DATA","RUNNING IMP INTERNATIONAL","",,""
"London Borough of Redbridge","http://opendatacommunities.org/doc/london-borough-council/redbridge","6BSOCIALSERV","Social Services","6CASYLUMSEEK","Asylum Seekers","REV","Revenue","R2128","CLAFH - Leaving Care Asylum Seekers","06-TRANSFER","Transfer Payments","06B","Social Services Clients","7051","Asylum Seekers","3177425","201112",31/03/2011 00:00:00,471.43,"43419","Home Care Services","REDACTED DATA","LONDON CARE SOLUTIONS","",,"858539276"
"London Borough of Redbridge","http://opendatacommunities.org/doc/london-borough-council/redbridge","9BNONBVO","Outside the BVACOP Objective Structure","9CNONBVO","Outside the BVACOP Objective Structure","BAL","Balance Sheet","B0232","Friends Provident","99-NONBV","Capital, Balance Sheet and Control","50Q","Other Balances & Reserves","9910","Personal Account - Debtor","70026445","201201",27/04/2011 00:00:00,566.26,"56860","Pensions","REDACTED DATA","FRIENDS PROVIDENT LIFE AND PENSIONS LTD","4096141","http://opencorporates.com/companies/gb/4096141",""
"London Borough of Redbridge","http://opendatacommunities.org/doc/london-borough-council/redbridge","9BNONBVO","Outside the BVACOP Objective Structure","9CNONBVO","Outside the BVACOP Objective Structure","REV","Revenue","R7702","Vehicle Workshop","04-SUPPLIES","Supplies And Services","04A","Equipment, furniture and materials","5510","Materials","626724","201201",15/04/2011 00:00:00,377,"13330","Car Body Repairs","REDACTED DATA","BARKING PANELCRAFT","",,""
"London Borough of Redbridge","http://opendatacommunities.org/doc/london-borough-council/redbridge","9BNONBVO","Outside the BVACOP Objective Structure","9CNONBVO","Outside the BVACOP Objective Structure","REV","Revenue","R7702","Vehicle Workshop","04-SUPPLIES","Supplies And Services","04A","Equipment, furniture and materials","5510","Materials","626724","201201",15/04/2011 00:00:00,95,"13330","Car Body Repairs","REDACTED DATA","BARKING PANELCRAFT","",,""
"London Borough of Redbridge","http://opendatacommunities.org/doc/london-borough-council/redbridge","6BADULTSOCIA","Adult Social Care","6COTHADSERV","Other Adult Services","REV","Revenue","R4389","PCT Older Person Home Care","05-THIRD","Third Party Payments","05A","Independent units within the council","6502","Agency Homecare (Payments To Independent Units)","90221282","201201",06/04/2011 00:00:00,566.88,"53350","Nursing Homes","REDACTED DATA","ELEANOR NURSING & HOMECARE LTD","4393038","http://opencorporates.com/companies/gb/4393038",""
"London Borough of Redbridge","http://opendatacommunities.org/doc/london-borough-council/redbridge","2BPLAN&DEVEL","Planning & Development Services","","","REV","Revenue","R6527","Information Management Team.","04-SUPPLIES","Supplies And Services","04F","Communications and computing","5852","Computer Equipment - Repairs & Maintenance","60145864","201201",11/01/2011 00:00:00,473,"20703","Computer Systems and Software","REDACTED DATA","ORACLE CORPORATION UK LIMITED","1782505","http://opencorporates.com/companies/gb/1782505","391313073"
"London Borough of Redbridge","http://opendatacommunities.org/doc/london-borough-council/redbridge","1BOTHEROPI&E","Other Operating Income & Expenditure","1CTRADSURDEF","Trading Account Surpluses & Deficits","REV","Revenue","R9252","IT Services","04-SUPPLIES","Supplies And Services","04F","Communications and computing","5853","Computer Software","60144180","201112",29/03/2011 00:00:00,473,"20650","Computer Security","REDACTED DATA","IMERJA LTD","5180119","http://opencorporates.com/companies/gb/5180119","845064722"
"London Borough of Redbridge","http://opendatacommunities.org/doc/london-borough-council/redbridge","6BADULTSOCIA","Adult Social Care","6CADLEARNDIS","Adults Under 65 with Learning Disabilities","REV","Revenue","R4296","Mulberry Lodge","01-EMPLOYEES","Employees","01A","Direct employee expenses","4","Agency Staff - Pay","60145801","201201",27/03/2011 00:00:00,473.04,"31230","Employment & Recruitment Agencies","REDACTED DATA","PLAN PERSONNEL","",,""
"London Borough of Redbridge","http://opendatacommunities.org/doc/london-borough-council/redbridge","6BADULTSOCIA","Adult Social Care","6CADLEARNDIS","Adults Under 65 with Learning Disabilities","REV","Revenue","R4296","Mulberry Lodge","01-EMPLOYEES","Employees","01A","Direct employee expenses","409","Agency Staff Pay","60146094","201201",10/04/2011 00:00:00,473.04,"31230","Employment & Recruitment Agencies","REDACTED DATA","PLAN PERSONNEL","",,""
"London Borough of Redbridge","http://opendatacommunities.org/doc/london-borough-council/redbridge","1BOTHEROPI&E","Other Operating Income & Expenditure","1CTRADSURDEF","Trading Account Surpluses & Deficits","REV","Revenue","R9611","114-126 High Rd Wdfd","02-PREMISES","Premises","02A","Repairs, alteration and maintenance of buildings","3034","Portable Application Electrical Testing (H&S)","783930","201201",28/03/2011 00:00:00,473.76,"30350","Electrical Testing & Inspecting","REDACTED DATA","RGE SERVICES LTD","3305853","http://opencorporates.com/companies/gb/3305853","919118812"
"London Borough of Redbridge","http://opendatacommunities.org/doc/london-borough-council/redbridge","6BADULTSOCIA","Adult Social Care","6CADPHYSDIS","Adults Under 65 with Phys Disab or Sensory Impair","REV","Revenue","R4214","PD Direct Payments","06-TRANSFER","Transfer Payments","06B","Social Services Clients","7053","Direct Payments","3178541","201201",11/04/2011 00:00:00,621.52,"56800","Payroll Services","REDACTED DATA","HUMAN MANAGEMENT ASSISTANCE-CLIENT ACCOUNT","4752026","http://opencorporates.com/companies/gb/4752026","815230071"
"London Borough of Redbridge","http://opendatacommunities.org/doc/london-borough-council/redbridge","6BADULTSOCIA","Adult Social Care","6CADPHYSDIS","Adults Under 65 with Phys Disab or Sensory Impair","REV","Revenue","R4214","PD Direct Payments","09-INCOME","Income","09C","Customer & Client Receipts","8553","Care Package Charges","3178541","201201",11/04/2011 00:00:00,-52.44,"56800","Payroll Services","REDACTED DATA","HUMAN MANAGEMENT ASSISTANCE-CLIENT ACCOUNT","4752026","http://opencorporates.com/companies/gb/4752026","815230071"
"London Borough of Redbridge","http://opendatacommunities.org/doc/london-borough-council/redbridge","1BOTHEROPI&E","Other Operating Income & Expenditure","1CTRADSURDEF","Trading Account Surpluses & Deficits","REV","Revenue","R9575","Ilford Chambers Service Charge Account","02-PREMISES","Premises","02A","Repairs, alteration and maintenance of buildings","3026","Minor Maintenance","783782","201201",25/02/2011 00:00:00,474.61,"48586","Locksmiths","REDACTED DATA","MARTIN LOCK & SAFE","",,"248118853"
"London Borough of Redbridge","http://opendatacommunities.org/doc/london-borough-council/redbridge","6BSOCIALSERV","Social Services","6CSUPPSERMGT","Support Service & Management Costs","REV","Revenue","R2133","MD Children's Trust","04-SUPPLIES","Supplies And Services","04E","Services","5754","Consultancy","60143363","201112",23/03/2011 00:00:00,475,"12100","Business and Management Consultants","REDACTED DATA","KEVIN HARRINGTON ASSOCIATES LTD","4849028","http://opencorporates.com/companies/gb/4849028","809683886"
"London Borough of Redbridge","http://opendatacommunities.org/doc/london-borough-council/redbridge","2BCULTUR&REL","Cultural & Related Services","2COPENSPACES","Open Spaces","REV","Revenue","R6313","Parks Operational","04-SUPPLIES","Supplies And Services","04A","Equipment, furniture and materials","5502","Equipment Purchase","60145357","201201",31/03/2011 00:00:00,486,"19000","Cleaning Contractors Equipment and Supplies","REDACTED DATA","GREENHAM TRADING LTD","",,"823820932"
"London Borough of Redbridge","http://opendatacommunities.org/doc/london-borough-council/redbridge","6BADULTSOCIA","Adult Social Care","6CADLEARNDIS","Adults Under 65 with Learning Disabilities","REV","Revenue","R4215","LD Direct Payments","06-TRANSFER","Transfer Payments","06B","Social Services Clients","7053","Direct Payments","3178717","201201",11/04/2011 00:00:00,570.48,"56800","Payroll Services","REDACTED DATA","HUMAN MANAGEMENT ASSISTANCE-CLIENT ACCOUNT","4752026","http://opencorporates.com/companies/gb/4752026","815230071"
"London Borough of Redbridge","http://opendatacommunities.org/doc/london-borough-council/redbridge","9BNONBVO","Outside the BVACOP Objective Structure","9CNONBVO","Outside the BVACOP Objective Structure","CAP","Capital","C9013","R and R Exp Education","99-NONBV","Capital, Balance Sheet and Control","50G","Capital - Other Capital Outlay","9205","R&R Equipment - Normal","60145041","201201",05/04/2011 00:00:00,475.46,"20703","Computer Systems and Software","REDACTED DATA","SPECIALIST COMPUTER CENTRES PLC","1428210","http://opencorporates.com/companies/gb/1428210","313651680"
"London Borough of Redbridge","http://opendatacommunities.org/doc/london-borough-council/redbridge","9BNONBVO","Outside the BVACOP Objective Structure","9CNONBVO","Outside the BVACOP Objective Structure","CAP","Capital","C4032","Aiming Higher for Disabled Children","99-NONBV","Capital, Balance Sheet and Control","50F","Capital - Equipment, Furniture & Fittings","9171","Furniture & Fittings","60143718","201112",21/03/2011 00:00:00,476.09,"29340","Educational Equipment & Supplies","REDACTED DATA","FINDEL EDUCATION LTD","1135827","http://opencorporates.com/companies/gb/1135827","125688644"
"London Borough of Redbridge","http://opendatacommunities.org/doc/london-borough-council/redbridge","6BADULTSOCIA","Adult Social Care","6COLDINCMENT","Older People (65 or over) incl. Older Mentally Ill","REV","Revenue","R4391","OP Home Care","05-THIRD","Third Party Payments","05A","Independent units within the council","6502","Agency Homecare (Payments To Independent Units)","90219284","201201",12/04/2011 00:00:00,571.98,"43419","Home Care Services","REDACTED DATA","CAREWATCH CARE SERVVICES LTD","2949558","http://opencorporates.com/companies/gb/2949558","927457005"
"London Borough of Redbridge","http://opendatacommunities.org/doc/london-borough-council/redbridge","6BADULTSOCIA","Adult Social Care","6CADLEARNDIS","Adults Under 65 with Learning Disabilities","REV","Revenue","R4293","Woodbine Club House","01-EMPLOYEES","Employees","01A","Direct employee expenses","4","Agency Staff - Pay","60145393","201201",03/04/2011 00:00:00,477.26,"31230","Employment & Recruitment Agencies","REDACTED DATA","AQUANET SERVICES LTD","5297732","http://opencorporates.com/companies/gb/5297732","867966742"
"London Borough of Redbridge","http://opendatacommunities.org/doc/london-borough-council/redbridge","6BADULTSOCIA","Adult Social Care","6CADPHYSDIS","Adults Under 65 with Phys Disab or Sensory Impair","REV","Revenue","R4206","PCT Physical Disability and Sensory Home  Care","05-THIRD","Third Party Payments","05A","Independent units within the council","6502","Agency Homecare (Payments To Independent Units)","90216085","201201",30/03/2011 00:00:00,573,"43419","Home Care Services","REDACTED DATA","HOMECARE & DOMESTIC SERV. LTD.","3161761","http://opencorporates.com/companies/gb/3161761",""
"London Borough of Redbridge","http://opendatacommunities.org/doc/london-borough-council/redbridge","6BADULTSOCIA","Adult Social Care","6CADPHYSDIS","Adults Under 65 with Phys Disab or Sensory Impair","REV","Revenue","R4206","PCT Physical Disability and Sensory Home  Care","05-THIRD","Third Party Payments","05A","Independent units within the council","6502","Agency Homecare (Payments To Independent Units)","90216090","201201",04/04/2011 00:00:00,573.06,"43419","Home Care Services","REDACTED DATA","HOMECARE & DOMESTIC SERV. LTD.","3161761","http://opencorporates.com/companies/gb/3161761",""
"London Borough of Redbridge","http://opendatacommunities.org/doc/london-borough-council/redbridge","6BADULTSOCIA","Adult Social Care","6COLDINCMENT","Older People (65 or over) incl. Older Mentally Ill","REV","Revenue","R4391","OP Home Care","05-THIRD","Third Party Payments","05A","Independent units within the council","6502","Agency Homecare (Payments To Independent Units)","90219945","201201",19/04/2011 00:00:00,573.17,"43419","Home Care Services","REDACTED DATA","ALLIED HEALTHCARE GROUP LTD","1689856","http://opencorporates.com/companies/gb/1689856","813058355"
"London Borough of Redbridge","http://opendatacommunities.org/doc/london-borough-council/redbridge","6BADULTSOCIA","Adult Social Care","6CCHILLOOKED","Children Looked After","REV","Revenue","R2118","CLAFH - 2-4 Bathurst Road","01-EMPLOYEES","Employees","01A","Direct employee expenses","4","Agency Staff - Pay","60144260","201201",07/01/2011 00:00:00,477.68,"31230","Employment & Recruitment Agencies","REDACTED DATA","REED EMPLOYMENT PLC","",,"216357765"
"London Borough of Redbridge","http://opendatacommunities.org/doc/london-borough-council/redbridge","6BADULTSOCIA","Adult Social Care","6COTHADSERV","Other Adult Services","REV","Revenue","R4389","PCT Older Person Home Care","05-THIRD","Third Party Payments","05A","Independent units within the council","6502","Agency Homecare (Payments To Independent Units)","90218703","201201",05/04/2011 00:00:00,573.41,"53280","Nursing Agencies","REDACTED DATA","IMMACULATE HEALTHCARE SERVICES LIMITED","",,""
"London Borough of Redbridge","http://opendatacommunities.org/doc/london-borough-council/redbridge","6BADULTSOCIA","Adult Social Care","6COTHADSERV","Other Adult Services","REV","Revenue","R4389","PCT Older Person Home Care","05-THIRD","Third Party Payments","05A","Independent units within the council","6502","Agency Homecare (Payments To Independent Units)","90220907","201201",12/04/2011 00:00:00,573.76,"53280","Nursing Agencies","REDACTED DATA","IMMACULATE HEALTHCARE SERVICES LIMITED","",,""
"London Borough of Redbridge","http://opendatacommunities.org/doc/london-borough-council/redbridge","6BADULTSOCIA","Adult Social Care","6COTHADSERV","Other Adult Services","REV","Revenue","R4389","PCT Older Person Home Care","05-THIRD","Third Party Payments","05A","Independent units within the council","6502","Agency Homecare (Payments To Independent Units)","90220928","201201",19/04/2011 00:00:00,573.76,"53280","Nursing Agencies","REDACTED DATA","IMMACULATE HEALTHCARE SERVICES LIMITED","",,""
"London Borough of Redbridge","http://opendatacommunities.org/doc/london-borough-council/redbridge","9BNONBVO","Outside the BVACOP Objective Structure","9CNONBVO","Outside the BVACOP Objective Structure","REV","Revenue","R7702","Vehicle Workshop","04-SUPPLIES","Supplies And Services","04A","Equipment, furniture and materials","5510","Materials","626670","201201",13/04/2011 00:00:00,373.75,"13330","Car Body Repairs","REDACTED DATA","BARKING PANELCRAFT","",,""
"London Borough of Redbridge","http://opendatacommunities.org/doc/london-borough-council/redbridge","9BNONBVO","Outside the BVACOP Objective Structure","9CNONBVO","Outside the BVACOP Objective Structure","REV","Revenue","R7702","Vehicle Workshop","04-SUPPLIES","Supplies And Services","04A","Equipment, furniture and materials","5510","Materials","626670","201201",13/04/2011 00:00:00,105,"13330","Car Body Repairs","REDACTED DATA","BARKING PANELCRAFT","",,""
"London Borough of Redbridge","http://opendatacommunities.org/doc/london-borough-council/redbridge","6BADULTSOCIA","Adult Social Care","6COLDINCMENT","Older People (65 or over) incl. Older Mentally Ill","REV","Revenue","R4378","OP - Care Purchasing","05-THIRD","Third Party Payments","05F","Voluntary associations","6802","Residential Homes","90217908","201201",30/03/2011 00:00:00,1858.88,"64710","Residential Care Homes","REDACTED DATA","CAREMORE LTD (STUART HOUSR RESIDENTIAL HOME)","",,""
"London Borough of Redbridge","http://opendatacommunities.org/doc/london-borough-council/redbridge","6BADULTSOCIA","Adult Social Care","6COLDINCMENT","Older People (65 or over) incl. Older Mentally Ill","REV","Revenue","R4378","OP - Care Purchasing","05-THIRD","Third Party Payments","05F","Voluntary associations","6802","Residential Homes","90217908","201201",30/03/2011 00:00:00,448,"64710","Residential Care Homes","REDACTED DATA","CAREMORE LTD (STUART HOUSR RESIDENTIAL HOME)","",,""
"London Borough of Redbridge","http://opendatacommunities.org/doc/london-borough-council/redbridge","6BADULTSOCIA","Adult Social Care","6COLDINCMENT","Older People (65 or over) incl. Older Mentally Ill","REV","Revenue","R4378","OP - Care Purchasing","09-INCOME","Income","09C","Customer & Client Receipts","8555","Accommodation Charges","90217908","201201",30/03/2011 00:00:00,-448,"64710","Residential Care Homes","REDACTED DATA","CAREMORE LTD (STUART HOUSR RESIDENTIAL HOME)","",,""
"London Borough of Redbridge","http://opendatacommunities.org/doc/london-borough-council/redbridge","6BADULTSOCIA","Adult Social Care","6COLDINCMENT","Older People (65 or over) incl. Older Mentally Ill","REV","Revenue","R4378","OP - Care Purchasing","09-INCOME","Income","09C","Customer & Client Receipts","8555","Accommodation Charges","90217908","201201",30/03/2011 00:00:00,-1283.92,"64710","Residential Care Homes","REDACTED DATA","CAREMORE LTD (STUART HOUSR RESIDENTIAL HOME)","",,""
"London Borough of Redbridge","http://opendatacommunities.org/doc/london-borough-council/redbridge","6BADULTSOCIA","Adult Social Care","6COLDINCMENT","Older People (65 or over) incl. Older Mentally Ill","REV","Revenue","R4378","OP - Care Purchasing","05-THIRD","Third Party Payments","05F","Voluntary associations","6802","Residential Homes","90217894","201201",30/03/2011 00:00:00,2140.12,"64760","Rest & Retirement Homes","REDACTED DATA","ST JOSEPH'S REST HOME","",,""
"London Borough of Redbridge","http://opendatacommunities.org/doc/london-borough-council/redbridge","6BADULTSOCIA","Adult Social Care","6COLDINCMENT","Older People (65 or over) incl. Older Mentally Ill","REV","Revenue","R4378","OP - Care Purchasing","09-INCOME","Income","09C","Customer & Client Receipts","8555","Accommodation Charges","90217894","201201",30/03/2011 00:00:00,-1565.08,"64760","Rest & Retirement Homes","REDACTED DATA","ST JOSEPH'S REST HOME","",,""
"London Borough of Redbridge","http://opendatacommunities.org/doc/london-borough-council/redbridge","6BADULTSOCIA","Adult Social Care","6COLDINCMENT","Older People (65 or over) incl. Older Mentally Ill","REV","Revenue","R4197","Oakfield Lodge Dc","04-SUPPLIES","Supplies And Services","04B","Catering","5601","Catering Provisions (Food & Drink)","60145463","201201",08/04/2011 00:00:00,555.44,"16250","Catering Food and Drink Suppliers","REDACTED DATA","BRAKE BROS FOODSERVICE LTD","",,""
"London Borough of Redbridge","http://opendatacommunities.org/doc/london-borough-council/redbridge","6BADULTSOCIA","Adult Social Care","6COLDINCMENT","Older People (65 or over) incl. Older Mentally Ill","REV","Revenue","R4197","Oakfield Lodge Dc","04-SUPPLIES","Supplies And Services","04B","Catering","5601","Catering Provisions (Food & Drink)","60145463","201201",08/04/2011 00:00:00,17.04,"16250","Catering Food and Drink Suppliers","REDACTED DATA","BRAKE BROS FOODSERVICE LTD","",,""
"London Borough of Redbridge","http://opendatacommunities.org/doc/london-borough-council/redbridge","6BADULTSOCIA","Adult Social Care","6CADLEARNDIS","Adults Under 65 with Learning Disabilities","REV","Revenue","R4218","Individualised Budgets","06-TRANSFER","Transfer Payments","06B","Social Services Clients","7053","Direct Payments","90217918","201201",30/03/2011 00:00:00,576,"64710","Residential Care Homes","REDACTED DATA","THE BEECHES","",,""
"London Borough of Redbridge","http://opendatacommunities.org/doc/london-borough-council/redbridge","6BADULTSOCIA","Adult Social Care","6CADLEARNDIS","Adults Under 65 with Learning Disabilities","REV","Revenue","R4218","Individualised Budgets","06-TRANSFER","Transfer Payments","06B","Social Services Clients","7053","Direct Payments","90217917","201201",30/03/2011 00:00:00,576,"64710","Residential Care Homes","REDACTED DATA","THE BEECHES","",,""
"London Borough of Redbridge","http://opendatacommunities.org/doc/london-borough-council/redbridge","6BADULTSOCIA","Adult Social Care","6CADLEARNDIS","Adults Under 65 with Learning Disabilities","REV","Revenue","R4218","Individualised Budgets","06-TRANSFER","Transfer Payments","06B","Social Services Clients","7053","Direct Payments","90217916","201201",30/03/2011 00:00:00,576,"64710","Residential Care Homes","REDACTED DATA","THE BEECHES","",,""
"London Borough of Redbridge","http://opendatacommunities.org/doc/london-borough-council/redbridge","6BADULTSOCIA","Adult Social Care","6CADLEARNDIS","Adults Under 65 with Learning Disabilities","REV","Revenue","R4218","Individualised Budgets","06-TRANSFER","Transfer Payments","06B","Social Services Clients","7053","Direct Payments","90217915","201201",30/03/2011 00:00:00,576,"64710","Residential Care Homes","REDACTED DATA","THE BEECHES","",,""
"London Borough of Redbridge","http://opendatacommunities.org/doc/london-borough-council/redbridge","3BLEACENTFND","LEA Centrally Held School Funds","3CSUPPORTSEN","Supporting Special Education Needs","REV","Revenue","R3431","Pupil Referral Unit (KS4)","01-EMPLOYEES","Employees","01A","Direct employee expenses","4","Agency Staff - Pay","60144609","201201",04/04/2011 00:00:00,480,"31230","Employment & Recruitment Agencies","REDACTED DATA","TOTAL ASSIST EDUCATION LTD","5368892","http://opencorporates.com/companies/gb/5368892","946069692"
"London Borough of Redbridge","http://opendatacommunities.org/doc/london-borough-council/redbridge","3BLEACENTFND","LEA Centrally Held School Funds","","","REV","Revenue","R3854","SDG Finance Training 1","04-SUPPLIES","Supplies And Services","04H","Grants and subscriptions","5950","Grants","60144492","201201",22/03/2011 00:00:00,280,"17020","Charities and Voluntary Organisations","REDACTED DATA","FRENFORD CLUBS LIMITED (ARDLEIGH GREEN)","3226473","http://opencorporates.com/companies/gb/3226473",""
"London Borough of Redbridge","http://opendatacommunities.org/doc/london-borough-council/redbridge","3BLEACENTFND","LEA Centrally Held School Funds","","","REV","Revenue","R3854","SDG Finance Training 1","04-SUPPLIES","Supplies And Services","04E","Services","5759","Hire Of Venues","60144492","201201",22/03/2011 00:00:00,200,"17020","Charities and Voluntary Organisations","REDACTED DATA","FRENFORD CLUBS LIMITED (ARDLEIGH GREEN)","3226473","http://opencorporates.com/companies/gb/3226473",""
